{"text_format":"1","workbook":"xlsx","n_sheets":4,"sheets":["BSW_TA","Grondverzet_Balance des sols","Ber.mtst-Calc.métré","histlog"],"not_rendered":{"charts":0,"images":4,"macros":1,"external_links":0,"defined_names":52,"comments":0,"pivot_tables":0},"unopened":[],"bounds":{"document_bytes":16777216,"sheet_cells":100000,"rows_first":2000,"rows_last":500,"rows_between":2000,"halvings":0,"cell_chars":16384,"cell_head_chars":4096},"cells_cut":0,"cells_raw":0,"read":"whole","date_system":"1900"}

{"sheet":"BSW_TA","index":0,"n_rows":635,"n_cols":71,"rows_kept":635,"cut":false,"hidden":false,"merged":[[9,9,9,11],[9,12,9,14],[5,1,5,3],[7,9,7,11],[7,12,7,14]]}
[{"$f":"+COLUMN(BE1)","v":57},null,null,null,null,null,null,null,null,null,null,null,null,null,null,null,null,null,null,null,null,null,null,null,null,null,null,null,null,null,null,null,null,null,null,null,null,null,null,null,null,null,null,null,null,null,null,null,null,null,null,null,null,null,null,null,"selected","selected","version","beginmeetstaat",{"$f":"ROW(beginpositionmtst)","v":11}]
[null,null,null,null,null,null,null,null,null,null,null,null,null,null,null,null,null,null,null,null,null,null,null,null,null,null,null,null,null,null,null,null,null,null,null,null,null,null,null,null,null,null,null,null,null,null,null,null,null,null,null,null,null,null,null,null,">0",null,"2.1","begin variabel deel",{"$f":"ROW(beginpositionvariabeldeel)","v":620}]
[null,null,null,null,null,null,null,null,null,null,null,null,null,null,null,null,null,null,null,null,null,null,null,null,null,null,null,null,null,null,null,null,null,null,null,null,null,null,null,null,null,null,null,null,null,null,null,null,null,null,null,null,null,null,null,null,null,null,null,"einde meetstaat",{"$f":"ROW(endposition2)","v":{"$error":"#REF!"}}]
[]
["Dossiernr :",null,null,null,"tendernr°:",null,null,null,null,null,null,"opgemaakt op / fait le :"]
["Station :",null,null,null,null,null,null,null,null,null,null,"opgemaakt door / fait par:"]
[null,null,null,null,null,null,null,null,null,"Propre à BOFAS","Etranger à BOFAS","Total","propre à BOFAS","Etranger à BOFAS","Total"]
["Postnr.","Description","Omschrijving","PT/QF/QP","Unités","PU-CC","PU","Toelichting mbt bepaling hoeveelheden","Explications au sujet de la détermination des quantités","Quantité",null,null,"Prix Total",null,null,null,null,null,null,null,null,null,null,null,null,null,null,null,null,null,null,null,null,null,null,null,null,null,null,null,null,null,null,null,null,null,null,null,null,null,null,null,null,null,null,null,"selected"]
[null,null,null,null,null,null,null,null,null,"BOFAS eigen","BOFAS vreemd","Totaal","BOFAS eigen","BOFAS vreemd","Totaal"]
["Postnr.","Omschrijving","Omschrijving","TP/FH/VH","Eenheid","EP - RO","EP","Toelichting mbt bepaling hoeveelheden","Explications au sujet de la détermination des quantités","Hoeveelheid",null,null,"Totaalprijs",null,null,null,null,null,null,null,null,null,null,null,null,null,null,null,null,null,null,null,null,null,null,null,null,null,null,null,null,null,null,null,null,null,null,null,null,null,null,null,null,null,null,null,"selected"]
[1,"VOORBEREIDENDE WERKEN, VEILIGHEIDSVOORZIENINGEN EN WERFINSTALLATIE","TRAVAUX PREPARATOIRES, MESURES DE SECURITE ET INSTALLATION DE CHANTIER",null,null,null,null,null,null,null,null,null,null,null,null,null,null,null,null,null,null,null,null,null,null,null,null,null,null,null,null,null,null,null,null,null,null,null,null,null,null,null,null,null,null,null,null,null,null,null,null,null,null,null,null,null,{"$f":"COUNTIF(BE12:BE69,1)","v":0},{"$f":"IF(ISERROR(SEARCH(\".\",$A11,1)),100,SEARCH(\".\",$A11,1))","v":100},{"$f":"LEFT($A11,BF11-1)","v":"1"},{"$f":"IF(ISERROR(SEARCH(\".\",$A11,BF11+1)),100,SEARCH(\".\",$A11,BF11+1))","v":100},{"$f":"LEFT($A11,BH11-1)","v":"1"},{"$f":"IF(ISERROR(SEARCH(\".\",$A11,BH11+1)),100,SEARCH(\".\",$A11,BH11+1))","v":100},{"$f":"LEFT($A11,BJ11-1)","v":"1"},{"$f":"IF(ISERROR(SEARCH(\".\",$A11,BJ11+1)),100,SEARCH(\".\",$A11,BJ11+1))","v":100},{"$f":"LEFT($A11,BL11-1)","v":"1"},{"$f":"IF(ISERROR(SEARCH(\".\",$A11,BL11+1)),100,SEARCH(\".\",$A11,BL11+1))","v":100},{"$f":"LEFT($A11,BN11-1)","v":"1"},{"$f":"LEN($A11)-LEN(SUBSTITUTE($A11,\".\",\"\"))","v":0},{"$f":"IF(BP11=0,COUNTIF(BG$11:BG$454,BG11),IF(BP11=1,COUNTIF(BI$11:BI$454,BI11),IF(BP11=2,COUNTIF(BK$11:BK$454,BK11),IF(BP11=3,COUNTIF(BM$11:BM$454,BM11),1))))","v":1},{"$f":"IF(ISBLANK(AH11),CONCATENATE(\"+AO\",TEXT(ROW(BS11)+1,0)),IF(ISTEXT(AJ11),CONCATENATE(\"=if($i\",TEXT(ROW(BS11),0),\"<>0;1;0)\"),CONCATENATE(\"=countif(AO\",TEXT(ROW(BS11)+1,0),\":AO\",TEXT(ROW(BS11)+BQ11-1,0),\";1)\")))","v":"+AO12"},{"$f":"COUNTIF(BS12:BS68,1)","v":0}]
["1.1","PLAATSBESCHRIJVING","ETAT DES LIEUX",null,null,null,null,null,null,null,null,null,null,null,null,null,null,null,null,null,null,null,null,null,null,null,null,null,null,null,null,null,null,null,null,null,null,null,null,null,null,null,null,null,null,null,null,null,null,null,null,null,null,null,null,null,{"$f":"COUNTIF(BE13:BE16,1)","v":0}]
["1.1.1","Openbaar terrein*","Domaine public*","TP",null,563,null,1,1,null,null,{"$f":"+J13+K13","v":0},{"$f":"IF(AND(ISTEXT($D13),ISNUMBER($G13)),ROUND(J13*$G13,2),\"\")","v":""},{"$f":"IF(AND(ISTEXT($D13),ISNUMBER($G13)),ROUND(K13*$G13,2),\"\")","v":""},{"$f":"IF(AND(ISTEXT($D13),ISNUMBER($G13)),N13+M13,\"\")","v":""},null,null,null,null,null,null,null,null,null,null,null,null,null,null,null,null,null,null,null,null,null,null,null,null,null,null,null,null,null,null,null,null,null,null,null,null,null,null,null,null,null,{"$f":"IF($L13<>0,1,0)","v":0}]
["1.1.2","Woningen incl. aanpalende privé constructies (extern)","Habitations, y compris les constructions attenantes (externes)","VH","st",250,null,"minimaal alle woningen aanpalend de grondwerken","Au minimum, toutes les habitations jouxtant les terrassements.",null,null,{"$f":"+J14+K14","v":0},{"$f":"IF(AND(ISTEXT($D14),ISNUMBER($G14)),ROUND(J14*$G14,2),\"\")","v":""},{"$f":"IF(AND(ISTEXT($D14),ISNUMBER($G14)),ROUND(K14*$G14,2),\"\")","v":""},{"$f":"IF(AND(ISTEXT($D14),ISNUMBER($G14)),N14+M14,\"\")","v":""},null,null,null,null,null,null,null,null,null,null,null,null,null,null,null,null,null,null,null,null,null,null,null,null,null,null,null,null,null,null,null,null,null,null,null,null,null,null,null,null,null,0]
["1.1.3","Woningen incl. aanpalende privé constructies (intern)","Habitations, y compris les constructions attenantes (internes)","VH","st",438,null,"minimaal woning of appartement gelijkvloers naast ontgravingszone","Au minimum les rez-de-chaussée bordant la fosse d'excavation",null,null,0,"","","",null,null,null,null,null,null,null,null,null,null,null,null,null,null,null,null,null,null,null,null,null,null,null,null,null,null,null,null,null,null,null,null,null,null,null,null,null,null,null,null,null,0]
["1.1.4","Andere constructies*","Autres constructions* ","TP",null,500,null,"andere constructie (bv. toonzaal) nabij ontgravingszone","Autre construction (p ex salle d'exposition) jouxtant la zone d'excavation",null,null,0,"","","",null,null,null,null,null,null,null,null,null,null,null,null,null,null,null,null,null,null,null,null,null,null,null,null,null,null,null,null,null,null,null,null,null,null,null,null,null,null,null,null,null,0]
["1.2","AFSLUITING VAN DE BOUWPLAATS","CLOTURE DE CHANTIER",null,null,null,null,null,null,null,null,0,"","","",null,null,null,null,null,null,null,null,null,null,null,null,null,null,null,null,null,null,null,null,null,null,null,null,null,null,null,null,null,null,null,null,null,null,null,null,null,null,null,null,null,{"$f":"COUNTIF(BE18:BE19,1)","v":0}]
["1.2.1","Mob/demob en huur exclusief periode in-situ","Mob/démob et location travaux  in situ exclus","FH","m",12.6,null,"rondom de werfzone cfr figuur CT","Autour de la zone de chantier cfr figure GC",null,null,0,"","","",null,null,null,null,null,null,null,null,null,null,null,null,null,null,null,null,null,null,null,null,null,null,null,null,null,null,null,null,null,null,null,null,null,null,null,null,null,null,null,null,null,0]
["1.2.2","Huur gedurende de in-situ sanering*","Location pendant l’in situ*","VH","wk",19.7,null,"duurtijd in-situ","durée des travaux IS",null,null,{"$f":"+J19+K19","v":0},"","","",null,null,null,null,null,null,null,null,null,null,null,null,null,null,null,null,null,null,null,null,null,null,null,null,null,null,null,null,null,null,null,null,null,null,null,null,null,null,null,null,null,0]
["1.3","OPSTELLEN VERKEERSPLAN, LEVEREN EN PLAATSEN SIGNALISATIE","ELABORATION D'UN PLAN DE CIRCULATION, LIVRAISON ET PLACEMENT SIGNALISATION",null,null,null,null,null,null,null,null,0,"","","",null,null,null,null,null,null,null,null,null,null,null,null,null,null,null,null,null,null,null,null,null,null,null,null,null,null,null,null,null,null,null,null,null,null,null,null,null,null,null,null,null,{"$f":"COUNTIF(BE21:BE24,1)","v":0}]
["1.3.a","Aanvraag signalisatievergunning bij inname openbaar domein","Demande de permis de signalisation en cas d’emprise sur le domaine public","TP",null,620,null,"1 indien inname openbaar domein","si emprise du domaine public, 1",null,null,{"$f":"+J21+K21","v":0},"","","",null,null,null,null,null,null,null,null,null,null,null,null,null,null,null,null,null,null,null,null,null,null,null,null,null,null,null,null,null,null,null,null,null,null,null,null,null,null,null,null,null,{"$f":"IF($L21<>0,1,0)","v":0}]
["1.3.b","Mob/demob en huur signalisatie","Mob/démob et location de la signalisation","TP",null,814,null,1,1,null,null,{"$f":"+J22+K22","v":0},"","","",null,null,null,null,null,null,null,null,null,null,null,null,null,null,null,null,null,null,null,null,null,null,null,null,null,null,null,null,null,null,null,null,null,null,null,null,null,null,null,null,null,{"$f":"IF($L22<>0,1,0)","v":0}]
["1.3.c","Mob/demob tijdelijke verkeerslichten","Mob/démob des feux de signalisation temporaires","TP",null,481,null,"1 indien van toepassing","si d'application 1",null,null,{"$f":"+J23+K23","v":0},"","","",null,null,null,null,null,null,null,null,null,null,null,null,null,null,null,null,null,null,null,null,null,null,null,null,null,null,null,null,null,null,null,null,null,null,null,null,null,null,null,null,null,0]
["1.3.d","Huur tijdelijke verkeerslichten","Location des feux de signalisation temporaire","VH","wk",237,null,null,null,null,null,{"$f":"+J24+K24","v":0},"","","",null,null,null,null,null,null,null,null,null,null,null,null,null,null,null,null,null,null,null,null,null,null,null,null,null,null,null,null,null,null,null,null,null,null,null,null,null,null,null,null,null,0]
["1.4","BESCHERMING, HOUSEKEEPING EN HERSTELLINGEN","NETTOYAGE ET MAINTENANCE DU CHANTIER",null,null,null,null,null,null,null,null,0,"","","",null,null,null,null,null,null,null,null,null,null,null,null,null,null,null,null,null,null,null,null,null,null,null,null,null,null,null,null,null,null,null,null,null,null,null,null,null,null,null,null,null,{"$f":"COUNTIF(BE26:BE27,1)","v":0}]
["1.4.a","Bescherming, housekeeping en herstellingen","Protection, entretien et réparations","TP",null,1000,null,1,1,null,null,{"$f":"+J26+K26","v":0},"","","",null,null,null,null,null,null,null,null,null,null,null,null,null,null,null,null,null,null,null,null,null,null,null,null,null,null,null,null,null,null,null,null,null,null,null,null,null,null,null,null,null,{"$f":"IF($L26<>0,1,0)","v":0}]
["1.4.b","Mob/demob en huur rijplaten ter bescherming van verhardingen*","Mob/démob et location plaques de roulage pour protection des revêtements*","TP",null,782,null,"1 indien van toepassing","si d'application 1",null,null,{"$f":"+J27+K27","v":0},"","","",null,null,null,null,null,null,null,null,null,null,null,null,null,null,null,null,null,null,null,null,null,null,null,null,null,null,null,null,null,null,null,null,null,null,null,null,null,null,null,null,null,{"$f":"IF($L27<>0,1,0)","v":0}]
["1.5","WERFKETEN EN SANITAIRE VOORZIENINGEN","BARAQUEMENTS DE CHANTIER ET INSTALLATION SANITAIRE",null,null,null,null,null,null,null,null,0,"","","",null,null,null,null,null,null,null,null,null,null,null,null,null,null,null,null,null,null,null,null,null,null,null,null,null,null,null,null,null,null,null,null,null,null,null,null,null,null,null,null,null,{"$f":"COUNTIF(BE29:BE31,1)","v":0}]
["1.5.a","Mob/demob, huur en onderhoud werfkeet","Mob/démob, location et entretien du bureau de chantier","TP",null,1260,null,"1 uitgezonderd indien lokaal beschikbaar","1 sauf si un local est disponible",null,null,0,"","","",null,null,null,null,null,null,null,null,null,null,null,null,null,null,null,null,null,null,null,null,null,null,null,null,null,null,null,null,null,null,null,null,null,null,null,null,null,null,null,null,null,{"$f":"IF($L29<>0,1,0)","v":0}]
["1.5.b","Inrichten en onderhoud beschikbare ruimte als werfkeet","Aménagement et entretien d’un local mis à disposition comme bureau de chantier","TP",null,801,null,"1 indien lokaal beschikbaar","1 si un local est disponible",null,null,0,"","","",null,null,null,null,null,null,null,null,null,null,null,null,null,null,null,null,null,null,null,null,null,null,null,null,null,null,null,null,null,null,null,null,null,null,null,null,null,null,null,null,null,{"$f":"IF($L30<>0,1,0)","v":0}]
["1.5.c","Mob/demob, huur en onderhoud werftoilet","Mob/démob, location et entretien de toilettes de chantier","TP",null,267,null,"1 indien van toepassing","si d'application 1",null,null,0,"","","",null,null,null,null,null,null,null,null,null,null,null,null,null,null,null,null,null,null,null,null,null,null,null,null,null,null,null,null,null,null,null,null,null,null,null,null,null,null,null,null,null,{"$f":"IF($L31<>0,1,0)","v":0}]
["1.6","NUTSLEIDINGEN","CONDUITES D'UTILITE PUBLIQUE (IMPETRANTS)",null,null,null,null,null,null,null,null,0,"","","",null,null,null,null,null,null,null,null,null,null,null,null,null,null,null,null,null,null,null,null,null,null,null,null,null,null,null,null,null,null,null,null,null,null,null,null,null,null,null,null,null,{"$f":"COUNTIF(BE33:BE42,1)","v":0}]
["1.6.1","Opvragen en opzoeken nutsleidingen (incl.proefsleuven)*","Demande et recherche des impétrants (y compris les tranchées de reconnaissance)*","TP",null,752,null,1,1,null,null,0,"","","",null,null,null,null,null,null,null,null,null,null,null,null,null,null,null,null,null,null,null,null,null,null,null,null,null,null,null,null,null,null,null,null,null,null,null,null,null,null,null,null,null,{"$f":"IF($L33<>0,1,0)","v":0}]
["1.6.2","Tijdelijke maatregelen huisaansluitingen*","Mesures temporaires pour les raccordements domestiques*","TP",null,689,null,"1 uitgez. indien geen huisaansluitingen in ontgravingszone","1 sauf si aucun raccordement dans la zone d'excavation",null,null,0,"","","",null,null,null,null,null,null,null,null,null,null,null,null,null,null,null,null,null,null,null,null,null,null,null,null,null,null,null,null,null,null,null,null,null,null,null,null,null,null,null,null,null,{"$f":"IF($L34<>0,1,0)","v":0}]
["1.6.3","Tijdelijke maatregelen aansluiting riolering*","Mesures temporaires pour les raccordements d’égouts*","TP",null,563,null,"1 uitgez. indien geen huisaansluitingen in ontgravingszone","1 sauf si aucun raccordement dans la zone d'excavation",null,null,{"$f":"+J35+K35","v":0},"","","",null,null,null,null,null,null,null,null,null,null,null,null,null,null,null,null,null,null,null,null,null,null,null,null,null,null,null,null,null,null,null,null,null,null,null,null,null,null,null,null,null,{"$f":"IF($L35<>0,1,0)","v":0}]
["1.6.4","Ophangen of verplaatsen van openbare leidingen ","Suspension ou déplacement de conduites publiques",null,null,null,null,null,null,null,null,0,"","","",null,null,null,null,null,null,null,null,null,null,null,null,null,null,null,null,null,null,null,null,null,null,null,null,null,null,null,null,null,null,null,null,null,null,null,null,null,null,null,null,null,{"$f":"COUNTIF(BE37:BE38,1)","v":0}]
["1.6.4.1","Coördinatie met openbare nutsmaatschappijen*","Coordination avec les sociétés impétrantes*","TP",null,465,null,"1 ingeval openbare nutsleidingen ondergraven","1 en cas d'excavation de conduites d'utilité publique",null,null,0,"","","",null,null,null,null,null,null,null,null,null,null,null,null,null,null,null,null,null,null,null,null,null,null,null,null,null,null,null,null,null,null,null,null,null,null,null,null,null,null,null,null,null,{"$f":"IF($L37<>0,1,0)","v":0}]
["1.6.4.2","Ophangen van openbare nutsleidingen*","Soutien de conduites publiques*","TP",null,689,null,"1 ingeval openbare nutsleidingen ondergraven","1 en cas d'excavation de conduites d'utilité publique",null,null,0,"","","",null,null,null,null,null,null,null,null,null,null,null,null,null,null,null,null,null,null,null,null,null,null,null,null,null,null,null,null,null,null,null,null,null,null,null,null,null,null,null,null,null,{"$f":"IF($L38<>0,1,0)","v":0}]
["1.6.5","Tijdelijk onderbreken openbare riolering","Interruption temporaire de l'égout public",null,null,null,null,null,null,null,null,0,"","","",null,null,null,null,null,null,null,null,null,null,null,null,null,null,null,null,null,null,null,null,null,null,null,null,null,null,null,null,null,null,null,null,null,null,null,null,null,null,null,null,null,{"$f":"COUNTIF(BE40:BE42,1)","v":0}]
["1.6.5.a","Opbreken*","A demonter*","VH","m",62.5,null,"aantal m leiding op te breken","longueur de la conduite à démonter",null,null,0,"","","",null,null,null,null,null,null,null,null,null,null,null,null,null,null,null,null,null,null,null,null,null,null,null,null,null,null,null,null,null,null,null,null,null,null,null,null,null,null,null,null,null,{"$f":"IF($L40<>0,1,0)","v":0}]
["1.6.5.b","Herstellen*","A réparer*","VH","m",157,null,"idem voorgaande post","idem poste précédent ",null,null,0,"","","",null,null,null,null,null,null,null,null,null,null,null,null,null,null,null,null,null,null,null,null,null,null,null,null,null,null,null,null,null,null,null,null,null,null,null,null,null,null,null,null,null,{"$f":"IF($L41<>0,1,0)","v":0}]
["1.6.5.c","Instandhouding waterafvoer en opnieuw aansluiten*","Maintien de l’évacuation des eaux et renouvellement du raccordement*","TP",null,1000,null,"1 indien post hierboven geactiveerd","1 si le poste ci-dessus est activé ",null,null,0,"","","",null,null,null,null,null,null,null,null,null,null,null,null,null,null,null,null,null,null,null,null,null,null,null,null,null,null,null,null,null,null,null,null,null,null,null,null,null,null,null,null,null,{"$f":"IF($L42<>0,1,0)","v":0}]
["1.7","STROOMAGGREGAAT (INCLUSIEF BRANDSTOFTANK)","GROUPE ELECTROGENE (CITERNE DE CARBURANT INCLUS)",null,null,null,null,null,null,null,null,0,"","","",null,null,null,null,null,null,null,null,null,null,null,null,null,null,null,null,null,null,null,null,null,null,null,null,null,null,null,null,null,null,null,null,null,null,null,null,null,null,null,null,null,{"$f":"COUNTIF(BE44:BE50,1)","v":0}]
["1.7.1","Stroomaggregaat groot verbruik","Groupe électrogène forte consommation",null,null,null,null,null,null,null,null,0,"","","",null,null,null,null,null,null,null,null,null,null,null,null,null,null,null,null,null,null,null,null,null,null,null,null,null,null,null,null,null,null,null,null,null,null,null,null,null,null,null,null,null,{"$f":"COUNTIF(BE45:BE47,1)","v":0}]
["1.7.1.a","mob/demob*","mob/démob*","TP",null,282,null,"indien geen IS en geen werfaansluiting electriciteit","au cas où pas de IS, ni de raccordement électrique du chantier",null,null,0,"","","",null,null,null,null,null,null,null,null,null,null,null,null,null,null,null,null,null,null,null,null,null,null,null,null,null,null,null,null,null,null,null,null,null,null,null,null,null,null,null,null,null,{"$f":"IF($L45<>0,1,0)","v":0}]
["1.7.1.b","huur en onderhoud (> 40 draaiuren per week)*","location et entretien (> 40 heures de fonctionnement par semaine)*","VH","wk",539,null,"Duur bemaling","Durée du rabattement",null,null,0,"","","",null,null,null,null,null,null,null,null,null,null,null,null,null,null,null,null,null,null,null,null,null,null,null,null,null,null,null,null,null,null,null,null,null,null,null,null,null,null,null,null,null,{"$f":"IF($L46<>0,1,0)","v":0}]
["1.7.1.c","huur en onderhoud (<= 40 draaiuren per week)*","location et entretien (<= 40 heures de fonctionnement par semaine)*","VH","wk",238,null,"Duur CT exclusief bemaling","Durée des travaux GC - rabattement exclus",null,null,0,"","","",null,null,null,null,null,null,null,null,null,null,null,null,null,null,null,null,null,null,null,null,null,null,null,null,null,null,null,null,null,null,null,null,null,null,null,null,null,null,null,null,null,{"$f":"IF($L47<>0,1,0)","v":0}]
["1.7.2","Stroomaggregaat klein verbruik","Groupe électrogène faible consommation",null,null,null,null,null,null,null,null,0,"","","",null,null,null,null,null,null,null,null,null,null,null,null,null,null,null,null,null,null,null,null,null,null,null,null,null,null,null,null,null,null,null,null,null,null,null,null,null,null,null,null,null,{"$f":"COUNTIF(BE49:BE50,1)","v":0}]
["1.7.2.a","Mob/demob","Mob/démob","TP",null,187,null,"indien geen IS, geen aggregaat groot verbruik en geen werfaansluiting electriciteit","au cas où pas de IS, ni de groupe forte consommation, ni de raccordement électrique du chantier",null,null,0,"","","",null,null,null,null,null,null,null,null,null,null,null,null,null,null,null,null,null,null,null,null,null,null,null,null,null,null,null,null,null,null,null,null,null,null,null,null,null,null,null,null,null,{"$f":"IF($L49<>0,1,0)","v":0}]
["1.7.2.b","Huur en onderhoud","Location et entretien","VH","wk",143,null,"Duur CT werken","Durée des travaux GC",null,null,0,"","","",null,null,null,null,null,null,null,null,null,null,null,null,null,null,null,null,null,null,null,null,null,null,null,null,null,null,null,null,null,null,null,null,null,null,null,null,null,null,null,null,null,{"$f":"IF($L50<>0,1,0)","v":0}]
["1.8","WERFAANSLUITNG ELEKTRICITEIT","RACCORDEMENT ELECTRIQUE DU CHANTIER",null,null,null,null,null,null,null,null,0,"","","",null,null,null,null,null,null,null,null,null,null,null,null,null,null,null,null,null,null,null,null,null,null,null,null,null,null,null,null,null,null,null,null,null,null,null,null,null,null,null,null,null,{"$f":"COUNTIF(BE52:BE57,1)","v":0}]
["1.8.1","Aftakken van bestaande installatie (incl. verdeelkast met teller)","Raccordement sur l’installation existante (y compris le placement d’une armoire électrique avec compteur) ","TP",null,500,null,"Indien beschikbaar en voor kleine vermogens (debiet <=5m³/u) en geen IS","Au cas où disponible et pour de faibles puissances (débit <=5m³/u) et pas de IS. ",null,null,0,"","","",null,null,null,null,null,null,null,null,null,null,null,null,null,null,null,null,null,null,null,null,null,null,null,null,null,null,null,null,null,null,null,null,null,null,null,null,null,null,null,null,null,{"$f":"IF($L52<>0,1,0)","v":0}]
["1.8.2","Coordinatie t.b.v. nieuwe aansluiting met dag- en nachtteller inclusief verdeelkast","Coordination pour un nouveau raccordement électrique avec un compteur bihoraire jour et nuit et une armoire de dérivation","TP",null,1180,null,"bij CT met aansluitend IS (huidige situatie)","lors de GC avec IS subséquent (situation actuelle)",null,null,0,"","","",null,null,null,null,null,null,null,null,null,null,null,null,null,null,null,null,null,null,null,null,null,null,null,null,null,null,null,null,null,null,null,null,null,null,null,null,null,null,null,null,null,{"$f":"IF($L53<>0,1,0)","v":0}]
["1.8.3","Verdeelkast ingeval aansluiting door BOFAS","Armoire électrique de chantier en cas de raccordement par BOFAS","TP",null,625,null,"bij CT met aansluitend IS (toekomstige situatie)","lors de GC avec IS subséquent (situation actuelle)",null,null,0,"","","",null,null,null,null,null,null,null,null,null,null,null,null,null,null,null,null,null,null,null,null,null,null,null,null,null,null,null,null,null,null,null,null,null,null,null,null,null,null,null,null,null,{"$f":"IF($L54<>0,1,0)","v":0}]
["1.8.4","Transformator 220-380","Transformateur (220V-380V)",null,null,null,null,null,null,null,null,0,"","","",null,null,null,null,null,null,null,null,null,null,null,null,null,null,null,null,null,null,null,null,null,null,null,null,null,null,null,null,null,null,null,null,null,null,null,null,null,null,null,null,null,{"$f":"COUNTIF(BE56:BE57,1)","v":0}]
["1.8.4.a","Mob/demob","Mob/démob","TP",null,126,null,"Indien enkel 220 V beschikbaar en geen stroomaggregaat","Au cas où seulement 220 V disponible et pas de groupe électrogène",null,null,0,"","","",null,null,null,null,null,null,null,null,null,null,null,null,null,null,null,null,null,null,null,null,null,null,null,null,null,null,null,null,null,null,null,null,null,null,null,null,null,null,null,null,null,{"$f":"IF($L56<>0,1,0)","v":0}]
["1.8.4.b","Huur en onderhoud","Location et entretien","VH","wk",68.900000000000006,null,"duur werken indien post hierboven geactiveerd","Durée des travaux si le poste ci-dessus activé",null,null,0,"","","",null,null,null,null,null,null,null,null,null,null,null,null,null,null,null,null,null,null,null,null,null,null,null,null,null,null,null,null,null,null,null,null,null,null,null,null,null,null,null,null,null,{"$f":"IF($L57<>0,1,0)","v":0}]
["1.9","OPZOEKEN FUNDERINGEN*","RECHERCHE DE FONDATIONS*","TP",null,401,null,"bij funderingen nabij ontgravingzone ","lorsque des fondations sont proches de la zone d'excavation  ",null,null,{"$f":"+J58+K58","v":0},"","","",null,null,null,null,null,null,null,null,null,null,null,null,null,null,null,null,null,null,null,null,null,null,null,null,null,null,null,null,null,null,null,null,null,null,null,null,null,null,null,null,null,{"$f":"IF($L58<>0,1,0)","v":0}]
["1.10","ZETTINGSMETINGEN EN SCHEURMETINGEN","MESURES DE TASSEMENT ET DE FISSURES",null,null,null,null,null,null,null,null,0,"","","",null,null,null,null,null,null,null,null,null,null,null,null,null,null,null,null,null,null,null,null,null,null,null,null,null,null,null,null,null,null,null,null,null,null,null,null,null,null,null,null,null,{"$f":"COUNTIF(BE60:BE63,1)","v":0}]
["1.10.1","Uitzetten en eerste inmeting","Placement et première mesure",null,null,null,null,null,null,null,null,0,"","","",null,null,null,null,null,null,null,null,null,null,null,null,null,null,null,null,null,null,null,null,null,null,null,null,null,null,null,null,null,null,null,null,null,null,null,null,null,null,null,null,null,{"$f":"COUNTIF(BE61:BE62,1)","v":0}]
["1.10.1.a","Plaatsen en inmeten zettingsbouten*","Placement et mesure de repères de tassement*","TP",null,563,null,"1 ifv stabiliteitstudie (grondwerken en grondwaterverlaging)","1 en fonction de l'étude de stabilité (terrassement et rabattement de l'eau souterraine) ",null,null,{"$f":"+J61+K61","v":0},"","","",null,null,null,null,null,null,null,null,null,null,null,null,null,null,null,null,null,null,null,null,null,null,null,null,null,null,null,null,null,null,null,null,null,null,null,null,null,null,null,null,null,{"$f":"IF($L61<>0,1,0)","v":0}]
["1.10.1.b","Plaatsen en aflezen scheurmeters*","Placement et lecture des fissuromètres*","TP",null,178,null,"enkel in combinatie met plaatsen en inmeten zettingsbouten","exclusivement en combinaison avec le poste précédent",null,null,{"$f":"+J62+K62","v":0},"","","",null,null,null,null,null,null,null,null,null,null,null,null,null,null,null,null,null,null,null,null,null,null,null,null,null,null,null,null,null,null,null,null,null,null,null,null,null,null,null,null,null,{"$f":"IF($L62<>0,1,0)","v":0}]
["1.10.2","Volgende meetcampagnes*","Campagnes de mesures suivantes*","VH","st",282,null,"ifv stabiliteitstudie en duur werken","en fonction de l'étude de stabilité et la durée des travaux. ",null,null,0,"","","",null,null,null,null,null,null,null,null,null,null,null,null,null,null,null,null,null,null,null,null,null,null,null,null,null,null,null,null,null,null,null,null,null,null,null,null,null,null,null,null,null,{"$f":"IF($L63<>0,1,0)","v":0}]
["1.11","VERZEKERINGEN*","ASSURANCES*","TP",null,1260,null,1,1,null,null,0,"","","",null,null,null,null,null,null,null,null,null,null,null,null,null,null,null,null,null,null,null,null,null,null,null,null,null,null,null,null,null,null,null,null,null,null,null,null,null,null,null,null,null,{"$f":"IF($L64<>0,1,0)","v":0}]
["1.12","LUCHTVERVERSING EN GEDWONGEN VENTILATIE","AERATION ET VENTILATION FORCEE",null,null,null,null,null,null,null,null,{"$f":"+J65+K65","v":0},"","","",null,null,null,null,null,null,null,null,null,null,null,null,null,null,null,null,null,null,null,null,null,null,null,null,null,null,null,null,null,null,null,null,null,null,null,null,null,null,null,null,null,{"$f":"COUNTIF(BE66:BE67,1)","v":0}]
["1.12.1","Plaatselijke afzuiging*","Ventilation forcée locale*","TP",null,932,null,"1 indien van toepassing","si d'application 1",null,null,{"$f":"+J66+K66","v":0},"","","",null,null,null,null,null,null,null,null,null,null,null,null,null,null,null,null,null,null,null,null,null,null,null,null,null,null,null,null,null,null,null,null,null,null,null,null,null,null,null,null,null,{"$f":"IF($L66<>0,1,0)","v":0}]
["1.12.2","Algemene gedwongen ventilatie*","Ventilation forcée générale*","TP",null,1740,null,"1 indien van toepassing","si d'application 1",null,null,{"$f":"+J67+K67","v":0},"","","",null,null,null,null,null,null,null,null,null,null,null,null,null,null,null,null,null,null,null,null,null,null,null,null,null,null,null,null,null,null,null,null,null,null,null,null,null,null,null,null,null,{"$f":"IF($L67<>0,1,0)","v":0}]
["1.13","OVERIGE VEILIGHEIDSMAATREGELEN*","AUTRES MESURES DE SECURITE*","TP",null,625,null,"1 Indien maatregelen in VGP","si mesures dans le PSS",null,null,0,"","","",null,null,null,null,null,null,null,null,null,null,null,null,null,null,null,null,null,null,null,null,null,null,null,null,null,null,null,null,null,null,null,null,null,null,null,null,null,null,null,null,null,{"$f":"IF($L68<>0,1,0)","v":0}]
["1.14","KWALITEITSAUDIT","AUDIT QUALITE","TP",null,194,null,"1 Indien BOFAS een audit vraagt","si BOFAS demande un audit",null,null,{"$f":"+J69+K69","v":0},"","","",null,null,null,null,null,null,null,null,null,null,null,null,null,null,null,null,null,null,null,null,null,null,null,null,null,null,null,null,null,null,null,null,null,null,null,null,null,null,null,null,null,{"$f":"IF($L69<>0,1,0)","v":0}]
[0,null,null,null,null,null,null,null,null,null,null,0,"","","",null,null,null,null,null,null,null,null,null,null,null,null,null,null,null,null,null,null,null,null,null,null,null,null,null,null,null,null,null,null,null,null,null,null,null,null,null,null,null,null,null,{"$f":"+BE71","v":0}]
[2,"AFBRAAKWERKEN","TRAVAUX DE DEMOLITION",null,null,null,null,null,null,null,null,0,"","","",null,null,null,null,null,null,null,null,null,null,null,null,null,null,null,null,null,null,null,null,null,null,null,null,null,null,null,null,null,null,null,null,null,null,null,null,null,null,null,null,null,{"$f":"COUNTIF(BE72:BE143,1)","v":0}]
["2.1","ROOIEN VAN BOMEN EN STRUIKGEWAS","ABATTAGE D'ARBRES ET ARRACHAGE DE BUISSONS",null,null,null,null,null,null,null,null,0,"","","",null,null,null,null,null,null,null,null,null,null,null,null,null,null,null,null,null,null,null,null,null,null,null,null,null,null,null,null,null,null,null,null,null,null,null,null,null,null,null,null,null,{"$f":"COUNTIF(BE73:BE74,1)","v":0}]
["2.1.a","Bomen met een stamomtrek > 50 cm","Arbre d'une circonférence > 50 cm","VH","st",187,null,null,null,null,null,0,"","","",null,null,null,null,null,null,null,null,null,null,null,null,null,null,null,null,null,null,null,null,null,null,null,null,null,null,null,null,null,null,null,null,null,null,null,null,null,null,null,null,null,{"$f":"IF($L73<>0,1,0)","v":0}]
["2.1.b","Struikgewas ","Buisson","FH","m²",17.600000000000001,null,null,null,null,null,0,"","","",null,null,null,null,null,null,null,null,null,null,null,null,null,null,null,null,null,null,null,null,null,null,null,null,null,null,null,null,null,null,null,null,null,null,null,null,null,null,null,null,null,0]
["2.2","AFBRAAK GEBOUWEN","DEMOLITION DE BATIMENTS",null,null,null,null,null,null,null,null,0,"","","",null,null,null,null,null,null,null,null,null,null,null,null,null,null,null,null,null,null,null,null,null,null,null,null,null,null,null,null,null,null,null,null,null,null,null,null,null,null,null,null,null,{"$f":"COUNTIF(BE76:BE78,1)","v":0}]
["2.2.1","Afbraak gebouwen boven maaiveld*","Démolition de bâtiments au-dessus du niveau du sol*","TP",null,"nvt",null,null,null,null,null,0,"","","",null,null,null,null,null,null,null,null,null,null,null,null,null,null,null,null,null,null,null,null,null,null,null,null,null,null,null,null,null,null,null,null,null,null,null,null,null,null,null,null,null,0]
["2.2.2","Afbraak kelders*","Démolition de caves*","TP",null,"nvt",null,null,null,null,null,{"$f":"+J77+K77","v":0},"","","",null,null,null,null,null,null,null,null,null,null,null,null,null,null,null,null,null,null,null,null,null,null,null,null,null,null,null,null,null,null,null,null,null,null,null,null,null,null,null,null,null,{"$f":"IF($L77<>0,1,0)","v":0}]
["2.2.3","Afbraak asbesthoudende materialen*","Démolition de matériaux contenant de l’amiante*","TP",null,"nvt",null,null,null,null,null,{"$f":"+J78+K78","v":0},{"$f":"IF(AND(ISTEXT($D78),ISNUMBER($G78)),ROUND(J78*$G78,2),\"\")","v":""},{"$f":"IF(AND(ISTEXT($D78),ISNUMBER($G78)),ROUND(K78*$G78,2),\"\")","v":""},{"$f":"IF(AND(ISTEXT($D78),ISNUMBER($G78)),N78+M78,\"\")","v":""},null,null,null,null,null,null,null,null,null,null,null,null,null,null,null,null,null,null,null,null,null,null,null,null,null,null,null,null,null,null,null,null,null,null,null,null,null,null,null,null,null,0]
["2.3","AFBRAAK AFSLUITINGEN","DEMOLITION DE BARRIERES / CLOTURES","VH","m",15.1,null,null,null,null,null,0,"","","",null,null,null,null,null,null,null,null,null,null,null,null,null,null,null,null,null,null,null,null,null,null,null,null,null,null,null,null,null,null,null,null,null,null,null,null,null,null,null,null,null,0]
["2.4","AFBRAAK LUIFEL (metaal)","DEMOLITION DE L'AUVENT (métallique)","VH","m²",31.3,null,null,null,null,null,0,"","","",null,null,null,null,null,null,null,null,null,null,null,null,null,null,null,null,null,null,null,null,null,null,null,null,null,null,null,null,null,null,null,null,null,null,null,null,null,null,null,null,null,0]
["2.5","AFBRAAK EN AFVOER TOTEMS EN/OF PUBLICITEITSPAAL*","DEMOLITION DES TOTEMS ET/OU DES POTEAUX PUBLICITAIRES*","VH","st",375,null,null,null,null,null,0,"","","",null,null,null,null,null,null,null,null,null,null,null,null,null,null,null,null,null,null,null,null,null,null,null,null,null,null,null,null,null,null,null,null,null,null,null,null,null,null,null,null,null,0]
["2.6","AFBRAAK VERHARDING","DEMOLITION DU REVETEMENT",null,null,null,null,null,null,null,null,0,"","","",null,null,null,null,null,null,null,null,null,null,null,null,null,null,null,null,null,null,null,null,null,null,null,null,null,null,null,null,null,null,null,null,null,null,null,null,null,null,null,null,null,{"$f":"COUNTIF(BE83:BE93,1)","v":0}]
["2.6.a","Mob/demob zaagmachine","Mob/démob  scie de découpe asphalte et béton (sur chariot)","TP",null,136,null,"1 indien van toepassing","si d'application 1",null,null,{"$f":"+J83+K83","v":0},"","","",null,null,null,null,null,null,null,null,null,null,null,null,null,null,null,null,null,null,null,null,null,null,null,null,null,null,null,null,null,null,null,null,null,null,null,null,null,null,null,null,null,{"$f":"IF($L83<>0,1,0)","v":0}]
["2.6.b","Zaagsnede in asfalt","Sciage dans l'asphalte","VH","m",7.85,null,null,null,null,null,0,"","","",null,null,null,null,null,null,null,null,null,null,null,null,null,null,null,null,null,null,null,null,null,null,null,null,null,null,null,null,null,null,null,null,null,null,null,null,null,null,null,null,null,0]
["2.6.c","Zaagsnede in beton","Sciage dans du béton","VH","m",22.9,null,null,null,null,null,{"$f":"+J85+K85","v":0},"","","",null,null,null,null,null,null,null,null,null,null,null,null,null,null,null,null,null,null,null,null,null,null,null,null,null,null,null,null,null,null,null,null,null,null,null,null,null,null,null,null,null,{"$f":"IF($L85<>0,1,0)","v":0}]
["2.6.d","Supplement voor zaagsnede in beton: per cm meerdikte > 20 cm","supplément pour sciage dans du béton: par cm d’épaisseur > 20 cm","VH","cm.m",1.31,null,null,null,null,null,{"$f":"+J86+K86","v":0},"","","",null,null,null,null,null,null,null,null,null,null,null,null,null,null,null,null,null,null,null,null,null,null,null,null,null,null,null,null,null,null,null,null,null,null,null,null,null,null,null,null,null,{"$f":"IF($L86<>0,1,0)","v":0}]
["2.6.e","Opbreken asfaltverharding","Démolition d'un revêtement en asphalte","VH","m²",7.52,null,null,null,null,null,0,"","","",null,null,null,null,null,null,null,null,null,null,null,null,null,null,null,null,null,null,null,null,null,null,null,null,null,null,null,null,null,null,null,null,null,null,null,null,null,null,null,null,null,0]
["2.6.f","Opbreken ongewapende betonverharding","Démolition d'un revêtement en béton non-armé","VH","m²",15.1,null,null,null,null,null,0,"","","",null,null,null,null,null,null,null,null,null,null,null,null,null,null,null,null,null,null,null,null,null,null,null,null,null,null,null,null,null,null,null,null,null,null,null,null,null,null,null,null,null,0]
["2.6.g","Opbreken gewapende betonverharding","Démolition d'un revêtement en béton armé","VH","m²",19.600000000000001,null,null,null,null,null,{"$f":"+J89+K89","v":0},"","","",null,null,null,null,null,null,null,null,null,null,null,null,null,null,null,null,null,null,null,null,null,null,null,null,null,null,null,null,null,null,null,null,null,null,null,null,null,null,null,null,null,0]
["2.6.h","Opbreken verharding in betonstraatstenen","Démolition d'un revêtement de pavés en béton (clinckers)","VH","m²",7.52,null,null,null,null,null,0,"","","",null,null,null,null,null,null,null,null,null,null,null,null,null,null,null,null,null,null,null,null,null,null,null,null,null,null,null,null,null,null,null,null,null,null,null,null,null,null,null,null,null,0]
["2.6.i","Opbreken verharding in betontegels","Démolition d'un revêtement en dalles en béton","VH","m²",7.52,null,null,null,null,null,0,"","","",null,null,null,null,null,null,null,null,null,null,null,null,null,null,null,null,null,null,null,null,null,null,null,null,null,null,null,null,null,null,null,null,null,null,null,null,null,null,null,null,null,0]
["2.6.j","Opbreken verharding in kasseien","Démolition d’un revêtement en pavés de pierres naturelles","VH","m²",7.52,null,null,null,null,null,{"$f":"+J92+K92","v":0},"","","",null,null,null,null,null,null,null,null,null,null,null,null,null,null,null,null,null,null,null,null,null,null,null,null,null,null,null,null,null,null,null,null,null,null,null,null,null,null,null,null,null,{"$f":"IF($L92<>0,1,0)","v":0}]
["2.6.k","Opbreken steenslagverharding","Démolition d’un revêtement en pierres","VH","m²",4.38,null,null,null,null,null,0,"","","",null,null,null,null,null,null,null,null,null,null,null,null,null,null,null,null,null,null,null,null,null,null,null,null,null,null,null,null,null,null,null,null,null,null,null,null,null,null,null,null,null,0]
["2.7","NEUTRALISEREN EN VERWIJDEREN VAN TANKS EN LEIDINGEN","NEUTRALISATION ET EVACUATION DES CITERNES ET DES CONDUITES",null,null,null,null,null,null,null,null,0,"","","",null,null,null,null,null,null,null,null,null,null,null,null,null,null,null,null,null,null,null,null,null,null,null,null,null,null,null,null,null,null,null,null,null,null,null,null,null,null,null,null,null,{"$f":"COUNTIF(BE95:BE140,1)","v":0}]
["2.7.1","Ledigen LPG tanks*","Vidange des citernes LPG*","TP",null,"nvt",null,null,null,null,null,0,"","","",null,null,null,null,null,null,null,null,null,null,null,null,null,null,null,null,null,null,null,null,null,null,null,null,null,null,null,null,null,null,null,null,null,null,null,null,null,null,null,null,null,{"$f":"IF($L95<>0,1,0)","v":0}]
["2.7.2","Interventie vacuümwagen","Intervention d’un camion vacuum","VH","st",563,null,"Bij aanwijzigingen tanks of KWS niet goed gereinigd","Pour les citernes ou les séparateurs mal nettoyés",null,null,{"$f":"+J96+K96","v":0},"","","",null,null,null,null,null,null,null,null,null,null,null,null,null,null,null,null,null,null,null,null,null,null,null,null,null,null,null,null,null,null,null,null,null,null,null,null,null,null,null,null,null,{"$f":"IF($L96<>0,1,0)","v":0}]
["2.7.3","Afvoer en verwerken restfracties","Evacuation et traitement des fractions résiduaires",null,null,null,null,"Bij aanwijzigingen tanks of KWS niet goed gereinigd","Pour les citernes ou les séparateurs mal nettoyés",null,null,0,"","","",null,null,null,null,null,null,null,null,null,null,null,null,null,null,null,null,null,null,null,null,null,null,null,null,null,null,null,null,null,null,null,null,null,null,null,null,null,null,null,null,null,{"$f":"COUNTIF(BE98:BE100,1)","v":0}]
["2.7.3.a","Puur product (koolwaterstoffen)","Produit pur (hydrocarbures)","VH","l",0.26,null,"min. 100 l","min. 100 l",null,null,0,"","","",null,null,null,null,null,null,null,null,null,null,null,null,null,null,null,null,null,null,null,null,null,null,null,null,null,null,null,null,null,null,null,null,null,null,null,null,null,null,null,null,null,{"$f":"IF($L98<>0,1,0)","v":0}]
["2.7.3.b","Verontreinigd water","Eau contaminée","VH","l",0.19,null,"min. 10% van grootste compartiment","min. 10% du plus grand compartiment",null,null,0,"","","",null,null,null,null,null,null,null,null,null,null,null,null,null,null,null,null,null,null,null,null,null,null,null,null,null,null,null,null,null,null,null,null,null,null,null,null,null,null,null,null,null,{"$f":"IF($L99<>0,1,0)","v":0}]
["2.7.3.c","Slibresten (vast)","Boues résiduaires (solide)","VH","kg",0.63,null,"min. 100 kg","min. 100 kg",null,null,0,"","","",null,null,null,null,null,null,null,null,null,null,null,null,null,null,null,null,null,null,null,null,null,null,null,null,null,null,null,null,null,null,null,null,null,null,null,null,null,null,null,null,null,{"$f":"IF($L100<>0,1,0)","v":0}]
["2.7.4","Openen tanks zonder mangat","Ouverture des citernes sans trou d'homme","VH","st",1370,null,"Aantal compartimenten zonder mangat","Nombre de compartiments sans trou d'homme",null,null,0,"","","",null,null,null,null,null,null,null,null,null,null,null,null,null,null,null,null,null,null,null,null,null,null,null,null,null,null,null,null,null,null,null,null,null,null,null,null,null,null,null,null,null,{"$f":"IF($L101<>0,1,0)","v":0}]
["2.7.5","Reinigen en ontgassen van tanks, KWS en leidingen","Nettoyage et dégazage des citernes, du SH et des conduites",null,null,null,null,"Bij aanwijzigingen tanks of KWS niet goed gereinigd","Pour les citernes ou les séparateurs mal nettoyés",null,null,0,"","","",null,null,null,null,null,null,null,null,null,null,null,null,null,null,null,null,null,null,null,null,null,null,null,null,null,null,null,null,null,null,null,null,null,null,null,null,null,null,null,null,null,{"$f":"COUNTIF(BE103:BE111,1)","v":0}]
["2.7.5.a","   volume compartiment <= 2 m³","   volume compartiment <= 2 m³","VH","st",500,null,null,null,null,null,0,"","","",null,null,null,null,null,null,null,null,null,null,null,null,null,null,null,null,null,null,null,null,null,null,null,null,null,null,null,null,null,null,null,null,null,null,null,null,null,null,null,null,null,{"$f":"IF($L103<>0,1,0)","v":0}]
["2.7.5.b","   volume  compartiment >2 en <=5 m³","   volume  compartiment >2 en <=5 m³","VH","st",563,null,null,null,null,null,0,"","","",null,null,null,null,null,null,null,null,null,null,null,null,null,null,null,null,null,null,null,null,null,null,null,null,null,null,null,null,null,null,null,null,null,null,null,null,null,null,null,null,null,0]
["2.7.5.c","   volume  compartiment >5 en <=7 m³","   volume  compartiment >5 en <=7 m³","VH","st",625,null,null,null,null,null,0,"","","",null,null,null,null,null,null,null,null,null,null,null,null,null,null,null,null,null,null,null,null,null,null,null,null,null,null,null,null,null,null,null,null,null,null,null,null,null,null,null,null,null,0]
["2.7.5.d","   volume  compartiment >7 en <=9 m³","   volume  compartiment >7 en <=9 m³","VH","st",689,null,null,null,null,null,0,"","","",null,null,null,null,null,null,null,null,null,null,null,null,null,null,null,null,null,null,null,null,null,null,null,null,null,null,null,null,null,null,null,null,null,null,null,null,null,null,null,null,null,0]
["2.7.5.e","   volume  compartiment >9 en <=13 m³","   volume  compartiment >9 en <=13 m³","VH","st",752,null,null,null,null,null,0,"","","",null,null,null,null,null,null,null,null,null,null,null,null,null,null,null,null,null,null,null,null,null,null,null,null,null,null,null,null,null,null,null,null,null,null,null,null,null,null,null,null,null,0]
["2.7.5.f","   volume  compartiment >13 en <=20 m³","   volume  compartiment >13 en <=20 m³","VH","st",814,null,null,null,null,null,0,"","","",null,null,null,null,null,null,null,null,null,null,null,null,null,null,null,null,null,null,null,null,null,null,null,null,null,null,null,null,null,null,null,null,null,null,null,null,null,null,null,null,null,0]
["2.7.5.g","   volume  compartiment >20 en <=30 m³","   volume  compartiment >20 en <=30 m³","VH","st",876,null,null,null,null,null,0,"","","",null,null,null,null,null,null,null,null,null,null,null,null,null,null,null,null,null,null,null,null,null,null,null,null,null,null,null,null,null,null,null,null,null,null,null,null,null,null,null,null,null,0]
["2.7.5.h","   volume  compartiment >30 en <=50 m³","   volume  compartiment >30 en <=50 m³","VH","st",1000,null,null,null,null,null,0,"","","",null,null,null,null,null,null,null,null,null,null,null,null,null,null,null,null,null,null,null,null,null,null,null,null,null,null,null,null,null,null,null,null,null,null,null,null,null,null,null,null,null,0]
["2.7.5.i","   volume  compartiment >50 en <=100 m³","   volume  compartiment >50 en <=100 m³","VH","st",1370,null,null,null,null,null,0,"","","",null,null,null,null,null,null,null,null,null,null,null,null,null,null,null,null,null,null,null,null,null,null,null,null,null,null,null,null,null,null,null,null,null,null,null,null,null,null,null,null,null,0]
["2.7.6","Ontgassen van tanks door middel van koolzuurgas","Dégazage de citernes au moyen de gaz carbonique",null,null,null,null,"Bij aanwijzigingen tanks of KWS wel goed gereinigd","Pour les citernes ou les séparateurs bien nettoyés",null,null,0,"","","",null,null,null,null,null,null,null,null,null,null,null,null,null,null,null,null,null,null,null,null,null,null,null,null,null,null,null,null,null,null,null,null,null,null,null,null,null,null,null,null,null,{"$f":"COUNTIF(BE113:BE121,1)","v":0}]
["2.7.6.a","   volume compartiment <= 2 m³","   volume compartiment <= 2 m³","VH","st",187,null,null,null,null,null,0,"","","",null,null,null,null,null,null,null,null,null,null,null,null,null,null,null,null,null,null,null,null,null,null,null,null,null,null,null,null,null,null,null,null,null,null,null,null,null,null,null,null,null,{"$f":"IF($L113<>0,1,0)","v":0}]
["2.7.6.b","   volume  compartiment >2 en <=5 m³","   volume  compartiment >2 en <=5 m³","VH","st",220,null,null,null,null,null,0,"","","",null,null,null,null,null,null,null,null,null,null,null,null,null,null,null,null,null,null,null,null,null,null,null,null,null,null,null,null,null,null,null,null,null,null,null,null,null,null,null,null,null,0]
["2.7.6.c","   volume  compartiment >5 en <=7 m³","   volume  compartiment >5 en <=7 m³","VH","st",250,null,null,null,null,null,0,"","","",null,null,null,null,null,null,null,null,null,null,null,null,null,null,null,null,null,null,null,null,null,null,null,null,null,null,null,null,null,null,null,null,null,null,null,null,null,null,null,null,null,0]
["2.7.6.d","   volume  compartiment >7 en <=9 m³","   volume  compartiment >7 en <=9 m³","VH","st",282,null,null,null,null,null,0,"","","",null,null,null,null,null,null,null,null,null,null,null,null,null,null,null,null,null,null,null,null,null,null,null,null,null,null,null,null,null,null,null,null,null,null,null,null,null,null,null,null,null,0]
["2.7.6.e","   volume  compartiment >9 en <=13 m³","   volume  compartiment >9 en <=13 m³","VH","st",313,null,null,null,null,null,0,"","","",null,null,null,null,null,null,null,null,null,null,null,null,null,null,null,null,null,null,null,null,null,null,null,null,null,null,null,null,null,null,null,null,null,null,null,null,null,null,null,null,null,0]
["2.7.6.f","   volume  compartiment >13 en <=20 m³","   volume  compartiment >13 en <=20 m³","VH","st",375,null,null,null,null,null,0,"","","",null,null,null,null,null,null,null,null,null,null,null,null,null,null,null,null,null,null,null,null,null,null,null,null,null,null,null,null,null,null,null,null,null,null,null,null,null,null,null,null,null,0]
["2.7.6.g","   volume  compartiment >20 en <=30 m³","   volume  compartiment >20 en <=30 m³","VH","st",500,null,null,null,null,null,0,"","","",null,null,null,null,null,null,null,null,null,null,null,null,null,null,null,null,null,null,null,null,null,null,null,null,null,null,null,null,null,null,null,null,null,null,null,null,null,null,null,null,null,0]
["2.7.6.h","   volume  compartiment >30 en <=50 m³","   volume  compartiment >30 en <=50 m³","VH","st",633,null,null,null,null,null,0,"","","",null,null,null,null,null,null,null,null,null,null,null,null,null,null,null,null,null,null,null,null,null,null,null,null,null,null,null,null,null,null,null,null,null,null,null,null,null,null,null,null,null,0]
["2.7.6.i","   volume  compartiment >50 en <=100 m³","   volume  compartiment >50 en <=100 m³","VH","st",1020,null,null,null,null,null,0,"","","",null,null,null,null,null,null,null,null,null,null,null,null,null,null,null,null,null,null,null,null,null,null,null,null,null,null,null,null,null,null,null,null,null,null,null,null,null,null,null,null,null,0]
["2.7.7","Afbraak en afvoer toezichtputten op reservoirs en vulpunten","Démolition et évacuation des chambres de visites et des points de remplissage des citernes ","VH","st",187,null,"1 per compartiment + 1 voor ondergronds vulpunt ","1 par compartiment + 1 pour point de remplissage souterrain  ",null,null,0,"","","",null,null,null,null,null,null,null,null,null,null,null,null,null,null,null,null,null,null,null,null,null,null,null,null,null,null,null,null,null,null,null,null,null,null,null,null,null,null,null,null,null,0]
["2.7.8","Afkoppelen en verwijderen van de productleidingen, vulpunten en tankontluchtingen","Démantèlement et évacuation des conduites du produit, des points de remplissage et des évents des citernes",null,null,null,null,null,null,null,null,0,"","","",null,null,null,null,null,null,null,null,null,null,null,null,null,null,null,null,null,null,null,null,null,null,null,null,null,null,null,null,null,null,null,null,null,null,null,null,null,null,null,null,null,{"$f":"COUNTIF(BE124:BE125,1)","v":0}]
["2.7.8.a","Productleidingen en vulpunten","Conduites de produits et points de remplissage","TP",null,375,null,"1 ingeval 1 of meerdere tanks worden verwijderd","1 au cas où 1 ou plusieurs citernes sont évacuées ",null,null,0,"","","",null,null,null,null,null,null,null,null,null,null,null,null,null,null,null,null,null,null,null,null,null,null,null,null,null,null,null,null,null,null,null,null,null,null,null,null,null,null,null,null,null,0]
["2.7.8.b","Tankontluchtingen","Events des citernes","TP",null,180,null,"enkel op vraag van BOFAS","seulement sur demande de BOFAS",null,null,0,"","","",null,null,null,null,null,null,null,null,null,null,null,null,null,null,null,null,null,null,null,null,null,null,null,null,null,null,null,null,null,null,null,null,null,null,null,null,null,null,null,null,null,0]
["2.7.9","Vrijgraven, verwijderen en vernietigen tanks","Libération, extraction et destruction des citernes",null,null,null,null,"aantal te verwijderen tanks","nombre de citernes à évacuer",null,null,0,"","","",null,null,null,null,null,null,null,null,null,null,null,null,null,null,null,null,null,null,null,null,null,null,null,null,null,null,null,null,null,null,null,null,null,null,null,null,null,null,null,null,null,{"$f":"COUNTIF(BE127:BE135,1)","v":0}]
["2.7.9.a","   volume tank <= 2 m³","volume de la citerne <= 2 m³","VH","st",282,null,null,null,null,null,0,"","","",null,null,null,null,null,null,null,null,null,null,null,null,null,null,null,null,null,null,null,null,null,null,null,null,null,null,null,null,null,null,null,null,null,null,null,null,null,null,null,null,null,{"$f":"IF($L127<>0,1,0)","v":0}]
["2.7.9.b","   volume  tank >2 en <=5 m³","volume de la citerne >2 et <= 5 m³","VH","st",407,null,null,null,null,null,0,"","","",null,null,null,null,null,null,null,null,null,null,null,null,null,null,null,null,null,null,null,null,null,null,null,null,null,null,null,null,null,null,null,null,null,null,null,null,null,null,null,null,null,0]
["2.7.9.c","   volume  tank >5 en <=7 m³","volume de la citerne >5 et <= 7 m³","VH","st",532,null,null,null,null,null,0,"","","",null,null,null,null,null,null,null,null,null,null,null,null,null,null,null,null,null,null,null,null,null,null,null,null,null,null,null,null,null,null,null,null,null,null,null,null,null,null,null,null,null,0]
["2.7.9.d","   volume  tank >7 en <=9 m³","volume de la citerne >7 et <= 9 m³","VH","st",657,null,null,null,null,null,0,"","","",null,null,null,null,null,null,null,null,null,null,null,null,null,null,null,null,null,null,null,null,null,null,null,null,null,null,null,null,null,null,null,null,null,null,null,null,null,null,null,null,null,0]
["2.7.9.e","   volume  tank >9 en <=13 m³","volume de la citerne >9 et <= 13 m³","VH","st",782,null,null,null,null,null,0,"","","",null,null,null,null,null,null,null,null,null,null,null,null,null,null,null,null,null,null,null,null,null,null,null,null,null,null,null,null,null,null,null,null,null,null,null,null,null,null,null,null,null,0]
["2.7.9.f","   volume  tank >13 en <=20 m³","volume de la citerne >13 et <= 20 m³","VH","st",908,null,null,null,null,null,0,"","","",null,null,null,null,null,null,null,null,null,null,null,null,null,null,null,null,null,null,null,null,null,null,null,null,null,null,null,null,null,null,null,null,null,null,null,null,null,null,null,null,null,0]
["2.7.9.g","   volume  tank >20 en <=30 m³","volume de la citerne >20 et <= 30 m³","VH","st",1130,null,null,null,null,null,0,"","","",null,null,null,null,null,null,null,null,null,null,null,null,null,null,null,null,null,null,null,null,null,null,null,null,null,null,null,null,null,null,null,null,null,null,null,null,null,null,null,null,null,0]
["2.7.9.h","   volume  tank >30 en <=50 m³","volume de la citerne >30 et <= 50 m³","VH","st",1370,null,null,null,null,null,0,"","","",null,null,null,null,null,null,null,null,null,null,null,null,null,null,null,null,null,null,null,null,null,null,null,null,null,null,null,null,null,null,null,null,null,null,null,null,null,null,null,null,null,0]
["2.7.9.i","   volume  tank >50 en <=100 m³","volume de la citerne >50 et >= 100 m³","VH","st",1870,null,null,null,null,null,0,"","","",null,null,null,null,null,null,null,null,null,null,null,null,null,null,null,null,null,null,null,null,null,null,null,null,null,null,null,null,null,null,null,null,null,null,null,null,null,null,null,null,null,0]
["2.7.10","Slopen van ondergrondse kws-afscheiders","Démolition de séparateurs d'hydrocarbures souterrains","TP",null,625,null,"1 ingeval 1 of meerdere KWS te verwijderen","1 au cas où 1 ou plusieurs séparateurs sont évacués ",null,null,0,"","","",null,null,null,null,null,null,null,null,null,null,null,null,null,null,null,null,null,null,null,null,null,null,null,null,null,null,null,null,null,null,null,null,null,null,null,null,null,null,null,null,null,0]
["2.7.11","Meerkost voor verwijderen van opgevulde tanks","Coûts supplémentaire pour l'enlèvement de citernes inertées ",null,null,null,null,null,null,null,null,0,"","","",null,null,null,null,null,null,null,null,null,null,null,null,null,null,null,null,null,null,null,null,null,null,null,null,null,null,null,null,null,null,null,null,null,null,null,null,null,null,null,null,null,{"$f":"COUNTIF(BE138:BE140,1)","v":0}]
["2.7.11.a","Meerkost voor verwijderen van schuim*","Coût supplémentaire pour dégagement de mousse*","VH","m³",172,null,"volume opgeschuimde tanks","volume des citernes inertées à la mousse",null,null,0,"","","",null,null,null,null,null,null,null,null,null,null,null,null,null,null,null,null,null,null,null,null,null,null,null,null,null,null,null,null,null,null,null,null,null,null,null,null,null,null,null,null,null,{"$f":"IF($L138<>0,1,0)","v":0}]
["2.7.11.b","Meerkost voor verwijderen van beton","Coût supplémentaire pour dégagement de béton","VH","m³",157,null,"volume tanks gevuld met beton","volume des citernes inertées au béton",null,null,{"$f":"+J139+K139","v":0},"","","",null,null,null,null,null,null,null,null,null,null,null,null,null,null,null,null,null,null,null,null,null,null,null,null,null,null,null,null,null,null,null,null,null,null,null,null,null,null,null,null,null,{"$f":"IF($L139<>0,1,0)","v":0}]
["2.7.11.c","Meerkost voor verwijderen van zand, puinafval of zandcement","Coût supplémentaire pour dégagement de sable, briquaillons ou sable-ciment","VH","m³",126,null,"volumetanks gevuld met zand, puin of zandcement","volume des citernes inertées au sable, briquaillons, sable-ciment",null,null,0,"","","",null,null,null,null,null,null,null,null,null,null,null,null,null,null,null,null,null,null,null,null,null,null,null,null,null,null,null,null,null,null,null,null,null,null,null,null,null,null,null,null,null,{"$f":"IF($L140<>0,1,0)","v":0}]
["2.8","SLOPEN VAN ONDERGRONDSE MASSIEVEN","DEMOLITION DES MASSIFS DE FONDATIONS SOUTERRAINS",null,null,null,null,null,null,null,null,0,"","","",null,null,null,null,null,null,null,null,null,null,null,null,null,null,null,null,null,null,null,null,null,null,null,null,null,null,null,null,null,null,null,null,null,null,null,null,null,null,null,null,null,{"$f":"COUNTIF(BE142:BE143,1)","v":0}]
["2.8.a","Slopen van betonnen massieven > 0,5 m³","Démolition de massifs bétonnés armés et non armés  > 0,5 m³","VH","m³",126,null,"o.m ballastplaten, funderingsmassieven","entre autres dalles de lestage, massifs de fondation ",null,null,0,{"$f":"IF(AND(ISTEXT($D142),ISNUMBER($G142)),ROUND(J142*$G142,2),\"\")","v":""},{"$f":"IF(AND(ISTEXT($D142),ISNUMBER($G142)),ROUND(K142*$G142,2),\"\")","v":""},{"$f":"IF(AND(ISTEXT($D142),ISNUMBER($G142)),N142+M142,\"\")","v":""},null,null,null,null,null,null,null,null,null,null,null,null,null,null,null,null,null,null,null,null,null,null,null,null,null,null,null,null,null,null,null,null,null,null,null,null,null,null,null,null,null,{"$f":"IF($L142<>0,1,0)","v":0}]
["2.8.b","Slopen van metselwerk massieven > 0,5 m³","Démolition de massifs maçonnés > 0,5 m³","VH","m³",93.9,null,null,null,null,null,0,"","","",null,null,null,null,null,null,null,null,null,null,null,null,null,null,null,null,null,null,null,null,null,null,null,null,null,null,null,null,null,null,null,null,null,null,null,null,null,null,null,null,null,{"$f":"IF($L143<>0,1,0)","v":0}]
[0,null,null,null,null,null,null,null,null,null,null,0,"","","",null,null,null,null,null,null,null,null,null,null,null,null,null,null,null,null,null,null,null,null,null,null,null,null,null,null,null,null,null,null,null,null,null,null,null,null,null,null,null,null,null,{"$f":"+BE145","v":0}]
[3,"BEMALING","RABATTEMENT DE L'EAU SOUTERRAINE",null,null,null,null,null,null,null,null,0,"","","",null,null,null,null,null,null,null,null,null,null,null,null,null,null,null,null,null,null,null,null,null,null,null,null,null,null,null,null,null,null,null,null,null,null,null,null,null,null,null,null,null,{"$f":"COUNTIF(BE146:BE147,1)","v":0}]
["3.1","BRONBEMALING*","RABATTEMENT PAR PUITS DE POMPAGE*","TP",null,3280,null,"ingeval grondwaterverlaging in doorlatende grond","en cas de rabattement dans un sol perméable",null,null,0,"","","",null,null,null,null,null,null,null,null,null,null,null,null,null,null,null,null,null,null,null,null,null,null,null,null,null,null,null,null,null,null,null,null,null,null,null,null,null,null,null,null,null,{"$f":"IF($L146<>0,1,0)","v":0}]
["3.2","OPEN PUT BEMALING*","POMPAGE EN FOND DE FOUILLE*","TP",null,876,null,"ingeval grondwaterverlaging in weinig doorlatende grond","en cas de rabattement dans un sol peu perméable",null,null,0,"","","",null,null,null,null,null,null,null,null,null,null,null,null,null,null,null,null,null,null,null,null,null,null,null,null,null,null,null,null,null,null,null,null,null,null,null,null,null,null,null,null,null,{"$f":"IF($L147<>0,1,0)","v":0}]
[0,null,null,null,null,null,null,null,null,null,null,{"$f":"+J148+K148","v":0},"","","",null,null,null,null,null,null,null,null,null,null,null,null,null,null,null,null,null,null,null,null,null,null,null,null,null,null,null,null,null,null,null,null,null,null,null,null,null,null,null,null,null,{"$f":"+BE149","v":0}]
[4,"SELECTIEVE DRIJFLAAGRECUPERATIE MET EEN EXPLOSIEVEILIGE POMP","RECUPERATION SELECTIVE DU SURNAGEANT A L'AIDE D'UNE POMPE ANTI-DEFLAGRANTE",null,null,null,null,"Bij drijflaagverwijdering in doorlatende grond","lors de la récupération de couche surnageante en sol perméable ",null,null,0,"","","",null,null,null,null,null,null,null,null,null,null,null,null,null,null,null,null,null,null,null,null,null,null,null,null,null,null,null,null,null,null,null,null,null,null,null,null,null,null,null,null,null,{"$f":"COUNTIF(BE150:BE151,1)","v":0}]
["4.a","Mob/demob explosieveilige pomp","Mob/démob de la pompe antidéflagrante","TP",null,476,null,"1 indien selectieve drijflaagverwijdering door pompen","1 si récupération sélectivede couche surnageante par pompage ",null,null,0,"","","",null,null,null,null,null,null,null,null,null,null,null,null,null,null,null,null,null,null,null,null,null,null,null,null,null,null,null,null,null,null,null,null,null,null,null,null,null,null,null,null,null,{"$f":"IF($L150<>0,1,0)","v":0}]
["4.b","Afpompen drijflaag","Pompage de la couche surnageante","VH","u",100,null,"ifv hoeveelheid drijflaag ","en fonction de la quantité de couche surnageante  ",null,null,0,"","","",null,null,null,null,null,null,null,null,null,null,null,null,null,null,null,null,null,null,null,null,null,null,null,null,null,null,null,null,null,null,null,null,null,null,null,null,null,null,null,null,null,{"$f":"IF($L151<>0,1,0)","v":0}]
[0,null,null,null,null,null,null,null,null,null,null,{"$f":"+J152+K152","v":0},"","","",null,null,null,null,null,null,null,null,null,null,null,null,null,null,null,null,null,null,null,null,null,null,null,null,null,null,null,null,null,null,null,null,null,null,null,null,null,null,null,null,null,{"$f":"+BE153","v":0}]
[5,"BESCHOEIINGEN","SOUTENEMENTS",null,null,null,null,"Ifv stabiliteitstudie","en fonction de l'étude de stabilité ",null,null,0,"","","",null,null,null,null,null,null,null,null,null,null,null,null,null,null,null,null,null,null,null,null,null,null,null,null,null,null,null,null,null,null,null,null,null,null,null,null,null,null,null,null,null,{"$f":"COUNTIF(BE154:BE166,1)","v":0}]
["5.1","Damwand","Paroi de palplanches",null,null,null,null,null,null,null,null,0,"","","",null,null,null,null,null,null,null,null,null,null,null,null,null,null,null,null,null,null,null,null,null,null,null,null,null,null,null,null,null,null,null,null,null,null,null,null,null,null,null,null,null,{"$f":"COUNTIF(BE155:BE157,1)","v":0}]
["5.1.a","Mob/demob*","Mob/démob*","TP",null,6250,null,"1 indien van toepassing","si d'application 1",null,null,0,"","","",null,null,null,null,null,null,null,null,null,null,null,null,null,null,null,null,null,null,null,null,null,null,null,null,null,null,null,null,null,null,null,null,null,null,null,null,null,null,null,null,null,{"$f":"IF($L155<>0,1,0)","v":0}]
["5.1.b","Lengte te beschoeien wand*","Mètres courants de paroi à mettre en place*","VH","m",752,null,"meters wand te stabiliseren met damwand","mètres de paroi à stabiliser par palplanches ",null,null,0,"","","",null,null,null,null,null,null,null,null,null,null,null,null,null,null,null,null,null,null,null,null,null,null,null,null,null,null,null,null,null,null,null,null,null,null,null,null,null,null,null,null,null,{"$f":"IF($L156<>0,1,0)","v":0}]
["5.1.c","Leveren damwand (overdracht aan BOFAS)*","livraison de palplanches (rachat par BOFAS)*","VH","kg",1.32,null,"%kans x gewicht (10 % standaard, gewicht ca. 100kg per m2 effectieve damwand voorzien in studie)\n50% van de referteprijs verkeer en infrastructuur bij offerte (december 2019 b.v. 2,346 €/kg)","%probabilité x poids (10 % defaut, poids ca.100kg par m2 à soutenir)\n50% du prix de référence \"verkeer en infrastructuur\" au moment de l'offre (décembre 2019 p.e. 2,346 €/kg)",null,null,0,"","","",null,null,null,null,null,null,null,null,null,null,null,null,null,null,null,null,null,null,null,null,null,null,null,null,null,null,null,null,null,null,null,null,null,null,null,null,null,null,null,null,null,{"$f":"IF($L157<>0,1,0)","v":0}]
["5.2","Berlinerwand","Paroi berlinoise",null,null,null,null,null,null,null,null,0,"","","",null,null,null,null,null,null,null,null,null,null,null,null,null,null,null,null,null,null,null,null,null,null,null,null,null,null,null,null,null,null,null,null,null,null,null,null,null,null,null,null,null,{"$f":"COUNTIF(BE159:BE160,1)","v":0}]
["5.2.a","Mob/demob*","Mob/démob*","TP",null,3320,null,"1 indien van toepassing","si d'application 1",null,null,0,"","","",null,null,null,null,null,null,null,null,null,null,null,null,null,null,null,null,null,null,null,null,null,null,null,null,null,null,null,null,null,null,null,null,null,null,null,null,null,null,null,null,null,{"$f":"IF($L159<>0,1,0)","v":0}]
["5.2.b","Lengte te beschoeien wand*","Mètres courants de paroi à mettre en place*","VH","m",689,null,"meters wand te stabiliseren met berlinerwand","mètres de paroi à stabiliser par paroi berlinoise",null,null,{"$f":"+J160+K160","v":0},"","","",null,null,null,null,null,null,null,null,null,null,null,null,null,null,null,null,null,null,null,null,null,null,null,null,null,null,null,null,null,null,null,null,null,null,null,null,null,null,null,null,null,{"$f":"IF($L160<>0,1,0)","v":0}]
["5.3","Systeembeschoeiing","Système de blindage",null,null,null,null,null,null,null,null,0,"","","",null,null,null,null,null,null,null,null,null,null,null,null,null,null,null,null,null,null,null,null,null,null,null,null,null,null,null,null,null,null,null,null,null,null,null,null,null,null,null,null,null,{"$f":"COUNTIF(BE162:BE163,1)","v":0}]
["5.3.a","Mob/demob*","Mob/démob*","TP",null,1870,null,"1 indien van toepassing","si d'application 1",null,null,0,"","","",null,null,null,null,null,null,null,null,null,null,null,null,null,null,null,null,null,null,null,null,null,null,null,null,null,null,null,null,null,null,null,null,null,null,null,null,null,null,null,null,null,{"$f":"IF($L162<>0,1,0)","v":0}]
["5.3.b","Lengte te beschoeien wand*","Mètres courants de paroi à mettre en place*","VH","m",282,null,"meters wand te stabiliseren met systeembeschoeiing","mètres de paroi à stabiliser par système de blindage",null,null,0,"","","",null,null,null,null,null,null,null,null,null,null,null,null,null,null,null,null,null,null,null,null,null,null,null,null,null,null,null,null,null,null,null,null,null,null,null,null,null,null,null,null,null,{"$f":"IF($L163<>0,1,0)","v":0}]
["5.4","Secanspalenwand","Paroi de pieux sécants",null,null,null,null,null,null,null,null,0,"","","",null,null,null,null,null,null,null,null,null,null,null,null,null,null,null,null,null,null,null,null,null,null,null,null,null,null,null,null,null,null,null,null,null,null,null,null,null,null,null,null,null,{"$f":"COUNTIF(BE165:BE166,1)","v":0}]
["5.4.a","Mob/demob*","Mob/démob*","TP",null,6890,null,"1 indien van toepassing","si d'application 1",null,null,0,"","","",null,null,null,null,null,null,null,null,null,null,null,null,null,null,null,null,null,null,null,null,null,null,null,null,null,null,null,null,null,null,null,null,null,null,null,null,null,null,null,null,null,{"$f":"IF($L165<>0,1,0)","v":0}]
["5.4.b","Lengte te beschoeien wand*","Mètres courants de paroi à mettre en place*","VH","m",2250,null,"meters wand te stabiliseren met palenwand","mètres de paroi à stabiliser par paroi de pieux",null,null,0,"","","",null,null,null,null,null,null,null,null,null,null,null,null,null,null,null,null,null,null,null,null,null,null,null,null,null,null,null,null,null,null,null,null,null,null,null,null,null,null,null,null,null,{"$f":"IF($L166<>0,1,0)","v":0}]
[0,null,null,null,null,null,null,null,null,null,null,{"$f":"+J167+K167","v":0},"","","",null,null,null,null,null,null,null,null,null,null,null,null,null,null,null,null,null,null,null,null,null,null,null,null,null,null,null,null,null,null,null,null,null,null,null,null,null,null,null,null,null,{"$f":"+BE168","v":0}]
[6,"BIJZONDERE MAATREGELEN BIJ GRONDWERKEN","MESURES PARTICULIERES POUR LES TERRASSEMENTS",null,null,null,null,"Ifv stabiliteitstudie","en fonction de l'étude de stabilité ",null,null,{"$f":"+J168+K168","v":0},"","","",null,null,null,null,null,null,null,null,null,null,null,null,null,null,null,null,null,null,null,null,null,null,null,null,null,null,null,null,null,null,null,null,null,null,null,null,null,null,null,null,null,{"$f":"COUNTIF(BE169:BE175,1)","v":0}]
["6.1","Ontgraving in moten","Excavation par passes alternées","VH","m",93.9,null,"meters wand mootsgewijs te ontgraven","mètres de paroi à excaver par passes alternées",null,null,0,"","","",null,null,null,null,null,null,null,null,null,null,null,null,null,null,null,null,null,null,null,null,null,null,null,null,null,null,null,null,null,null,null,null,null,null,null,null,null,null,null,null,null,{"$f":"IF($L169<>0,1,0)","v":0}]
["6.2","Verbuisd ontgraven","Excavation tubée",null,null,null,null,null,null,null,null,0,"","","",null,null,null,null,null,null,null,null,null,null,null,null,null,null,null,null,null,null,null,null,null,null,null,null,null,null,null,null,null,null,null,null,null,null,null,null,null,null,null,null,null,{"$f":"COUNTIF(BE171:BE172,1)","v":0}]
["6.2.a","Mob/demob*","Mob/démob*","TP",null,2820,null,"1 indien van toepassing","si d'application 1",null,null,0,"","","",null,null,null,null,null,null,null,null,null,null,null,null,null,null,null,null,null,null,null,null,null,null,null,null,null,null,null,null,null,null,null,null,null,null,null,null,null,null,null,null,null,{"$f":"IF($L171<>0,1,0)","v":0}]
["6.2.b","Ontgraven grond*","Terres excavées*","VH","m³",56.3,null,null,null,null,null,0,"","","",null,null,null,null,null,null,null,null,null,null,null,null,null,null,null,null,null,null,null,null,null,null,null,null,null,null,null,null,null,null,null,null,null,null,null,null,null,null,null,null,null,{"$f":"IF($L172<>0,1,0)","v":0}]
["6.3","Ontgraving door middel van grondzuigwagen","Excavation à l’aide d’un camion aspirateur",null,null,null,null,null,null,null,null,0,"","","",null,null,null,null,null,null,null,null,null,null,null,null,null,null,null,null,null,null,null,null,null,null,null,null,null,null,null,null,null,null,null,null,null,null,null,null,null,null,null,null,null,{"$f":"COUNTIF(BE174:BE175,1)","v":0}]
["6.3.a","Inzet van grondzuigwagen, graafkraan en personeel aan dagprijs*","Utilisation du camion aspirateur, de la petite grue et du personnel, prix par jour*","VH","dag",2960,null,"dagprijs voor kleine hoeveelheden, rechtstreekse toewijzing","prix par jour pour petites quantités, adjudication directe",null,null,0,"","","",null,null,null,null,null,null,null,null,null,null,null,null,null,null,null,null,null,null,null,null,null,null,null,null,null,null,null,null,null,null,null,null,null,null,null,null,null,null,null,null,null,{"$f":"IF($L174<>0,1,0)","v":0}]
["6.3.b","Ontgraven grond*","Terres excavées*","VH","m³",123,null,"voor grotere hoeveelheden, niet-standaardopdrachten en geen dagprijs gevraagd","pour quantités plus importantes, missions non standards et pas de prix par jour",null,null,0,"","","",null,null,null,null,null,null,null,null,null,null,null,null,null,null,null,null,null,null,null,null,null,null,null,null,null,null,null,null,null,null,null,null,null,null,null,null,null,null,null,null,null,{"$f":"IF($L175<>0,1,0)","v":0}]
[0,"",null,null,null,null,null,null,null,null,null,0,"","","",null,null,null,null,null,null,null,null,null,null,null,null,null,null,null,null,null,null,null,null,null,null,null,null,null,null,null,null,null,null,null,null,null,null,null,null,null,null,null,null,null,{"$f":"+BE177","v":0}]
[7,"GRONDWERKEN","TRAVAUX DE TERRASSEMENT",null,null,null,null,"zie grondbalans","voir balance des terres",null,null,0,"","","",null,null,null,null,null,null,null,null,null,null,null,null,null,null,null,null,null,null,null,null,null,null,null,null,null,null,null,null,null,null,null,null,null,null,null,null,null,null,null,null,null,{"$f":"COUNTIF(BE178:BE206,1)","v":0}]
["7.1","UITGRAVINGEN IN VERONTREINIGDE ZONES","EXCAVATION EN ZONES POLLUEES",null,null,null,null,null,null,null,null,{"$f":"+J178+K178","v":0},"","","",null,null,null,null,null,null,null,null,null,null,null,null,null,null,null,null,null,null,null,null,null,null,null,null,null,null,null,null,null,null,null,null,null,null,null,null,null,null,null,null,null,{"$f":"COUNTIF(BE179:BE181,1)","v":0}]
["7.1.a","Selectief ontgraven  ","Excavation sélective","VH","m³",6.25,null,null,null,null,null,0,"","","",null,null,null,null,null,null,null,null,null,null,null,null,null,null,null,null,null,null,null,null,null,null,null,null,null,null,null,null,null,null,null,null,null,null,null,null,null,null,null,null,null,{"$f":"IF($L179<>0,1,0)","v":0}]
["7.1.b","Tussenstockage van verdachte grond op expliciet verzoek","Stockage intermédiaire de terres suspectes sur demande explicite","VH","m³",5,null,null,null,null,null,0,"","","",null,null,null,null,null,null,null,null,null,null,null,null,null,null,null,null,null,null,null,null,null,null,null,null,null,null,null,null,null,null,null,null,null,null,null,null,null,null,null,null,null,0]
["7.1.c","Tussenstockage van herbruikbare grond","Stockage intermédiaires de terres réutilisables","VH","m³",4.38,null,null,null,null,null,0,"","","",null,null,null,null,null,null,null,null,null,null,null,null,null,null,null,null,null,null,null,null,null,null,null,null,null,null,null,null,null,null,null,null,null,null,null,null,null,null,null,null,null,0]
["7.2","LADEN EN TRANSPORT","CHARGEMENT ET TRANSPORT",null,null,null,null,null,null,null,null,{"$f":"+J182+K182","v":0},"","","",null,null,null,null,null,null,null,null,null,null,null,null,null,null,null,null,null,null,null,null,null,null,null,null,null,null,null,null,null,null,null,null,null,null,null,null,null,null,null,null,null,{"$f":"COUNTIF(BE183:BE190,1)","v":0}]
["7.2.1","Laden en transport van verontreinigde grond ","Chargement et transport de terres contaminées",null,null,null,null,null,null,null,null,{"$f":"+J183+K183","v":0},"","","",null,null,null,null,null,null,null,null,null,null,null,null,null,null,null,null,null,null,null,null,null,null,null,null,null,null,null,null,null,null,null,null,null,null,null,null,null,null,null,null,null,{"$f":"COUNTIF(BE184:BE186,1)","v":0}]
["7.2.1.a","Laden van de verontreinigde grond ","Chargement de terres contaminées","VH","t",5.63,null,null,null,null,null,{"$f":"+J184+K184","v":0},"","","",null,null,null,null,null,null,null,null,null,null,null,null,null,null,null,null,null,null,null,null,null,null,null,null,null,null,null,null,null,null,null,null,null,null,null,null,null,null,null,null,null,{"$f":"IF($L184<>0,1,0)","v":0}]
["7.2.1.b","Transport van de verontreinigde grond naar CGR","Transport de terres contaminées vers le CTS","VH","t","0,16*afstand",null,"zelfde hoeveelheid als voorgaande post. EP-RO aanpassen","quantité identique au poste précédent. adapter PU-AC",null,null,0,"","","",null,null,null,null,null,null,null,null,null,null,null,null,null,null,null,null,null,null,null,null,null,null,null,null,null,null,null,null,null,null,null,null,null,null,null,null,null,null,null,null,null,0]
["7.2.1.c","Transport van de verontreinigde grond per container (10m³)","Transport au moyen de conteneur (10 m³)","VH","st","4,11*afstand",null,"aantal transporten = aantal containers + 1. EP-RO aanpassen","nbre de transports = nbre de conteneurs + 1. adapter PU-AC",null,null,{"$f":"+J186+K186","v":0},"","","",null,null,null,null,null,null,null,null,null,null,null,null,null,null,null,null,null,null,null,null,null,null,null,null,null,null,null,null,null,null,null,null,null,null,null,null,null,null,null,null,null,0]
["7.2.2","Laden en transport van niet-verontreinigde grond ","Chargement et transport de terres non-contaminées",null,null,null,null,null,null,null,null,{"$f":"+J187+K187","v":0},"","","",null,null,null,null,null,null,null,null,null,null,null,null,null,null,null,null,null,null,null,null,null,null,null,null,null,null,null,null,null,null,null,null,null,null,null,null,null,null,null,null,null,{"$f":"COUNTIF(BE188:BE190,1)","v":0}]
["7.2.2.a","Opladen, transport en externe tussenstockage","Chargement, transport et stockage intermédiaire off site","VH","m³",6.25,null,"Indien onvoldoende plaats op de werf","pas de place sur chantier",null,null,0,"","","",null,null,null,null,null,null,null,null,null,null,null,null,null,null,null,null,null,null,null,null,null,null,null,null,null,null,null,null,null,null,null,null,null,null,null,null,null,null,null,null,null,{"$f":"IF($L188<>0,1,0)","v":0}]
["7.2.2.b","Aan- en afvoer kraan naar externe stockageplaats","Mob/démob de la grue vers le site de stockage off site pour le chargement","TP",null,282,null,"Indien onvoldoende plaats op de werf","pas de place sur chantier",null,null,0,"","","",null,null,null,null,null,null,null,null,null,null,null,null,null,null,null,null,null,null,null,null,null,null,null,null,null,null,null,null,null,null,null,null,null,null,null,null,null,null,null,null,null,{"$f":"IF($L189<>0,1,0)","v":0}]
["7.2.2.c","Opladen en transport terug naar de werf","Chargement et transport des terres vers le chantier (retour)","VH","m³",6.25,null,"Indien onvoldoende plaats op de werf","pas de place sur chantier",null,null,0,"","","",null,null,null,null,null,null,null,null,null,null,null,null,null,null,null,null,null,null,null,null,null,null,null,null,null,null,null,null,null,null,null,null,null,null,null,null,null,null,null,null,null,{"$f":"IF($L190<>0,1,0)","v":0}]
["7.3","PE FOLIE","MEMBRANE PE ",null,null,null,null,null,null,null,null,0,"","","",null,null,null,null,null,null,null,null,null,null,null,null,null,null,null,null,null,null,null,null,null,null,null,null,null,null,null,null,null,null,null,null,null,null,null,null,null,null,null,null,null,{"$f":"COUNTIF(BE192:BE193,1)","v":0}]
["7.3.a","dikte 0,4 mm","Epaisseur (0,4 mm)","VH","m²",4.38,null,"m² restverontreinging te isoleren","m² de contamination résiduelle à isoler ",null,null,0,"","","",null,null,null,null,null,null,null,null,null,null,null,null,null,null,null,null,null,null,null,null,null,null,null,null,null,null,null,null,null,null,null,null,null,null,null,null,null,null,null,null,null,{"$f":"IF($L192<>0,1,0)","v":0}]
["7.3.b","dikte 1,5 mm","Epaisseur (1,5 mm)","VH","m²",11.3,null,"nvt","pas d'application",null,null,0,"","","",null,null,null,null,null,null,null,null,null,null,null,null,null,null,null,null,null,null,null,null,null,null,null,null,null,null,null,null,null,null,null,null,null,null,null,null,null,null,null,null,null,{"$f":"IF($L193<>0,1,0)","v":0}]
["7.4","Geotextiel \"avertisseur\"","Geotextile \"avertisseur\"","VH","m²",5.8,null,"Wallonië, tegen restverontreiniging","Wallonie, contamination résiduelle",null,null,{"$f":"+J194+K194","v":0},"","","",null,null,null,null,null,null,null,null,null,null,null,null,null,null,null,null,null,null,null,null,null,null,null,null,null,null,null,null,null,null,null,null,null,null,null,null,null,null,null,null,null,{"$f":"IF($L194<>0,1,0)","v":0}]
["7.5","AANVULLINGEN","REMBLAI",null,null,null,null,null,null,null,null,0,"","","",null,null,null,null,null,null,null,null,null,null,null,null,null,null,null,null,null,null,null,null,null,null,null,null,null,null,null,null,null,null,null,null,null,null,null,null,null,null,null,null,null,{"$f":"COUNTIF(BE196:BE199,1)","v":0}]
["7.5.1","Leveren en plaatsen van aanvulgrond","Livraison et placement des terres de remblai","VH","m³",20.7,null,null,null,null,null,{"$f":"+J196+K196","v":0},"","","",null,null,null,null,null,null,null,null,null,null,null,null,null,null,null,null,null,null,null,null,null,null,null,null,null,null,null,null,null,null,null,null,null,null,null,null,null,null,null,null,null,{"$f":"IF($L196<>0,1,0)","v":0}]
["7.5.2","Aanvullen met gestockeerde grond","Remblai avec des terres réutilisables stockées sur place","VH","m³",6.25,null,"herbruikgrond + teelaarde","terres réutilisables + terres arables",null,null,0,"","","",null,null,null,null,null,null,null,null,null,null,null,null,null,null,null,null,null,null,null,null,null,null,null,null,null,null,null,null,null,null,null,null,null,null,null,null,null,null,null,null,null,{"$f":"IF($L197<>0,1,0)","v":0}]
["7.5.3","Leveren en plaatsen van teelaarde","Fourniture et placement de terre arable","VH","m³",32,null,"indien onvoldoende teelaarde kan herbruikt worden","au cas où pas assez de terre arable récuperée",null,null,{"$f":"+J198+K198","v":0},"","","",null,null,null,null,null,null,null,null,null,null,null,null,null,null,null,null,null,null,null,null,null,null,null,null,null,null,null,null,null,null,null,null,null,null,null,null,null,null,null,null,null,{"$f":"IF($L198<>0,1,0)","v":0}]
["7.5.4","Leveren en plaatsen van zandcement","Fourniture et placement de sable-ciment","VH","m³",49.8,null,"ontgraving in moten (> 45°), verbuisd ontgraven, aanvullingen die moeilijk kunnen verdicht worden ","excavation par passes alternées (> 45°), excavation tubée, remblais difficilement compactables",null,null,{"$f":"+J199+K199","v":0},"","","",null,null,null,null,null,null,null,null,null,null,null,null,null,null,null,null,null,null,null,null,null,null,null,null,null,null,null,null,null,null,null,null,null,null,null,null,null,null,null,null,null,{"$f":"IF($L199<>0,1,0)","v":0}]
["7.6","PROEVEN","ESSAIS",null,null,null,null,null,null,null,null,{"$f":"+J200+K200","v":0},"","","",null,null,null,null,null,null,null,null,null,null,null,null,null,null,null,null,null,null,null,null,null,null,null,null,null,null,null,null,null,null,null,null,null,null,null,null,null,null,null,null,null,{"$f":"COUNTIF(BE201:BE206,1)","v":0}]
["7.6.1","Plaatproeven","Essais à la plaque",null,null,null,null,null,null,null,null,0,"","","",null,null,null,null,null,null,null,null,null,null,null,null,null,null,null,null,null,null,null,null,null,null,null,null,null,null,null,null,null,null,null,null,null,null,null,null,null,null,null,null,null,{"$f":"COUNTIF(BE202:BE203,1)","v":0}]
["7.6.1.a","   Meetcampagne (mob/demob)","Mob/démob","VH","st",250,null,"1 voor aanvulling + 1 ingeval steenslagfundering","1 pour le remblai + 1 en cas de fondation en empierrement ",null,null,0,"","","",null,null,null,null,null,null,null,null,null,null,null,null,null,null,null,null,null,null,null,null,null,null,null,null,null,null,null,null,null,null,null,null,null,null,null,null,null,null,null,null,null,{"$f":"IF($L202<>0,1,0)","v":0}]
["7.6.1.b","   Plaatproef","Essai à la plaque","VH","st",126,null,"2 x bovenstaande post","2 x le poste précédent",null,null,0,"","","",null,null,null,null,null,null,null,null,null,null,null,null,null,null,null,null,null,null,null,null,null,null,null,null,null,null,null,null,null,null,null,null,null,null,null,null,null,null,null,null,null,{"$f":"IF($L203<>0,1,0)","v":0}]
["7.6.2","Slagsonderingen","Essais à la sonde de battage",null,null,null,null,null,null,null,null,0,"","","",null,null,null,null,null,null,null,null,null,null,null,null,null,null,null,null,null,null,null,null,null,null,null,null,null,null,null,null,null,null,null,null,null,null,null,null,null,null,null,null,null,{"$f":"COUNTIF(BE205:BE206,1)","v":0}]
["7.6.2.a","   Meetcampagne (mob/demob)","Mob/démob","VH","st",187,null,"op vraag van Vlaamse gemeenschap","si travaux de terrassement sur le domaine public (Flandres)",null,null,0,"","","",null,null,null,null,null,null,null,null,null,null,null,null,null,null,null,null,null,null,null,null,null,null,null,null,null,null,null,null,null,null,null,null,null,null,null,null,null,null,null,null,null,{"$f":"IF($L205<>0,1,0)","v":0}]
["7.6.2.b","   Slagsondering","Essai à la sonde de battage","VH","st",93.9,null,"2 x bovenstaande post","2 x le poste précédent",null,null,0,{"$f":"IF(AND(ISTEXT($D206),ISNUMBER($G206)),ROUND(J206*$G206,2),\"\")","v":""},{"$f":"IF(AND(ISTEXT($D206),ISNUMBER($G206)),ROUND(K206*$G206,2),\"\")","v":""},{"$f":"IF(AND(ISTEXT($D206),ISNUMBER($G206)),N206+M206,\"\")","v":""},null,null,null,null,null,null,null,null,null,null,null,null,null,null,null,null,null,null,null,null,null,null,null,null,null,null,null,null,null,null,null,null,null,null,null,null,null,null,null,null,null,{"$f":"IF($L206<>0,1,0)","v":0}]
[0,"",null,null,null,null,null,null,null,null,null,0,"","","",null,null,null,null,null,null,null,null,null,null,null,null,null,null,null,null,null,null,null,null,null,null,null,null,null,null,null,null,null,null,null,null,null,null,null,null,null,null,null,null,null,{"$f":"+BE208","v":0}]
[8,"OMGEVINGSWERKEN","TRAVAUX DE VOIRIE",null,null,null,null,"functionele herstelling in overleg met BOFAS","remise en état fonctionel en concertation avec BOFAS",null,null,0,"","","",null,null,null,null,null,null,null,null,null,null,null,null,null,null,null,null,null,null,null,null,null,null,null,null,null,null,null,null,null,null,null,null,null,null,null,null,null,null,null,null,null,{"$f":"COUNTIF(BE209:BE231,1)","v":0}]
["8.1","ONDERFUNDERINGEN EN FUNDERINGEN ","SOUS-FONDATIONS ET FONDATIONS",null,null,null,null,"zie typedoorsneden \"courante gebruikssituaties op privéterrein\"","voir coupes types \"situations d'usage courant sur domaine privé\"",null,null,0,"","","",null,null,null,null,null,null,null,null,null,null,null,null,null,null,null,null,null,null,null,null,null,null,null,null,null,null,null,null,null,null,null,null,null,null,null,null,null,null,null,null,null,{"$f":"COUNTIF(BE210:BE215,1)","v":0}]
["8.1.a","Geotextiel volgens 5-1","Livraison et placement d'un géotextile suivant F2.1","VH","m²",1.87,null,null,null,null,null,0,"","","",null,null,null,null,null,null,null,null,null,null,null,null,null,null,null,null,null,null,null,null,null,null,null,null,null,null,null,null,null,null,null,null,null,null,null,null,null,null,null,null,null,{"$f":"IF($L210<>0,1,0)","v":0}]
["8.1.b","Onderfundering type I volgens 5-3.2, dikte 15 cm","Livraison et placement de sous fondations de type 1, selon F3.1, épaisseur 15 cm","VH","m²",6.25,null,null,null,null,null,0,"","","",null,null,null,null,null,null,null,null,null,null,null,null,null,null,null,null,null,null,null,null,null,null,null,null,null,null,null,null,null,null,null,null,null,null,null,null,null,null,null,null,null,0]
["8.1.c","Steenslagfundering type II met continue korrelverdeling zonder toevoegsel volgens 5-4.3, dikte 25 cm","Livraison et placement d'un empierrement type I avec une granularité continue sans additifs selon F.4.2. Epaisseur de fondation 25 cm","VH","m²",13.7,null,null,null,null,null,0,"","","",null,null,null,null,null,null,null,null,null,null,null,null,null,null,null,null,null,null,null,null,null,null,null,null,null,null,null,null,null,null,null,null,null,null,null,null,null,null,null,null,null,0]
["8.1.d","Steenslagfundering type IIA met continue korrelverdeling behandeld met 3% cement volgens 5-4.4, dikte 25 cm","Livraison et placement d'un empierrement type IA avec une granularité continue avec 3% de ciment selon F.4.2.1.2. Epaisseur de fondation 25 cm","VH","m²",21.3,null,"in overleg met BOFAS","en concertation avec BOFAS. ",null,null,0,"","","",null,null,null,null,null,null,null,null,null,null,null,null,null,null,null,null,null,null,null,null,null,null,null,null,null,null,null,null,null,null,null,null,null,null,null,null,null,null,null,null,null,0]
["8.1.e","Fundering van zandcement volgens 5-4.7, dikte 20 cm","Livraison et placement de fondations en sable-ciment de type I selon F.4.3. Epaisseur de fondation 20 cm","VH","m²",18.7,null,null,null,null,null,0,"","","",null,null,null,null,null,null,null,null,null,null,null,null,null,null,null,null,null,null,null,null,null,null,null,null,null,null,null,null,null,null,null,null,null,null,null,null,null,null,null,null,null,0]
["8.1.f","Fundering van schraal beton volgens 5-4.9, dikte 20 cm","Livraison et placement de fondations en béton maigre de type I selon F.4.5.  Epaisseur de fondation 20 cm","VH","m²",37.5,null,"in overleg met BOFAS","en concertation avec BOFAS. ",null,null,0,"","","",null,null,null,null,null,null,null,null,null,null,null,null,null,null,null,null,null,null,null,null,null,null,null,null,null,null,null,null,null,null,null,null,null,null,null,null,null,null,null,null,null,0]
["8.2","VERHARDINGEN ","REVETEMENTS",null,null,null,null,"zie typedoorsneden \"courante gebruikssituaties op privéterrein\"","voir coupes types \"situations d'usage courants sur domaine privé\"",null,null,0,"","","",null,null,null,null,null,null,null,null,null,null,null,null,null,null,null,null,null,null,null,null,null,null,null,null,null,null,null,null,null,null,null,null,null,null,null,null,null,null,null,null,null,{"$f":"COUNTIF(BE217:BE225,1)","v":0}]
["8.2.a","Ongewapende cementbetonverharding, zonder luchtbelvormer, met Wm,min=50 MPa, volgens 6-1, dikte E = 20 cm","Revêtement en béton de ciment discontinu, sans entraîneur d'air, avec R'bi = 50 N/mm², selon G.1., épaisseur E = 20 cm","VH","m²",62.5,null,null,null,null,null,0,"","","",null,null,null,null,null,null,null,null,null,null,null,null,null,null,null,null,null,null,null,null,null,null,null,null,null,null,null,null,null,null,null,null,null,null,null,null,null,null,null,null,null,{"$f":"IF($L217<>0,1,0)","v":0}]
["8.2.b","Mobilisatie en demobilisatie voor plaatsen van asfalt","Mob/Démob pour placement de l'asphalte","TP",null,1370,null,"1 ingeval  asfaltverharding voorzien","Si revêtement d'asphalte prévu, 1",null,null,0,"","","",null,null,null,null,null,null,null,null,null,null,null,null,null,null,null,null,null,null,null,null,null,null,null,null,null,null,null,null,null,null,null,null,null,null,null,null,null,null,null,null,null,0]
["8.2.c","Toplaag van asfaltbeton type AB-4C, volgens 6-2, dikte E = 6 cm","Couche de roulement en enrobé à squelette sableux type AC-10 surf 4-1, selon G.2, épaisseur E = 6 cm","VH","m²",26,null,"in overleg met BOFAS","en concertation avec BOFAS.",null,null,{"$f":"+J219+K219","v":0},"","","",null,null,null,null,null,null,null,null,null,null,null,null,null,null,null,null,null,null,null,null,null,null,null,null,null,null,null,null,null,null,null,null,null,null,null,null,null,null,null,null,null,0]
["8.2.d","Toplaag van asfaltbeton type AB-4C, volgens 6-2, dikte E = 4 cm","Couche de roulement en enrobé à squelette sableux type AC-10 surf 4-1, selon G.2, épaisseur E = 4 cm","VH","m²",18.5,null,null,null,null,null,0,"","","",null,null,null,null,null,null,null,null,null,null,null,null,null,null,null,null,null,null,null,null,null,null,null,null,null,null,null,null,null,null,null,null,null,null,null,null,null,null,null,null,null,0]
["8.2.e","Onderlaag van asfaltbeton type APO_B, volgens 6-2, dikte E = 6 cm","Couche de reprofilage en enrobé hydrocarboné type AC-14 base 3-1, selon G.2, épaisseur E = 6 cm","VH","m²",23,null,null,null,null,null,0,"","","",null,null,null,null,null,null,null,null,null,null,null,null,null,null,null,null,null,null,null,null,null,null,null,null,null,null,null,null,null,null,null,null,null,null,null,null,null,null,null,null,null,0]
["8.2.f","Bestrating van betonstraatstenen volgens 6-3.4","Pavage en béton de ciment selon G.4.3","VH","m²",41.5,null,null,null,null,null,{"$f":"+J222+K222","v":0},"","","",null,null,null,null,null,null,null,null,null,null,null,null,null,null,null,null,null,null,null,null,null,null,null,null,null,null,null,null,null,null,null,null,null,null,null,null,null,null,null,null,null,0]
["8.2.g","Bestrating van betontegels volgens 6-3.7","Dallage en carreaux de béton selon G.5.3","VH","m²",41.5,null,null,null,null,null,0,"","","",null,null,null,null,null,null,null,null,null,null,null,null,null,null,null,null,null,null,null,null,null,null,null,null,null,null,null,null,null,null,null,null,null,null,null,null,null,null,null,null,null,0]
["8.2.h","Bestrating van in rijen te leggen kasseien volgens 6-3.2","Pavage en pierre naturelle, appareillage en ligne à joints alternés, selon G.4.2","VH","m²",65.2,null,null,null,null,null,0,"","","",null,null,null,null,null,null,null,null,null,null,null,null,null,null,null,null,null,null,null,null,null,null,null,null,null,null,null,null,null,null,null,null,null,null,null,null,null,null,null,null,null,0]
["8.2.i","Steenslagverharding (kiezel, split, rolgrond), dikte 3 à 5 cm","Revêtement en gravier (pierres naturelles concassées, graviers roulés ou semi-roulés), épaisseur 3 à 5 cm","VH","m²",12.4,null,null,null,null,null,0,"","","",null,null,null,null,null,null,null,null,null,null,null,null,null,null,null,null,null,null,null,null,null,null,null,null,null,null,null,null,null,null,null,null,null,null,null,null,null,null,null,null,null,0]
["8.3","LIJNVORMIGE ELEMENTEN ","ELEMENTS LINEAIRES",null,null,null,null,null,null,null,null,0,"","","",null,null,null,null,null,null,null,null,null,null,null,null,null,null,null,null,null,null,null,null,null,null,null,null,null,null,null,null,null,null,null,null,null,null,null,null,null,null,null,null,null,{"$f":"COUNTIF(BE227:BE230,1)","v":0}]
["8.3.a","Geprefabriceerde betonnen trottoirbanden volgens 8-1.2,\ntype I A (100x35x15)","Bordures en béton préfabriqué selon H.1.2,\ntype IA, B = 150 mm, H = 350 mm, c = 20 mm, L = 1 m","VH","m",37.5,null,null,null,null,null,0,"","","",null,null,null,null,null,null,null,null,null,null,null,null,null,null,null,null,null,null,null,null,null,null,null,null,null,null,null,null,null,null,null,null,null,null,null,null,null,null,null,null,null,{"$f":"IF($L227<>0,1,0)","v":0}]
["8.3.b","Geprefabriceerde betonnen trottoirbanden volgens 8-1.2,\ntype I D1 (100x30x10)","Bordures en béton préfabriqué selon H.1.2,\ntype ID1, B = 100 mm, H = 300 mm, L = 1 m","VH","m",33.799999999999997,null,null,null,null,null,0,"","","",null,null,null,null,null,null,null,null,null,null,null,null,null,null,null,null,null,null,null,null,null,null,null,null,null,null,null,null,null,null,null,null,null,null,null,null,null,null,null,null,null,{"$f":"IF($L228<>0,1,0)","v":0}]
["8.3.c","Geprefabriceerde betonnen watergreppels volgens 3-32.3,\nte plaatsen volgens 8-3.2, type II A 2 (100x50x20)","Filet d'eau en béton préfabriqué selon H.1.2,\ntype IIA2 : largeur : B = 500 mm, L = 1 m","VH","m",43.8,null,null,null,null,null,0,"","","",null,null,null,null,null,null,null,null,null,null,null,null,null,null,null,null,null,null,null,null,null,null,null,null,null,null,null,null,null,null,null,null,null,null,null,null,null,null,null,null,null,{"$f":"IF($L229<>0,1,0)","v":0}]
["8.3.d","Geprefabriceerde betonnen watergreppels volgens 3-32.3,\nte plaatsen volgens 8-3.2, type II E 2 (100x30x20)","Filet d'eau en béton préfabriqué selon H.1.2,\ntype IIE2 : largeur : B = 300 mm, L = 1 m","VH","m",40.1,null,null,null,null,null,0,"","","",null,null,null,null,null,null,null,null,null,null,null,null,null,null,null,null,null,null,null,null,null,null,null,null,null,null,null,null,null,null,null,null,null,null,null,null,null,null,null,null,null,{"$f":"IF($L230<>0,1,0)","v":0}]
["8.4","OMHEININGEN*","CLOTURES*","VH","m",118,null,null,null,null,null,0,"","","",null,null,null,null,null,null,null,null,null,null,null,null,null,null,null,null,null,null,null,null,null,null,null,null,null,null,null,null,null,null,null,null,null,null,null,null,null,null,null,null,null,{"$f":"IF($L231<>0,1,0)","v":0}]
[null,null,null,null,null,null,null,null,null,null,null,0,"","","",null,null,null,null,null,null,null,null,null,null,null,null,null,null,null,null,null,null,null,null,null,null,null,null,null,null,null,null,null,null,null,null,null,null,null,null,null,null,null,null,null,{"$f":"+BE233","v":0}]
[9,"INSTALLATIE VAN ONDERGRONDSE INFRASTRUCTUUR VOOR EEN IN-SITU SANEERSYSTEEM","INSTALLATION D'INFRASTRUCTURES SOUTERRAINES POUR SYSTEMES D'ASSAINISSEMENT IN SITU",null,null,null,null,null,null,null,null,{"$f":"+J233+K233","v":0},"","","",null,null,null,null,null,null,null,null,null,null,null,null,null,null,null,null,null,null,null,null,null,null,null,null,null,null,null,null,null,null,null,null,null,null,null,null,null,null,null,null,null,{"$f":"COUNTIF(BE234:BE327,1)","v":0}]
["9.1","BORINGEN","FORAGES",null,null,null,null,null,null,null,null,{"$f":"+J234+K234","v":0},"","","",null,null,null,null,null,null,null,null,null,null,null,null,null,null,null,null,null,null,null,null,null,null,null,null,null,null,null,null,null,null,null,null,null,null,null,null,null,null,null,null,null,{"$f":"COUNTIF(BE235:BE251,1)","v":0}]
["9.1.1","Vertikale boringen","Forages verticaux",null,null,null,null,null,null,null,null,0,"","","",null,null,null,null,null,null,null,null,null,null,null,null,null,null,null,null,null,null,null,null,null,null,null,null,null,null,null,null,null,null,null,null,null,null,null,null,null,null,null,null,null,{"$f":"COUNTIF(BE236:BE247,1)","v":0}]
["9.1.1.a","   mob/demob boormachine*","mob/démob de la machine de forage*","TP",null,1210,null,"1 indien verticale boringen","1 pour les forages verticaux",null,null,0,"","","",null,null,null,null,null,null,null,null,null,null,null,null,null,null,null,null,null,null,null,null,null,null,null,null,null,null,null,null,null,null,null,null,null,null,null,null,null,null,null,null,null,{"$f":"IF($L236<>0,1,0)","v":0}]
["9.1.1.b","   opstelkosten per boring*","frais de mise en place de la machine de forage par forage*","VH","st",73.8,null,"aantal boringen","nombre de forages",null,null,0,"","","",null,null,null,null,null,null,null,null,null,null,null,null,null,null,null,null,null,null,null,null,null,null,null,null,null,null,null,null,null,null,null,null,null,null,null,null,null,null,null,null,null,0]
["9.1.1.c","   110 mm*","   110 mm*","VH","m",56.3,null,null,null,null,null,0,"","","",null,null,null,null,null,null,null,null,null,null,null,null,null,null,null,null,null,null,null,null,null,null,null,null,null,null,null,null,null,null,null,null,null,null,null,null,null,null,null,null,null,0]
["9.1.1.d","   160 mm*","   160 mm*","VH","m",60.1,null,null,null,null,null,0,"","","",null,null,null,null,null,null,null,null,null,null,null,null,null,null,null,null,null,null,null,null,null,null,null,null,null,null,null,null,null,null,null,null,null,null,null,null,null,null,null,null,null,0]
["9.1.1.e","   210 mm*","   210 mm*","VH","m",65.099999999999994,null,null,null,null,null,0,"","","",null,null,null,null,null,null,null,null,null,null,null,null,null,null,null,null,null,null,null,null,null,null,null,null,null,null,null,null,null,null,null,null,null,null,null,null,null,null,null,null,null,0]
["9.1.1.f","   240 mm*","   240 mm*","VH","m",97.2,null,null,null,null,null,{"$f":"+J241+K241","v":0},"","","",null,null,null,null,null,null,null,null,null,null,null,null,null,null,null,null,null,null,null,null,null,null,null,null,null,null,null,null,null,null,null,null,null,null,null,null,null,null,null,null,null,0]
["9.1.1.g","   280 mm*","   280 mm*","VH","m",130,null,null,null,null,null,0,"","","",null,null,null,null,null,null,null,null,null,null,null,null,null,null,null,null,null,null,null,null,null,null,null,null,null,null,null,null,null,null,null,null,null,null,null,null,null,null,null,null,null,0]
["9.1.1.h","   320 mm*","   320 mm*","VH","m",153,null,null,null,null,null,{"$f":"+J243+K243","v":0},"","","",null,null,null,null,null,null,null,null,null,null,null,null,null,null,null,null,null,null,null,null,null,null,null,null,null,null,null,null,null,null,null,null,null,null,null,null,null,null,null,null,null,0]
["9.1.1.i","voorontgraving tussen openbare nutsleidingen*","préfouille entre les conduites d’utilité publique*","VH","st",119,null,"aantal boringen tussen openbare leidingen","nombre de forages entre les conduites publiques",null,null,{"$f":"+J244+K244","v":0},"","","",null,null,null,null,null,null,null,null,null,null,null,null,null,null,null,null,null,null,null,null,null,null,null,null,null,null,null,null,null,null,null,null,null,null,null,null,null,null,null,null,null,0]
["9.1.1.j","wachtbuis 250mm ter hoogte van de ontgravingszone*","tubage d’attente 250mm au droit de la zone d’excavation*","VH","st",154,null,"aantal spoelboringen 160mm thv ontgravingzone","nombre de forages à injection d’eau diam. 160 mm",null,null,{"$f":"+J245+K245","v":0},"","","",null,null,null,null,null,null,null,null,null,null,null,null,null,null,null,null,null,null,null,null,null,null,null,null,null,null,null,null,null,null,null,null,null,null,null,null,null,null,null,null,null,0]
["9.1.1.k","wachtbuis 315mm ter hoogte van de ontgravingszone*","tubage d’attente 315mm au droit de la zone d’excavation*","VH","st",213,null,"aantal spoelboringen 210-240mm thv ontgravingzone","nombre de forages à injection d’eau diam. 210-240 mm",null,null,{"$f":"+J246+K246","v":0},"","","",null,null,null,null,null,null,null,null,null,null,null,null,null,null,null,null,null,null,null,null,null,null,null,null,null,null,null,null,null,null,null,null,null,null,null,null,null,null,null,null,null,0]
["9.1.1.l","wachtbuis 400mm ter hoogte van de ontgravingszone*","tubage d’attente 400mm au droit de la zone d’excavation*","VH","st",309,null,"aantal spoelboringen 280-320mm thv ontgravingzone","nombre de forages à injection d’eau diam. 280-320 mm",null,null,0,"","","",null,null,null,null,null,null,null,null,null,null,null,null,null,null,null,null,null,null,null,null,null,null,null,null,null,null,null,null,null,null,null,null,null,null,null,null,null,null,null,null,null,0]
["9.1.2","Horizontale gestuurde boringen (incl.drains)","Forages dirigés horizontaux (drains inclus)",null,null,null,null,null,null,null,null,0,"","","",null,null,null,null,null,null,null,null,null,null,null,null,null,null,null,null,null,null,null,null,null,null,null,null,null,null,null,null,null,null,null,null,null,null,null,null,null,null,null,null,null,{"$f":"COUNTIF(BE249:BE251,1)","v":0}]
["9.1.2.a","   mob/demob boormachine","Mob/démob de la machine de forage","TP",null,1060,null,null,null,null,null,0,"","","",null,null,null,null,null,null,null,null,null,null,null,null,null,null,null,null,null,null,null,null,null,null,null,null,null,null,null,null,null,null,null,null,null,null,null,null,null,null,null,null,null,{"$f":"IF($L249<>0,1,0)","v":0}]
["9.1.2.b","   opstelkosten per boring","Frais de mise en place de la machine de forages / forage","VH","st",322,null,null,null,null,null,0,"","","",null,null,null,null,null,null,null,null,null,null,null,null,null,null,null,null,null,null,null,null,null,null,null,null,null,null,null,null,null,null,null,null,null,null,null,null,null,null,null,null,null,{"$f":"IF($L250<>0,1,0)","v":0}]
["9.1.2.c","   drain 125/80","   drain 125/80","VH","m",141,null,null,null,null,null,0,"","","",null,null,null,null,null,null,null,null,null,null,null,null,null,null,null,null,null,null,null,null,null,null,null,null,null,null,null,null,null,null,null,null,null,null,null,null,null,null,null,null,null,{"$f":"IF($L251<>0,1,0)","v":0}]
["9.2","FILTERS EN TOEBEHOREN","PUITS ET ACCESSOIRES",null,null,null,null,null,null,null,null,0,"","","",null,null,null,null,null,null,null,null,null,null,null,null,null,null,null,null,null,null,null,null,null,null,null,null,null,null,null,null,null,null,null,null,null,null,null,null,null,null,null,null,null,{"$f":"COUNTIF(BE253:BE267,1)","v":0}]
["9.2.a","plaatsing filters en toebehoren","Placement des puits et accessoires","VH","st",80.099999999999994,null,"aantal filters","nombre de puits",null,null,0,"","","",null,null,null,null,null,null,null,null,null,null,null,null,null,null,null,null,null,null,null,null,null,null,null,null,null,null,null,null,null,null,null,null,null,null,null,null,null,null,null,null,null,{"$f":"IF($L253<>0,1,0)","v":0}]
["9.2.b","blinde stijgbuis 1\"","Tube aveugle 1\"","VH","m",5,null,null,null,null,null,0,"","","",null,null,null,null,null,null,null,null,null,null,null,null,null,null,null,null,null,null,null,null,null,null,null,null,null,null,null,null,null,null,null,null,null,null,null,null,null,null,null,null,null,0]
["9.2.c","blinde stijgbuis 2\"","Tube aveugle 2\"","VH","m",13.7,null,null,null,null,null,0,"","","",null,null,null,null,null,null,null,null,null,null,null,null,null,null,null,null,null,null,null,null,null,null,null,null,null,null,null,null,null,null,null,null,null,null,null,null,null,null,null,null,null,0]
["9.2.d","blinde stijgbuis 3\"","Tube aveugle 3\"","VH","m",22.5,null,null,null,null,null,{"$f":"+J256+K256","v":0},"","","",null,null,null,null,null,null,null,null,null,null,null,null,null,null,null,null,null,null,null,null,null,null,null,null,null,null,null,null,null,null,null,null,null,null,null,null,null,null,null,null,null,0]
["9.2.e","blinde stijgbuis 4 ½''","Tube aveugle 4 ½'\"","VH","m",33.799999999999997,null,null,null,null,null,0,"","","",null,null,null,null,null,null,null,null,null,null,null,null,null,null,null,null,null,null,null,null,null,null,null,null,null,null,null,null,null,null,null,null,null,null,null,null,null,null,null,null,null,0]
["9.2.f","blinde stijgbuis 6''","Tube aveugle 6\"","VH","m",52.6,null,null,null,null,null,0,"","","",null,null,null,null,null,null,null,null,null,null,null,null,null,null,null,null,null,null,null,null,null,null,null,null,null,null,null,null,null,null,null,null,null,null,null,null,null,null,null,null,null,0]
["9.2.g","blinde stijgbuis 8''","Tube aveugle 8\"","VH","m",68.900000000000006,null,null,null,null,null,0,"","","",null,null,null,null,null,null,null,null,null,null,null,null,null,null,null,null,null,null,null,null,null,null,null,null,null,null,null,null,null,null,null,null,null,null,null,null,null,null,null,null,null,0]
["9.2.h","filterbuis 1''","Tube crépiné 1\"","VH","m",8.76,null,null,null,null,null,0,"","","",null,null,null,null,null,null,null,null,null,null,null,null,null,null,null,null,null,null,null,null,null,null,null,null,null,null,null,null,null,null,null,null,null,null,null,null,null,null,null,null,null,0]
["9.2.i","filterbuis 2''","Tube crépiné 2\"","VH","m",16.2,null,null,null,null,null,0,"","","",null,null,null,null,null,null,null,null,null,null,null,null,null,null,null,null,null,null,null,null,null,null,null,null,null,null,null,null,null,null,null,null,null,null,null,null,null,null,null,null,null,0]
["9.2.j","filterbuis 3''","Tube crépiné 3\"","VH","m",25.5,null,null,null,null,null,{"$f":"+J262+K262","v":0},"","","",null,null,null,null,null,null,null,null,null,null,null,null,null,null,null,null,null,null,null,null,null,null,null,null,null,null,null,null,null,null,null,null,null,null,null,null,null,null,null,null,null,0]
["9.2.k","filterbuis 4 ½'''","Tube crépiné 4 ½'\"","VH","m",43.8,null,null,null,null,null,0,"","","",null,null,null,null,null,null,null,null,null,null,null,null,null,null,null,null,null,null,null,null,null,null,null,null,null,null,null,null,null,null,null,null,null,null,null,null,null,null,null,null,null,0]
["9.2.l","filterbuis 6''","Tube crépiné 6\"","VH","m",65.099999999999994,null,null,null,null,null,0,"","","",null,null,null,null,null,null,null,null,null,null,null,null,null,null,null,null,null,null,null,null,null,null,null,null,null,null,null,null,null,null,null,null,null,null,null,null,null,null,null,null,null,0]
["9.2.m","filterbuis 8''","Tube crépiné 8\"","VH","m",92.6,null,null,null,null,null,0,"","","",null,null,null,null,null,null,null,null,null,null,null,null,null,null,null,null,null,null,null,null,null,null,null,null,null,null,null,null,null,null,null,null,null,null,null,null,null,null,null,null,null,0]
["9.2.n","grindomstorting","Massif drainant","VH","m³",358,null,"m filtergedeelte x 3,14/4 x (dia boorgat²-dia filter²)","m tube crépiné x 3,14/4 x (dia forage²-dia tube ²)",null,null,0,"","","",null,null,null,null,null,null,null,null,null,null,null,null,null,null,null,null,null,null,null,null,null,null,null,null,null,null,null,null,null,null,null,null,null,null,null,null,null,null,null,null,null,0]
["9.2.o","kleiomstorting","Bouchon d'argile","VH","m³",701,null,"0,7m x aantal filters x 3,14/4 x (dia boorgat²-dia filter²)","0,7m x nombre de puits x 3,14/4 x (dia forage²-dia tube²)",null,null,0,"","","",null,null,null,null,null,null,null,null,null,null,null,null,null,null,null,null,null,null,null,null,null,null,null,null,null,null,null,null,null,null,null,null,null,null,null,null,null,null,null,null,null,0]
["9.3","HORIZONTALE DRAINS","DRAINS HORIZONTAUX",null,null,null,null,null,null,null,null,0,"","","",null,null,null,null,null,null,null,null,null,null,null,null,null,null,null,null,null,null,null,null,null,null,null,null,null,null,null,null,null,null,null,null,null,null,null,null,null,null,null,null,null,{"$f":"COUNTIF(BE269:BE271,1)","v":0}]
["9.3.1","Drains in HDPE","Drains en HDPE","VH","m",20.100000000000001,null,null,null,null,null,0,"","","",null,null,null,null,null,null,null,null,null,null,null,null,null,null,null,null,null,null,null,null,null,null,null,null,null,null,null,null,null,null,null,null,null,null,null,null,null,null,null,null,null,{"$f":"IF($L269<>0,1,0)","v":0}]
["9.3.2","Drains in PVC","Drains en PVC","VH","m",10,null,null,null,null,null,0,{"$f":"IF(AND(ISTEXT($D270),ISNUMBER($G270)),ROUND(J270*$G270,2),\"\")","v":""},{"$f":"IF(AND(ISTEXT($D270),ISNUMBER($G270)),ROUND(K270*$G270,2),\"\")","v":""},{"$f":"IF(AND(ISTEXT($D270),ISNUMBER($G270)),N270+M270,\"\")","v":""},null,null,null,null,null,null,null,null,null,null,null,null,null,null,null,null,null,null,null,null,null,null,null,null,null,null,null,null,null,null,null,null,null,null,null,null,null,null,null,null,null,{"$f":"IF($L270<>0,1,0)","v":0}]
["9.3.3","Drainagezand","Sable drainant","VH","m³",38.799999999999997,null,"m drains x 0,3m x 0,3m ","m drains x 0,3m x 0,3m ",null,null,0,"","","",null,null,null,null,null,null,null,null,null,null,null,null,null,null,null,null,null,null,null,null,null,null,null,null,null,null,null,null,null,null,null,null,null,null,null,null,null,null,null,null,null,{"$f":"IF($L271<>0,1,0)","v":0}]
["9.4","POMPPUT","PUITS DE POMPAGE",null,null,null,null,null,null,null,null,0,"","","",null,null,null,null,null,null,null,null,null,null,null,null,null,null,null,null,null,null,null,null,null,null,null,null,null,null,null,null,null,null,null,null,null,null,null,null,null,null,null,null,null,{"$f":"COUNTIF(BE273:BE275,1)","v":0}]
["9.4.a","aantal putten","Nombre de puits","VH","st",388,null,null,null,null,null,0,"","","",null,null,null,null,null,null,null,null,null,null,null,null,null,null,null,null,null,null,null,null,null,null,null,null,null,null,null,null,null,null,null,null,null,null,null,null,null,null,null,null,null,{"$f":"IF($L273<>0,1,0)","v":0}]
["9.4.b","gezamelijke hoogte van de putten","Hauteur cumulée des puits","VH","m",157,null,null,null,null,null,0,"","","",null,null,null,null,null,null,null,null,null,null,null,null,null,null,null,null,null,null,null,null,null,null,null,null,null,null,null,null,null,null,null,null,null,null,null,null,null,null,null,null,null,{"$f":"IF($L274<>0,1,0)","v":0}]
["9.4.c","zandcement","Sable stabilisé","VH","m³",87.7,null,null,null,null,null,0,"","","",null,null,null,null,null,null,null,null,null,null,null,null,null,null,null,null,null,null,null,null,null,null,null,null,null,null,null,null,null,null,null,null,null,null,null,null,null,null,null,null,null,{"$f":"IF($L275<>0,1,0)","v":0}]
["9.5","VERZAMELPUTTEN, INSPECTIEPUTTEN EN TREKPUTTEN","CHAMBRES DE COLLECTE, DE VISITE ET D'ATTENTE",null,null,null,null,null,null,null,null,0,"","","",null,null,null,null,null,null,null,null,null,null,null,null,null,null,null,null,null,null,null,null,null,null,null,null,null,null,null,null,null,null,null,null,null,null,null,null,null,null,null,null,null,{"$f":"COUNTIF(BE277:BE286,1)","v":0}]
["9.5.1","Straatpot","Couvercle de rue (trapillon de visite)",null,null,null,null,null,null,null,null,0,"","","",null,null,null,null,null,null,null,null,null,null,null,null,null,null,null,null,null,null,null,null,null,null,null,null,null,null,null,null,null,null,null,null,null,null,null,null,null,null,null,null,null,{"$f":"COUNTIF(BE278:BE280,1)","v":0}]
["9.5.1.1","   Straatpot in onverharde oppervlakten","Trapillon de visite (couvercle de rue) pour surface sans revêtement","VH","st",38.799999999999997,null,null,null,null,null,0,"","","",null,null,null,null,null,null,null,null,null,null,null,null,null,null,null,null,null,null,null,null,null,null,null,null,null,null,null,null,null,null,null,null,null,null,null,null,null,null,null,null,null,{"$f":"IF($L278<>0,1,0)","v":0}]
["9.5.1.2","   Straatpot in verharde oppervlakten met lage belasting","Trapillon de visite (couvercle de rue) pour surface avec revêtement pour charge faible","VH","st",41.2,null,null,null,null,null,0,"","","",null,null,null,null,null,null,null,null,null,null,null,null,null,null,null,null,null,null,null,null,null,null,null,null,null,null,null,null,null,null,null,null,null,null,null,null,null,null,null,null,null,{"$f":"IF($L279<>0,1,0)","v":0}]
["9.5.1.3","Vloeistofdichte straatpot in verharde oppervlakten met hoge belasting","Trapillon de visite (couvercle de rue) pour surface avec revêtement pour charge lourde","VH","st",58.8,null,null,null,null,null,0,"","","",null,null,null,null,null,null,null,null,null,null,null,null,null,null,null,null,null,null,null,null,null,null,null,null,null,null,null,null,null,null,null,null,null,null,null,null,null,null,null,null,null,{"$f":"IF($L280<>0,1,0)","v":0}]
["9.5.2","Wachtbuis PVC 125 voor latere boringen","Tubage d'attente PVC 125 pour forage ultérieur","VH","st",53.9,null,null,null,null,null,0,"","","",null,null,null,null,null,null,null,null,null,null,null,null,null,null,null,null,null,null,null,null,null,null,null,null,null,null,null,null,null,null,null,null,null,null,null,null,null,null,null,null,null,{"$f":"IF($L281<>0,1,0)","v":0}]
["9.5.3","Kunststof putten","Chambres d'attente en HDPE ou PVC",null,null,null,null,null,null,null,null,0,"","","",null,null,null,null,null,null,null,null,null,null,null,null,null,null,null,null,null,null,null,null,null,null,null,null,null,null,null,null,null,null,null,null,null,null,null,null,null,null,null,null,null,{"$f":"COUNTIF(BE283:BE285,1)","v":0}]
["9.5.3.1","   PVC-putten Ø 400 mm","Chambre PVC Ø 400 mm","VH","st",310,null,null,null,null,null,0,"","","",null,null,null,null,null,null,null,null,null,null,null,null,null,null,null,null,null,null,null,null,null,null,null,null,null,null,null,null,null,null,null,null,null,null,null,null,null,null,null,null,null,{"$f":"IF($L283<>0,1,0)","v":0}]
["9.5.3.2","   MDPE-putten Ø 630 mm","Chambre MDPE Ø 630 mm","VH","st",714,null,null,null,null,null,0,"","","",null,null,null,null,null,null,null,null,null,null,null,null,null,null,null,null,null,null,null,null,null,null,null,null,null,null,null,null,null,null,null,null,null,null,null,null,null,null,null,null,null,{"$f":"IF($L284<>0,1,0)","v":0}]
["9.5.2.3","   MDPE-putten Ø 800 mm","Chambre MDPE Ø 800 mm","VH","st",899,null,null,null,null,null,0,"","","",null,null,null,null,null,null,null,null,null,null,null,null,null,null,null,null,null,null,null,null,null,null,null,null,null,null,null,null,null,null,null,null,null,null,null,null,null,null,null,null,null,{"$f":"IF($L285<>0,1,0)","v":0}]
["9.5.4","Put in metselwerk *","Chambre de visite maçonnée*","VH","st","nvt",null,null,null,null,null,0,"","","",null,null,null,null,null,null,null,null,null,null,null,null,null,null,null,null,null,null,null,null,null,null,null,null,null,null,null,null,null,null,null,null,null,null,null,null,null,null,null,null,null,{"$f":"IF($L286<>0,1,0)","v":0}]
["9.6","PUTDEKSELS","COUVERCLES",null,null,null,null,null,null,null,null,0,"","","",null,null,null,null,null,null,null,null,null,null,null,null,null,null,null,null,null,null,null,null,null,null,null,null,null,null,null,null,null,null,null,null,null,null,null,null,null,null,null,null,null,{"$f":"COUNTIF(BE288:BE296,1)","v":0}]
["9.6.a","mod. gietijzer 400/400 - B125","modèle fonte nodulaire 400/400 - B125","VH","st",205,null,null,null,null,null,0,"","","",null,null,null,null,null,null,null,null,null,null,null,null,null,null,null,null,null,null,null,null,null,null,null,null,null,null,null,null,null,null,null,null,null,null,null,null,null,null,null,null,null,{"$f":"IF($L288<>0,1,0)","v":0}]
["9.6.b","mod. gietijzer 630/630 - B125","modèle fonte nodulaire 630/630 - B125","VH","st",368,null,null,null,null,null,0,"","","",null,null,null,null,null,null,null,null,null,null,null,null,null,null,null,null,null,null,null,null,null,null,null,null,null,null,null,null,null,null,null,null,null,null,null,null,null,null,null,null,null,0]
["9.6.c","mod. gietijzer 800/800 - B125","modèle fonte nodulaire 800/800 - B125","VH","st",481,null,null,null,null,null,0,"","","",null,null,null,null,null,null,null,null,null,null,null,null,null,null,null,null,null,null,null,null,null,null,null,null,null,null,null,null,null,null,null,null,null,null,null,null,null,null,null,null,null,0]
["9.6.d","mod. gietijzer 400/400 - C250","modèle fonte nodulaire 400/400 - C250","VH","st",270,null,null,null,null,null,0,"","","",null,null,null,null,null,null,null,null,null,null,null,null,null,null,null,null,null,null,null,null,null,null,null,null,null,null,null,null,null,null,null,null,null,null,null,null,null,null,null,null,null,0]
["9.6.e","mod. gietijzer 630/630 - C250","modèle fonte nodulaire 630/630 - C250","VH","st",509,null,null,null,null,null,0,"","","",null,null,null,null,null,null,null,null,null,null,null,null,null,null,null,null,null,null,null,null,null,null,null,null,null,null,null,null,null,null,null,null,null,null,null,null,null,null,null,null,null,0]
["9.6.f","mod. gietijzer 800/800 - C250","modèle fonte nodulaire 800/800 - C250","VH","st",641,null,null,null,null,null,0,"","","",null,null,null,null,null,null,null,null,null,null,null,null,null,null,null,null,null,null,null,null,null,null,null,null,null,null,null,null,null,null,null,null,null,null,null,null,null,null,null,null,null,0]
["9.6.g","mod. gietijzer 400/400 - D400","modèle fonte nodulaire 400/400 - D400","VH","st",321,null,null,null,null,null,0,"","","",null,null,null,null,null,null,null,null,null,null,null,null,null,null,null,null,null,null,null,null,null,null,null,null,null,null,null,null,null,null,null,null,null,null,null,null,null,null,null,null,null,0]
["9.6.h","mod. gietijzer 630/630 - D400","modèle fonte nodulaire 630/630 - D400","VH","st",615,null,null,null,null,null,0,"","","",null,null,null,null,null,null,null,null,null,null,null,null,null,null,null,null,null,null,null,null,null,null,null,null,null,null,null,null,null,null,null,null,null,null,null,null,null,null,null,null,null,0]
["9.6.i","mod. gietijzer 800/800 - D400","modèle fonte nodulaire 800/800 - D400","VH","st",817,null,null,null,null,null,0,"","","",null,null,null,null,null,null,null,null,null,null,null,null,null,null,null,null,null,null,null,null,null,null,null,null,null,null,null,null,null,null,null,null,null,null,null,null,null,null,null,null,null,0]
["9.7","LEIDINGEN IN DE GROND","CONDUITES ENTERRES",null,null,null,null,null,null,null,null,0,"","","",null,null,null,null,null,null,null,null,null,null,null,null,null,null,null,null,null,null,null,null,null,null,null,null,null,null,null,null,null,null,null,null,null,null,null,null,null,null,null,null,null,{"$f":"COUNTIF(BE298:BE326,1)","v":0}]
["9.7.1","PVC-buizen voor riolering of trekbuis","Tuyaux PVC pour égouttage ou gaines d'attente avec tire-fils",null,null,null,null,null,null,null,null,{"$f":"+J298+K298","v":0},"","","",null,null,null,null,null,null,null,null,null,null,null,null,null,null,null,null,null,null,null,null,null,null,null,null,null,null,null,null,null,null,null,null,null,null,null,null,null,null,null,null,null,{"$f":"COUNTIF(BE299:BE303,1)","v":0}]
["9.7.1.a","   80 mm","   80 mm","VH","m",18.7,null,null,null,null,null,0,"","","",null,null,null,null,null,null,null,null,null,null,null,null,null,null,null,null,null,null,null,null,null,null,null,null,null,null,null,null,null,null,null,null,null,null,null,null,null,null,null,null,null,{"$f":"IF($L299<>0,1,0)","v":0}]
["9.7.1.b","   110 mm","   110 mm","VH","m",21.3,null,null,null,null,null,0,"","","",null,null,null,null,null,null,null,null,null,null,null,null,null,null,null,null,null,null,null,null,null,null,null,null,null,null,null,null,null,null,null,null,null,null,null,null,null,null,null,null,null,{"$f":"IF($L300<>0,1,0)","v":0}]
["9.7.1.c","   125 mm","   125 mm","VH","m",27.5,null,null,null,null,null,0,"","","",null,null,null,null,null,null,null,null,null,null,null,null,null,null,null,null,null,null,null,null,null,null,null,null,null,null,null,null,null,null,null,null,null,null,null,null,null,null,null,null,null,{"$f":"IF($L301<>0,1,0)","v":0}]
["9.7.1.d","   160 mm","   160 mm","VH","m",31.3,null,null,null,null,null,0,"","","",null,null,null,null,null,null,null,null,null,null,null,null,null,null,null,null,null,null,null,null,null,null,null,null,null,null,null,null,null,null,null,null,null,null,null,null,null,null,null,null,null,{"$f":"IF($L302<>0,1,0)","v":0}]
["9.7.1.e","   200 mm","   200 mm","VH","m",37.5,null,null,null,null,null,0,"","","",null,null,null,null,null,null,null,null,null,null,null,null,null,null,null,null,null,null,null,null,null,null,null,null,null,null,null,null,null,null,null,null,null,null,null,null,null,null,null,null,null,{"$f":"IF($L303<>0,1,0)","v":0}]
["9.7.2","PE-buizen voor riolering","Tubes PE pour égouttage",null,null,null,null,null,null,null,null,0,"","","",null,null,null,null,null,null,null,null,null,null,null,null,null,null,null,null,null,null,null,null,null,null,null,null,null,null,null,null,null,null,null,null,null,null,null,null,null,null,null,null,null,{"$f":"COUNTIF(BE305:BE306,1)","v":0}]
["9.7.2.a","   110 mm","   110 mm","VH","m",30,null,null,null,null,null,0,"","","",null,null,null,null,null,null,null,null,null,null,null,null,null,null,null,null,null,null,null,null,null,null,null,null,null,null,null,null,null,null,null,null,null,null,null,null,null,null,null,null,null,{"$f":"IF($L305<>0,1,0)","v":0}]
["9.7.2.b","   160 mm","   160 mm","VH","m",40.1,null,null,null,null,null,0,"","","",null,null,null,null,null,null,null,null,null,null,null,null,null,null,null,null,null,null,null,null,null,null,null,null,null,null,null,null,null,null,null,null,null,null,null,null,null,null,null,null,null,{"$f":"IF($L306<>0,1,0)","v":0}]
["9.7.3","Geribde HDPE-trekbuizen","Tuyau cannelé en HDPE avec tire-fils",null,null,null,null,null,null,null,null,0,"","","",null,null,null,null,null,null,null,null,null,null,null,null,null,null,null,null,null,null,null,null,null,null,null,null,null,null,null,null,null,null,null,null,null,null,null,null,null,null,null,null,null,{"$f":"COUNTIF(BE308:BE309,1)","v":0}]
["9.7.3.a","   110 mm","   110 mm","VH","m",21.3,null,null,null,null,null,0,"","","",null,null,null,null,null,null,null,null,null,null,null,null,null,null,null,null,null,null,null,null,null,null,null,null,null,null,null,null,null,null,null,null,null,null,null,null,null,null,null,null,null,{"$f":"IF($L308<>0,1,0)","v":0}]
["9.7.3.b","   160 mm","   160 mm","VH","m",31.3,null,null,null,null,null,0,"","","",null,null,null,null,null,null,null,null,null,null,null,null,null,null,null,null,null,null,null,null,null,null,null,null,null,null,null,null,null,null,null,null,null,null,null,null,null,null,null,null,null,{"$f":"IF($L309<>0,1,0)","v":0}]
["9.7.4","HDPE-buizen","Tuyaux HDPE",null,null,null,null,null,null,null,null,0,"","","",null,null,null,null,null,null,null,null,null,null,null,null,null,null,null,null,null,null,null,null,null,null,null,null,null,null,null,null,null,null,null,null,null,null,null,null,null,null,null,null,null,{"$f":"COUNTIF(BE311:BE318,1)","v":0}]
["9.7.4.a","   20 mm","   20 mm","VH","m",13.7,null,null,null,null,null,0,"","","",null,null,null,null,null,null,null,null,null,null,null,null,null,null,null,null,null,null,null,null,null,null,null,null,null,null,null,null,null,null,null,null,null,null,null,null,null,null,null,null,null,{"$f":"IF($L311<>0,1,0)","v":0}]
["9.7.4.b","   25 mm","   25 mm","VH","m",15.1,null,null,null,null,null,0,"","","",null,null,null,null,null,null,null,null,null,null,null,null,null,null,null,null,null,null,null,null,null,null,null,null,null,null,null,null,null,null,null,null,null,null,null,null,null,null,null,null,null,0]
["9.7.4.c","   32 mm","   32 mm","VH","m",16.2,null,null,null,null,null,0,"","","",null,null,null,null,null,null,null,null,null,null,null,null,null,null,null,null,null,null,null,null,null,null,null,null,null,null,null,null,null,null,null,null,null,null,null,null,null,null,null,null,null,0]
["9.7.4.d","   40 mm","40 mm","VH","m",17.600000000000001,null,null,null,null,null,0,"","","",null,null,null,null,null,null,null,null,null,null,null,null,null,null,null,null,null,null,null,null,null,null,null,null,null,null,null,null,null,null,null,null,null,null,null,null,null,null,null,null,null,0]
["9.7.4.e","   50 mm","   50 mm","VH","m",18.7,null,null,null,null,null,0,"","","",null,null,null,null,null,null,null,null,null,null,null,null,null,null,null,null,null,null,null,null,null,null,null,null,null,null,null,null,null,null,null,null,null,null,null,null,null,null,null,null,null,0]
["9.7.4.f","   63 mm","   63 mm","VH","m",21.3,null,null,null,null,null,0,"","","",null,null,null,null,null,null,null,null,null,null,null,null,null,null,null,null,null,null,null,null,null,null,null,null,null,null,null,null,null,null,null,null,null,null,null,null,null,null,null,null,null,0]
["9.7.4.g","   90 mm","90 mm","VH","m",27.5,null,null,null,null,null,0,"","","",null,null,null,null,null,null,null,null,null,null,null,null,null,null,null,null,null,null,null,null,null,null,null,null,null,null,null,null,null,null,null,null,null,null,null,null,null,null,null,null,null,0]
["9.7.4.h","   110 mm","110 mm","VH","m",33.799999999999997,null,null,null,null,null,0,"","","",null,null,null,null,null,null,null,null,null,null,null,null,null,null,null,null,null,null,null,null,null,null,null,null,null,null,null,null,null,null,null,null,null,null,null,null,null,null,null,null,null,0]
["9.7.5","Zandcement","Sable stabilisé","VH","m³",87.7,null,null,null,null,null,0,"","","",null,null,null,null,null,null,null,null,null,null,null,null,null,null,null,null,null,null,null,null,null,null,null,null,null,null,null,null,null,null,null,null,null,null,null,null,null,null,null,null,null,0]
["9.7.6","HDPE-buizen PN6 in trekbuizen","Tuyaux en HDPE PN6 placés dans des gaines d’attente avec tire-fils",null,null,null,null,null,null,null,null,0,"","","",null,null,null,null,null,null,null,null,null,null,null,null,null,null,null,null,null,null,null,null,null,null,null,null,null,null,null,null,null,null,null,null,null,null,null,null,null,null,null,null,null,{"$f":"COUNTIF(BE321:BE326,1)","v":0}]
["9.7.6.a","   20 mm","20 mm","VH","m",13.7,null,null,null,null,null,0,"","","",null,null,null,null,null,null,null,null,null,null,null,null,null,null,null,null,null,null,null,null,null,null,null,null,null,null,null,null,null,null,null,null,null,null,null,null,null,null,null,null,null,{"$f":"IF($L321<>0,1,0)","v":0}]
["9.7.6.b","   25 mm","25 mm","VH","m",15.1,null,null,null,null,null,0,"","","",null,null,null,null,null,null,null,null,null,null,null,null,null,null,null,null,null,null,null,null,null,null,null,null,null,null,null,null,null,null,null,null,null,null,null,null,null,null,null,null,null,0]
["9.7.6.c","   32 mm","32 mm","VH","m",16.2,null,null,null,null,null,0,"","","",null,null,null,null,null,null,null,null,null,null,null,null,null,null,null,null,null,null,null,null,null,null,null,null,null,null,null,null,null,null,null,null,null,null,null,null,null,null,null,null,null,0]
["9.7.6.d","   40 mm","40 mm","VH","m",17.600000000000001,null,null,null,null,null,0,"","","",null,null,null,null,null,null,null,null,null,null,null,null,null,null,null,null,null,null,null,null,null,null,null,null,null,null,null,null,null,null,null,null,null,null,null,null,null,null,null,null,null,0]
["9.7.6.e","   50 mm","50 mm","VH","m",18.7,null,null,null,null,null,0,"","","",null,null,null,null,null,null,null,null,null,null,null,null,null,null,null,null,null,null,null,null,null,null,null,null,null,null,null,null,null,null,null,null,null,null,null,null,null,null,null,null,null,0]
["9.7.6.f","   63 mm","63 mm","VH","m",21.3,null,null,null,null,null,0,"","","",null,null,null,null,null,null,null,null,null,null,null,null,null,null,null,null,null,null,null,null,null,null,null,null,null,null,null,null,null,null,null,null,null,null,null,null,null,null,null,null,null,0]
["9.8","OVERNAME BOORSLIB EN GROND*","ACCEPTATION DES BOUES DE FORAGES ET DES TERRES*","TP",null,"nvt",null,null,null,null,null,{"$f":"+J327+K327","v":0},"","","",null,null,null,null,null,null,null,null,null,null,null,null,null,null,null,null,null,null,null,null,null,null,null,null,null,null,null,null,null,null,null,null,null,null,null,null,null,null,null,null,null,{"$f":"IF($L327<>0,1,0)","v":0}]
[null,null,null,null,null,null,null,null,null,null,null,{"$f":"+J328+K328","v":0},"","","",null,null,null,null,null,null,null,null,null,null,null,null,null,null,null,null,null,null,null,null,null,null,null,null,null,null,null,null,null,null,null,null,null,null,null,null,null,null,null,null,null,{"$f":"+BE329","v":0}]
[10,"BOVENGRONDSE LEIDINGSYSTEMEN","SYSTEMES DE CONDUITES EN SURFACE",null,null,null,null,null,null,null,null,0,"","","",null,null,null,null,null,null,null,null,null,null,null,null,null,null,null,null,null,null,null,null,null,null,null,null,null,null,null,null,null,null,null,null,null,null,null,null,null,null,null,null,null,{"$f":"COUNTIF(BE330:BE383,1)","v":0}]
["10.1","HDPE-BUIZEN PN6","TUYEAU HDPE PN6",null,null,null,null,null,null,null,null,0,"","","",null,null,null,null,null,null,null,null,null,null,null,null,null,null,null,null,null,null,null,null,null,null,null,null,null,null,null,null,null,null,null,null,null,null,null,null,null,null,null,null,null,{"$f":"COUNTIF(BE331:BE338,1)","v":0}]
["10.1.a","20 mm","- 20 mm","VH","m",5,null,null,null,null,null,0,"","","",null,null,null,null,null,null,null,null,null,null,null,null,null,null,null,null,null,null,null,null,null,null,null,null,null,null,null,null,null,null,null,null,null,null,null,null,null,null,null,null,null,{"$f":"IF($L331<>0,1,0)","v":0}]
["10.1.b","25 mm","- 25 mm","VH","m",6.25,null,null,null,null,null,0,"","","",null,null,null,null,null,null,null,null,null,null,null,null,null,null,null,null,null,null,null,null,null,null,null,null,null,null,null,null,null,null,null,null,null,null,null,null,null,null,null,null,null,0]
["10.1.c","32 mm","- 32 mm","VH","m",7.52,null,null,null,null,null,0,"","","",null,null,null,null,null,null,null,null,null,null,null,null,null,null,null,null,null,null,null,null,null,null,null,null,null,null,null,null,null,null,null,null,null,null,null,null,null,null,null,null,null,0]
["10.1.d","40 mm","- 40 mm","VH","m",8.76,null,null,null,null,null,0,{"$f":"IF(AND(ISTEXT($D334),ISNUMBER($G334)),ROUND(J334*$G334,2),\"\")","v":""},{"$f":"IF(AND(ISTEXT($D334),ISNUMBER($G334)),ROUND(K334*$G334,2),\"\")","v":""},{"$f":"IF(AND(ISTEXT($D334),ISNUMBER($G334)),N334+M334,\"\")","v":""},null,null,null,null,null,null,null,null,null,null,null,null,null,null,null,null,null,null,null,null,null,null,null,null,null,null,null,null,null,null,null,null,null,null,null,null,null,null,null,null,null,0]
["10.1.e","50 mm","- 50 mm","VH","m",10,null,null,null,null,null,0,"","","",null,null,null,null,null,null,null,null,null,null,null,null,null,null,null,null,null,null,null,null,null,null,null,null,null,null,null,null,null,null,null,null,null,null,null,null,null,null,null,null,null,0]
["10.1.f","63 mm","- 63 mm","VH","m",12.6,null,null,null,null,null,0,"","","",null,null,null,null,null,null,null,null,null,null,null,null,null,null,null,null,null,null,null,null,null,null,null,null,null,null,null,null,null,null,null,null,null,null,null,null,null,null,null,null,null,0]
["10.1.g","90 mm","- 90 mm","VH","m",18.7,null,null,null,null,null,0,"","","",null,null,null,null,null,null,null,null,null,null,null,null,null,null,null,null,null,null,null,null,null,null,null,null,null,null,null,null,null,null,null,null,null,null,null,null,null,null,null,null,null,0]
["10.1.h","110 mm","- 110 mm","VH","m",23.8,null,null,null,null,null,0,"","","",null,null,null,null,null,null,null,null,null,null,null,null,null,null,null,null,null,null,null,null,null,null,null,null,null,null,null,null,null,null,null,null,null,null,null,null,null,null,null,null,null,0]
["10.2","SLANGEN","FLEXIBLES",null,null,null,null,null,null,null,null,0,"","","",null,null,null,null,null,null,null,null,null,null,null,null,null,null,null,null,null,null,null,null,null,null,null,null,null,null,null,null,null,null,null,null,null,null,null,null,null,null,null,null,null,{"$f":"COUNTIF(BE340:BE345,1)","v":0}]
["10.2.a","½''","½''","VH","m",8.76,null,null,null,null,null,0,"","","",null,null,null,null,null,null,null,null,null,null,null,null,null,null,null,null,null,null,null,null,null,null,null,null,null,null,null,null,null,null,null,null,null,null,null,null,null,null,null,null,null,{"$f":"IF($L340<>0,1,0)","v":0}]
["10.2.b","¾''","¾''","VH","m",10,null,null,null,null,null,0,"","","",null,null,null,null,null,null,null,null,null,null,null,null,null,null,null,null,null,null,null,null,null,null,null,null,null,null,null,null,null,null,null,null,null,null,null,null,null,null,null,null,null,0]
["10.2.c","1''","1''","VH","m",11.3,null,null,null,null,null,0,"","","",null,null,null,null,null,null,null,null,null,null,null,null,null,null,null,null,null,null,null,null,null,null,null,null,null,null,null,null,null,null,null,null,null,null,null,null,null,null,null,null,null,0]
["10.2.d","1 ¼''","1 ¼''","VH","m",12.6,null,null,null,null,null,0,"","","",null,null,null,null,null,null,null,null,null,null,null,null,null,null,null,null,null,null,null,null,null,null,null,null,null,null,null,null,null,null,null,null,null,null,null,null,null,null,null,null,null,0]
["10.2.e","1 ½''","1 ½''","VH","m",15.1,null,null,null,null,null,0,"","","",null,null,null,null,null,null,null,null,null,null,null,null,null,null,null,null,null,null,null,null,null,null,null,null,null,null,null,null,null,null,null,null,null,null,null,null,null,null,null,null,null,0]
["10.2.f","2''","2''","VH","m",21.3,null,null,null,null,null,0,"","","",null,null,null,null,null,null,null,null,null,null,null,null,null,null,null,null,null,null,null,null,null,null,null,null,null,null,null,null,null,null,null,null,null,null,null,null,null,null,null,null,null,0]
["10.3","KOGELKRANEN","VANNES A BILLE",null,null,null,null,null,null,null,null,0,"","","",null,null,null,null,null,null,null,null,null,null,null,null,null,null,null,null,null,null,null,null,null,null,null,null,null,null,null,null,null,null,null,null,null,null,null,null,null,null,null,null,null,{"$f":"COUNTIF(BE347:BE353,1)","v":0}]
["10.3.a","¼\"","¼\"","VH","st",12.6,null,null,null,null,null,0,"","","",null,null,null,null,null,null,null,null,null,null,null,null,null,null,null,null,null,null,null,null,null,null,null,null,null,null,null,null,null,null,null,null,null,null,null,null,null,null,null,null,null,{"$f":"IF($L347<>0,1,0)","v":0}]
["10.3.b","½''","½''","VH","st",13.7,null,null,null,null,null,0,"","","",null,null,null,null,null,null,null,null,null,null,null,null,null,null,null,null,null,null,null,null,null,null,null,null,null,null,null,null,null,null,null,null,null,null,null,null,null,null,null,null,null,0]
["10.3.c","¾''","¾''","VH","st",17.600000000000001,null,null,null,null,null,0,"","","",null,null,null,null,null,null,null,null,null,null,null,null,null,null,null,null,null,null,null,null,null,null,null,null,null,null,null,null,null,null,null,null,null,null,null,null,null,null,null,null,null,0]
["10.3.d","1''","1''","VH","st",23.8,null,null,null,null,null,0,"","","",null,null,null,null,null,null,null,null,null,null,null,null,null,null,null,null,null,null,null,null,null,null,null,null,null,null,null,null,null,null,null,null,null,null,null,null,null,null,null,null,null,0]
["10.3.e","1 ¼''","1 ¼''","VH","st",31.3,null,null,null,null,null,0,"","","",null,null,null,null,null,null,null,null,null,null,null,null,null,null,null,null,null,null,null,null,null,null,null,null,null,null,null,null,null,null,null,null,null,null,null,null,null,null,null,null,null,0]
["10.3.f","1 ½''","1 ½''","VH","st",40.1,null,null,null,null,null,0,"","","",null,null,null,null,null,null,null,null,null,null,null,null,null,null,null,null,null,null,null,null,null,null,null,null,null,null,null,null,null,null,null,null,null,null,null,null,null,null,null,null,null,0]
["10.3.g","2''","2''","VH","st",50,null,null,null,null,null,0,"","","",null,null,null,null,null,null,null,null,null,null,null,null,null,null,null,null,null,null,null,null,null,null,null,null,null,null,null,null,null,null,null,null,null,null,null,null,null,null,null,null,null,0]
["10.4","SCHUIFAFSLUITERS","VANNES A GUILLOTNE",null,null,null,null,null,null,null,null,0,"","","",null,null,null,null,null,null,null,null,null,null,null,null,null,null,null,null,null,null,null,null,null,null,null,null,null,null,null,null,null,null,null,null,null,null,null,null,null,null,null,null,null,{"$f":"COUNTIF(BE355:BE362,1)","v":0}]
["10.4.a","½''","½''","VH","st",17.600000000000001,null,null,null,null,null,0,"","","",null,null,null,null,null,null,null,null,null,null,null,null,null,null,null,null,null,null,null,null,null,null,null,null,null,null,null,null,null,null,null,null,null,null,null,null,null,null,null,null,null,{"$f":"IF($L355<>0,1,0)","v":0}]
["10.4.b","¾''","¾''","VH","st",18.7,null,null,null,null,null,0,"","","",null,null,null,null,null,null,null,null,null,null,null,null,null,null,null,null,null,null,null,null,null,null,null,null,null,null,null,null,null,null,null,null,null,null,null,null,null,null,null,null,null,0]
["10.4.c","1''","1''","VH","st",22.5,null,null,null,null,null,0,"","","",null,null,null,null,null,null,null,null,null,null,null,null,null,null,null,null,null,null,null,null,null,null,null,null,null,null,null,null,null,null,null,null,null,null,null,null,null,null,null,null,null,0]
["10.4.d","1 ¼''","1 ¼''","VH","st",27.5,null,null,null,null,null,0,"","","",null,null,null,null,null,null,null,null,null,null,null,null,null,null,null,null,null,null,null,null,null,null,null,null,null,null,null,null,null,null,null,null,null,null,null,null,null,null,null,null,null,0]
["10.4.e","1 ½''","1 ½''","VH","st",33.799999999999997,null,null,null,null,null,0,"","","",null,null,null,null,null,null,null,null,null,null,null,null,null,null,null,null,null,null,null,null,null,null,null,null,null,null,null,null,null,null,null,null,null,null,null,null,null,null,null,null,null,0]
["10.4.f","2''","2''","VH","st",45.1,null,null,null,null,null,0,"","","",null,null,null,null,null,null,null,null,null,null,null,null,null,null,null,null,null,null,null,null,null,null,null,null,null,null,null,null,null,null,null,null,null,null,null,null,null,null,null,null,null,0]
["10.4.g","3''","3''","VH","st",105,null,null,null,null,null,0,"","","",null,null,null,null,null,null,null,null,null,null,null,null,null,null,null,null,null,null,null,null,null,null,null,null,null,null,null,null,null,null,null,null,null,null,null,null,null,null,null,null,null,0]
["10.4.h","4''","4''","VH","st",179,null,null,null,null,null,0,"","","",null,null,null,null,null,null,null,null,null,null,null,null,null,null,null,null,null,null,null,null,null,null,null,null,null,null,null,null,null,null,null,null,null,null,null,null,null,null,null,null,null,0]
["10.5","MANIFOLD","MANIFOLD (collecteur)",null,null,null,null,null,null,null,null,{"$f":"+J363+K363","v":0},"","","",null,null,null,null,null,null,null,null,null,null,null,null,null,null,null,null,null,null,null,null,null,null,null,null,null,null,null,null,null,null,null,null,null,null,null,null,null,null,null,null,null,{"$f":"COUNTIF(BE364:BE374,1)","v":0}]
["10.5.a","manifold 2''","- manifold 2''","VH","st",588,null,null,null,null,null,0,"","","",null,null,null,null,null,null,null,null,null,null,null,null,null,null,null,null,null,null,null,null,null,null,null,null,null,null,null,null,null,null,null,null,null,null,null,null,null,null,null,null,null,{"$f":"IF($L364<>0,1,0)","v":0}]
["10.5.b","manifold 3''","- manifold 3''","VH","st",639,null,null,null,null,null,0,"","","",null,null,null,null,null,null,null,null,null,null,null,null,null,null,null,null,null,null,null,null,null,null,null,null,null,null,null,null,null,null,null,null,null,null,null,null,null,null,null,null,null,0]
["10.5.c","manifold 4''","- manifold 4''","VH","st",689,null,null,null,null,null,0,"","","",null,null,null,null,null,null,null,null,null,null,null,null,null,null,null,null,null,null,null,null,null,null,null,null,null,null,null,null,null,null,null,null,null,null,null,null,null,null,null,null,null,0]
["10.5.d","aansluiting ½''","- branchement ½''","VH","st",32.6,null,null,null,null,null,0,"","","",null,null,null,null,null,null,null,null,null,null,null,null,null,null,null,null,null,null,null,null,null,null,null,null,null,null,null,null,null,null,null,null,null,null,null,null,null,null,null,null,null,0]
["10.5.e","aansluiting ¾\"","- branchement ¾''","VH","st",37.5,null,null,null,null,null,0,"","","",null,null,null,null,null,null,null,null,null,null,null,null,null,null,null,null,null,null,null,null,null,null,null,null,null,null,null,null,null,null,null,null,null,null,null,null,null,null,null,null,null,0]
["10.5.f","aansluiting 1''","- branchement 1''","VH","st",51.4,null,null,null,null,null,0,"","","",null,null,null,null,null,null,null,null,null,null,null,null,null,null,null,null,null,null,null,null,null,null,null,null,null,null,null,null,null,null,null,null,null,null,null,null,null,null,null,null,null,0]
["10.5.g","aansluiting 1 ¼''","- branchement 1 ¼''","VH","st",62.5,null,null,null,null,null,0,"","","",null,null,null,null,null,null,null,null,null,null,null,null,null,null,null,null,null,null,null,null,null,null,null,null,null,null,null,null,null,null,null,null,null,null,null,null,null,null,null,null,null,0]
["10.5.h","aansluiting 1 ½''","- branchement 1 ½''","VH","st",75.2,null,null,null,null,null,0,"","","",null,null,null,null,null,null,null,null,null,null,null,null,null,null,null,null,null,null,null,null,null,null,null,null,null,null,null,null,null,null,null,null,null,null,null,null,null,null,null,null,null,0]
["10.5.i","aansluiting 2''","- branchement 2''","VH","st",84,null,null,null,null,null,0,"","","",null,null,null,null,null,null,null,null,null,null,null,null,null,null,null,null,null,null,null,null,null,null,null,null,null,null,null,null,null,null,null,null,null,null,null,null,null,null,null,null,null,0]
["10.5.j","aansluiting 3''","- branchement 3''","VH","st",103,null,null,null,null,null,0,"","","",null,null,null,null,null,null,null,null,null,null,null,null,null,null,null,null,null,null,null,null,null,null,null,null,null,null,null,null,null,null,null,null,null,null,null,null,null,null,null,null,null,0]
["10.5.k","aansluiting 4''","- branchement 4''","VH","st",133,null,null,null,null,null,0,"","","",null,null,null,null,null,null,null,null,null,null,null,null,null,null,null,null,null,null,null,null,null,null,null,null,null,null,null,null,null,null,null,null,null,null,null,null,null,null,null,null,null,0]
["10.6","FLENSDEBIETMETERS","DEBITMETREs A DIAPHRAGME",null,null,null,null,null,null,null,null,0,"","","",null,null,null,null,null,null,null,null,null,null,null,null,null,null,null,null,null,null,null,null,null,null,null,null,null,null,null,null,null,null,null,null,null,null,null,null,null,null,null,null,null,{"$f":"COUNTIF(BE376:BE383,1)","v":0}]
["10.6.a","20 mm","20 mm","VH","st",87.6,null,null,null,null,null,0,"","","",null,null,null,null,null,null,null,null,null,null,null,null,null,null,null,null,null,null,null,null,null,null,null,null,null,null,null,null,null,null,null,null,null,null,null,null,null,null,null,null,null,0]
["10.6.b","25 mm","25 mm","VH","st",87.6,null,null,null,null,null,0,"","","",null,null,null,null,null,null,null,null,null,null,null,null,null,null,null,null,null,null,null,null,null,null,null,null,null,null,null,null,null,null,null,null,null,null,null,null,null,null,null,null,null,0]
["10.6.c","32 mm","32 mm","VH","st",93.9,null,null,null,null,null,0,"","","",null,null,null,null,null,null,null,null,null,null,null,null,null,null,null,null,null,null,null,null,null,null,null,null,null,null,null,null,null,null,null,null,null,null,null,null,null,null,null,null,null,0]
["10.6.d","40 mm","40 mm","VH","st",106,null,null,null,null,null,0,"","","",null,null,null,null,null,null,null,null,null,null,null,null,null,null,null,null,null,null,null,null,null,null,null,null,null,null,null,null,null,null,null,null,null,null,null,null,null,null,null,null,null,0]
["10.6.e","50 mm","50 mm","VH","st",126,null,null,null,null,null,0,"","","",null,null,null,null,null,null,null,null,null,null,null,null,null,null,null,null,null,null,null,null,null,null,null,null,null,null,null,null,null,null,null,null,null,null,null,null,null,null,null,null,null,0]
["10.6.f","63 mm","63 mm","VH","st",143,null,null,null,null,null,0,"","","",null,null,null,null,null,null,null,null,null,null,null,null,null,null,null,null,null,null,null,null,null,null,null,null,null,null,null,null,null,null,null,null,null,null,null,null,null,null,null,null,null,0]
["10.6.g","90 mm","90 mm","VH","st",187,null,null,null,null,null,0,"","","",null,null,null,null,null,null,null,null,null,null,null,null,null,null,null,null,null,null,null,null,null,null,null,null,null,null,null,null,null,null,null,null,null,null,null,null,null,null,null,null,null,0]
["10.6.h","110 mm","110 mm","VH","st",220,null,null,null,null,null,0,"","","",null,null,null,null,null,null,null,null,null,null,null,null,null,null,null,null,null,null,null,null,null,null,null,null,null,null,null,null,null,null,null,null,null,null,null,null,null,null,null,null,null,0]
[null,"",null,null,null,null,null,null,null,null,null,0,"","","",null,null,null,null,null,null,null,null,null,null,null,null,null,null,null,null,null,null,null,null,null,null,null,null,null,null,null,null,null,null,null,null,null,null,null,null,null,null,null,null,null,{"$f":"+BE385","v":0}]
[11,"ONTTREKKINGS-, INJECTIES- EN ZUIVERINGINSTALLATIES","INSTALLATIONS D'EXTRACTION, SYSTMES D'INJECTION ET INSTALLATIONS DE TRAITEMENT",null,null,null,null,null,null,null,null,0,"","","",null,null,null,null,null,null,null,null,null,null,null,null,null,null,null,null,null,null,null,null,null,null,null,null,null,null,null,null,null,null,null,null,null,null,null,null,null,null,null,null,null,{"$f":"COUNTIF(BE386:BE575,1)","v":0}]
["11.1","LUCHTONTTREKKING (BLE)","EXTRACTION D'AIR DU SOL (EAS)",null,null,null,null,null,null,null,null,0,"","","",null,null,null,null,null,null,null,null,null,null,null,null,null,null,null,null,null,null,null,null,null,null,null,null,null,null,null,null,null,null,null,null,null,null,null,null,null,null,null,null,null,{"$f":"COUNTIF(BE387:BE394,1)","v":0}]
["11.1.a","levering en plaatsing 75 Nm³/uur","- livraison et placement 75 Nm³/heure","TP",null,1420,null,null,null,null,null,0,"","","",null,null,null,null,null,null,null,null,null,null,null,null,null,null,null,null,null,null,null,null,null,null,null,null,null,null,null,null,null,null,null,null,null,null,null,null,null,null,null,null,null,{"$f":"IF($L387<>0,1,0)","v":0}]
["11.1.b","levering en plaatsing 150 Nm³/uur","- livraison et placement 150 Nm³/heure","TP",null,1610,null,null,null,null,null,0,"","","",null,null,null,null,null,null,null,null,null,null,null,null,null,null,null,null,null,null,null,null,null,null,null,null,null,null,null,null,null,null,null,null,null,null,null,null,null,null,null,null,null,0]
["11.1.c","levering en plaatsing 300 Nm³/uur","- livraison et placement 300 Nm³/heure","TP",null,1840,null,null,null,null,null,0,"","","",null,null,null,null,null,null,null,null,null,null,null,null,null,null,null,null,null,null,null,null,null,null,null,null,null,null,null,null,null,null,null,null,null,null,null,null,null,null,null,null,null,0]
["11.1.d","levering en plaatsing 500 Nm³/uur","- livraison et placement 500 Nm³/heure","TP",null,2060,null,null,null,null,null,0,"","","",null,null,null,null,null,null,null,null,null,null,null,null,null,null,null,null,null,null,null,null,null,null,null,null,null,null,null,null,null,null,null,null,null,null,null,null,null,null,null,null,null,0]
["11.1.e","huur installatie 75 Nm³/uur","- location installation 75 Nm³/heure","VH","wk",136,null,null,null,null,null,0,"","","",null,null,null,null,null,null,null,null,null,null,null,null,null,null,null,null,null,null,null,null,null,null,null,null,null,null,null,null,null,null,null,null,null,null,null,null,null,null,null,null,null,0]
["11.1.f","huur installatie 150 Nm³/uur","- location installation 150 Nm³/heure","VH","wk",144,null,null,null,null,null,0,"","","",null,null,null,null,null,null,null,null,null,null,null,null,null,null,null,null,null,null,null,null,null,null,null,null,null,null,null,null,null,null,null,null,null,null,null,null,null,null,null,null,null,0]
["11.1.g","huur installatie 300 Nm³/uur","- location installation 300 Nm³/heure","VH","wk",175,null,null,null,null,null,0,"","","",null,null,null,null,null,null,null,null,null,null,null,null,null,null,null,null,null,null,null,null,null,null,null,null,null,null,null,null,null,null,null,null,null,null,null,null,null,null,null,null,null,0]
["11.1.h","huur installatie 500 Nm³/uur","- location installation 500 Nm³/heure","VH","wk",205,null,null,null,null,null,0,"","","",null,null,null,null,null,null,null,null,null,null,null,null,null,null,null,null,null,null,null,null,null,null,null,null,null,null,null,null,null,null,null,null,null,null,null,null,null,null,null,null,null,0]
["11.2","WATERONTTREKKING","POMPAGE D'EAU SOUTERRAINE",null,null,null,null,null,null,null,null,0,"","","",null,null,null,null,null,null,null,null,null,null,null,null,null,null,null,null,null,null,null,null,null,null,null,null,null,null,null,null,null,null,null,null,null,null,null,null,null,null,null,null,null,{"$f":"COUNTIF(BE396:BE411,1)","v":0}]
["11.2.1","Wateronttrekking met bovengrondse pompen (zuigpompen)","Extraction de l’eau souterraine à l’aide d’une pompe aspirante de surface (pompe aérienne)",null,null,null,null,null,null,null,null,0,"","","",null,null,null,null,null,null,null,null,null,null,null,null,null,null,null,null,null,null,null,null,null,null,null,null,null,null,null,null,null,null,null,null,null,null,null,null,null,null,null,null,null,{"$f":"COUNTIF(BE397:BE404,1)","v":0}]
["11.2.1.a","   levering en plaatsing per pomp 5 m³/uur","- livraison et placement par pompe 5 m³/heure","TP",null,865,null,null,null,null,null,0,"","","",null,null,null,null,null,null,null,null,null,null,null,null,null,null,null,null,null,null,null,null,null,null,null,null,null,null,null,null,null,null,null,null,null,null,null,null,null,null,null,null,null,{"$f":"IF($L397<>0,1,0)","v":0}]
["11.2.1.b","   levering en plaatsing per pomp 10 m³/uur","- livraison et placement par pompe 10 m³/heure","TP",null,940,null,null,null,null,null,0,{"$f":"IF(AND(ISTEXT($D398),ISNUMBER($G398)),ROUND(J398*$G398,2),\"\")","v":""},{"$f":"IF(AND(ISTEXT($D398),ISNUMBER($G398)),ROUND(K398*$G398,2),\"\")","v":""},{"$f":"IF(AND(ISTEXT($D398),ISNUMBER($G398)),N398+M398,\"\")","v":""},null,null,null,null,null,null,null,null,null,null,null,null,null,null,null,null,null,null,null,null,null,null,null,null,null,null,null,null,null,null,null,null,null,null,null,null,null,null,null,null,null,0]
["11.2.1.c","   levering en plaatsing per pomp 20 m³/uur","- livraison et placement par pompe 20 m³/heure","TP",null,1060,null,null,null,null,null,0,"","","",null,null,null,null,null,null,null,null,null,null,null,null,null,null,null,null,null,null,null,null,null,null,null,null,null,null,null,null,null,null,null,null,null,null,null,null,null,null,null,null,null,0]
["11.2.1.d","   levering en plaatsing per pomp 40 m³/uur","- livraison et placement par pompe 40 m³/heure","TP",null,1260,null,null,null,null,null,0,"","","",null,null,null,null,null,null,null,null,null,null,null,null,null,null,null,null,null,null,null,null,null,null,null,null,null,null,null,null,null,null,null,null,null,null,null,null,null,null,null,null,null,0]
["11.2.1.e","   huur per pomp 5 m³/uur","- location par pompe 5 m³/heure","VH","wk",68.900000000000006,null,null,null,null,null,0,"","","",null,null,null,null,null,null,null,null,null,null,null,null,null,null,null,null,null,null,null,null,null,null,null,null,null,null,null,null,null,null,null,null,null,null,null,null,null,null,null,null,null,0]
["11.2.1.f","   huur per pomp 10 m³/uur","- location par pompe 10 m³/heure","VH","wk",78.900000000000006,null,null,null,null,null,0,"","","",null,null,null,null,null,null,null,null,null,null,null,null,null,null,null,null,null,null,null,null,null,null,null,null,null,null,null,null,null,null,null,null,null,null,null,null,null,null,null,null,null,0]
["11.2.1.g","   huur per pomp 20 m³/uur","- location par pompe 20 m³/heure","VH","wk",97.7,null,null,null,null,null,0,"","","",null,null,null,null,null,null,null,null,null,null,null,null,null,null,null,null,null,null,null,null,null,null,null,null,null,null,null,null,null,null,null,null,null,null,null,null,null,null,null,null,null,0]
["11.2.1.h","   huur per pomp 40 m³/uur","- location par pompe 40 m³/heure","VH","wk",131,null,null,null,null,null,0,"","","",null,null,null,null,null,null,null,null,null,null,null,null,null,null,null,null,null,null,null,null,null,null,null,null,null,null,null,null,null,null,null,null,null,null,null,null,null,null,null,null,null,0]
["11.2.2","Wateronttrekking met onderwaterpompen","Extraction de l’eau souterraine à l’aide d’une pompe immergée",null,null,null,null,null,null,null,null,0,"","","",null,null,null,null,null,null,null,null,null,null,null,null,null,null,null,null,null,null,null,null,null,null,null,null,null,null,null,null,null,null,null,null,null,null,null,null,null,null,null,null,null,{"$f":"COUNTIF(BE406:BE411,1)","v":0}]
["11.2.2.a","   levering en plaatsing per pomp 5 m³/uur","- livraison et placement par pompe 5 m³/heure","VH","st",791,null,null,null,null,null,0,"","","",null,null,null,null,null,null,null,null,null,null,null,null,null,null,null,null,null,null,null,null,null,null,null,null,null,null,null,null,null,null,null,null,null,null,null,null,null,null,null,null,null,{"$f":"IF($L406<>0,1,0)","v":0}]
["11.2.2.b","   levering en plaatsing per pomp 10 m³/uur","- livraison et placement par pompe 10 m³/heure","VH","st",860,null,null,null,null,null,0,"","","",null,null,null,null,null,null,null,null,null,null,null,null,null,null,null,null,null,null,null,null,null,null,null,null,null,null,null,null,null,null,null,null,null,null,null,null,null,null,null,null,null,0]
["11.2.2.c","   levering en plaatsing per pomp 20 m³/uur","- livraison et placement par pompe 20 m³/heure","VH","st",933,null,null,null,null,null,0,"","","",null,null,null,null,null,null,null,null,null,null,null,null,null,null,null,null,null,null,null,null,null,null,null,null,null,null,null,null,null,null,null,null,null,null,null,null,null,null,null,null,null,0]
["11.2.2.d","   huur per pomp 5 m³/uur","- location par pompe 5 m³/heure","VH","wk",32.6,null,null,null,null,null,0,"","","",null,null,null,null,null,null,null,null,null,null,null,null,null,null,null,null,null,null,null,null,null,null,null,null,null,null,null,null,null,null,null,null,null,null,null,null,null,null,null,null,null,0]
["11.2.2.e","   huur per pomp 10 m³/uur","- location par pompe 10 m³/heure","VH","wk",38.799999999999997,null,null,null,null,null,0,"","","",null,null,null,null,null,null,null,null,null,null,null,null,null,null,null,null,null,null,null,null,null,null,null,null,null,null,null,null,null,null,null,null,null,null,null,null,null,null,null,null,null,0]
["11.2.2.f","   huur per pomp 20 m³/uur","- location par pompe 20 m³/heure","VH","wk",47.6,null,null,null,null,null,0,"","","",null,null,null,null,null,null,null,null,null,null,null,null,null,null,null,null,null,null,null,null,null,null,null,null,null,null,null,null,null,null,null,null,null,null,null,null,null,null,null,null,null,0]
["11.3","DRIJFLAAGRECUPERATIE","RECUPERATION DE COUCHE SURNAGEANTE",null,null,null,null,null,null,null,null,0,"","","",null,null,null,null,null,null,null,null,null,null,null,null,null,null,null,null,null,null,null,null,null,null,null,null,null,null,null,null,null,null,null,null,null,null,null,null,null,null,null,null,null,{"$f":"COUNTIF(BE413:BE424,1)","v":0}]
["11.3.1","Drijflaagrecuperatie met bovengrondse pompen (zuigpompen)","Récupération de la couche surnageante à l’aide d’une pompe aspirante de surface (pompe aérienne)",null,null,null,null,null,null,null,null,0,"","","",null,null,null,null,null,null,null,null,null,null,null,null,null,null,null,null,null,null,null,null,null,null,null,null,null,null,null,null,null,null,null,null,null,null,null,null,null,null,null,null,null,{"$f":"COUNTIF(BE414:BE417,1)","v":0}]
["11.3.1.a","   levering en plaatsing per pomp 5 m³/uur","- livraison et placement par pompe 5 m³/heure","TP",null,938,null,null,null,null,null,0,"","","",null,null,null,null,null,null,null,null,null,null,null,null,null,null,null,null,null,null,null,null,null,null,null,null,null,null,null,null,null,null,null,null,null,null,null,null,null,null,null,null,null,{"$f":"IF($L414<>0,1,0)","v":0}]
["11.3.1.b","   levering en plaatsing per pomp 10 m³/uur","- livraison et placement par pompe 10 m³/heure","TP",null,1000,null,null,null,null,null,0,"","","",null,null,null,null,null,null,null,null,null,null,null,null,null,null,null,null,null,null,null,null,null,null,null,null,null,null,null,null,null,null,null,null,null,null,null,null,null,null,null,null,null,{"$f":"IF($L415<>0,1,0)","v":0}]
["11.3.1.c","   huur per pomp 5 m³/uur","- location par pompe 5 m³/heure","VH","wk",92.6,null,null,null,null,null,0,"","","",null,null,null,null,null,null,null,null,null,null,null,null,null,null,null,null,null,null,null,null,null,null,null,null,null,null,null,null,null,null,null,null,null,null,null,null,null,null,null,null,null,{"$f":"IF($L416<>0,1,0)","v":0}]
["11.3.1.d","   huur per pomp 10 m³/uur","- location par pompe 10 m³/heure","VH","wk",106,null,null,null,null,null,0,"","","",null,null,null,null,null,null,null,null,null,null,null,null,null,null,null,null,null,null,null,null,null,null,null,null,null,null,null,null,null,null,null,null,null,null,null,null,null,null,null,null,null,{"$f":"IF($L417<>0,1,0)","v":0}]
["11.3.2","Drijflaagrecuperatie met onderwaterpompen","Récupération de la couche surnageante à l’aide d’une pompe immergée",null,null,null,null,null,null,null,null,0,"","","",null,null,null,null,null,null,null,null,null,null,null,null,null,null,null,null,null,null,null,null,null,null,null,null,null,null,null,null,null,null,null,null,null,null,null,null,null,null,null,null,null,{"$f":"COUNTIF(BE419:BE420,1)","v":0}]
["11.3.2.a","   levering en plaatsing per pomp 5 m³/uur","- par pompe 5 m³/heure livraison et placement ","VH","st",908,null,null,null,null,null,0,"","","",null,null,null,null,null,null,null,null,null,null,null,null,null,null,null,null,null,null,null,null,null,null,null,null,null,null,null,null,null,null,null,null,null,null,null,null,null,null,null,null,null,{"$f":"IF($L419<>0,1,0)","v":0}]
["11.3.2.b","   huur per pomp 5 m³/uur","- location par pompe 5 m³/heure","VH","wk",47.6,null,null,null,null,null,0,"","","",null,null,null,null,null,null,null,null,null,null,null,null,null,null,null,null,null,null,null,null,null,null,null,null,null,null,null,null,null,null,null,null,null,null,null,null,null,null,null,null,null,{"$f":"IF($L420<>0,1,0)","v":0}]
["11.3.3","Manuele drijflaagrecuperatie","Récupération manuelle de la couche surnageante",null,null,null,null,null,null,null,null,0,"","","",null,null,null,null,null,null,null,null,null,null,null,null,null,null,null,null,null,null,null,null,null,null,null,null,null,null,null,null,null,null,null,null,null,null,null,null,null,null,null,null,null,{"$f":"COUNTIF(BE422:BE424,1)","v":0}]
["11.3.3.a","   mob/demob","- mob/démob","VH","st",328,null,null,null,null,null,0,"","","",null,null,null,null,null,null,null,null,null,null,null,null,null,null,null,null,null,null,null,null,null,null,null,null,null,null,null,null,null,null,null,null,null,null,null,null,null,null,null,null,null,{"$f":"IF($L422<>0,1,0)","v":0}]
["11.3.3.b","   filter of drain","- puits ou drain","VH","st",108,null,null,null,null,null,0,"","","",null,null,null,null,null,null,null,null,null,null,null,null,null,null,null,null,null,null,null,null,null,null,null,null,null,null,null,null,null,null,null,null,null,null,null,null,null,null,null,null,null,{"$f":"IF($L423<>0,1,0)","v":0}]
["11.3.3.c","   afgevoerd product","- produit évacué","VH","l",0.54,null,null,null,null,null,0,"","","",null,null,null,null,null,null,null,null,null,null,null,null,null,null,null,null,null,null,null,null,null,null,null,null,null,null,null,null,null,null,null,null,null,null,null,null,null,null,null,null,null,{"$f":"IF($L424<>0,1,0)","v":0}]
["11.4","BESTURINGSSYSTEEM ONTTREKKING MET BOVENGRONDSE POMPEN (ZUIGPOMPEN)","SYSTEME D'EXTRACTION PILOTE POUR POMPES ASPIRANTE DE SURFACE (pompes aériennes)",null,null,null,null,null,null,null,null,0,"","","",null,null,null,null,null,null,null,null,null,null,null,null,null,null,null,null,null,null,null,null,null,null,null,null,null,null,null,null,null,null,null,null,null,null,null,null,null,null,null,null,null,{"$f":"COUNTIF(BE426:BE427,1)","v":0}]
["11.4.a","levering en plaatsing per filter","- livraison et placement par puits","VH","st",225,null,null,null,null,null,0,"","","",null,null,null,null,null,null,null,null,null,null,null,null,null,null,null,null,null,null,null,null,null,null,null,null,null,null,null,null,null,null,null,null,null,null,null,null,null,null,null,null,null,{"$f":"IF($L426<>0,1,0)","v":0}]
["11.4.b","huur per filter","- location par puits","VH","wk",7.52,null,null,null,null,null,{"$f":"+J427+K427","v":0},"","","",null,null,null,null,null,null,null,null,null,null,null,null,null,null,null,null,null,null,null,null,null,null,null,null,null,null,null,null,null,null,null,null,null,null,null,null,null,null,null,null,null,{"$f":"IF($L427<>0,1,0)","v":0}]
["11.5","LUCHTINJECTIE (AIR-SPARGING)","INJECTION D'AIR (AIRSPARGING)",null,null,null,null,null,null,null,null,0,"","","",null,null,null,null,null,null,null,null,null,null,null,null,null,null,null,null,null,null,null,null,null,null,null,null,null,null,null,null,null,null,null,null,null,null,null,null,null,null,null,null,null,{"$f":"COUNTIF(BE429:BE436,1)","v":0}]
["11.5.a","levering en plaatsing compressor 20 Nm³/u","- livraison et placement compresseur 20 Nm³/heure","TP",null,756,null,null,null,null,null,0,"","","",null,null,null,null,null,null,null,null,null,null,null,null,null,null,null,null,null,null,null,null,null,null,null,null,null,null,null,null,null,null,null,null,null,null,null,null,null,null,null,null,null,{"$f":"IF($L429<>0,1,0)","v":0}]
["11.5.b","levering en plaatsing compressor 50 Nm³/u","- livraison et placement compresseur 50 Nm³/heure","TP",null,846,null,null,null,null,null,0,"","","",null,null,null,null,null,null,null,null,null,null,null,null,null,null,null,null,null,null,null,null,null,null,null,null,null,null,null,null,null,null,null,null,null,null,null,null,null,null,null,null,null,0]
["11.5.c","levering en plaatsing compressor 125 Nm³/u","- livraison et placement compresseur 125 Nm³/heure","TP",null,1050,null,null,null,null,null,0,"","","",null,null,null,null,null,null,null,null,null,null,null,null,null,null,null,null,null,null,null,null,null,null,null,null,null,null,null,null,null,null,null,null,null,null,null,null,null,null,null,null,null,0]
["11.5.d","huur compressor 20 Nm³/u","- location compresseur 20 Nm³/heure","VH","wk",71.3,null,null,null,null,null,0,"","","",null,null,null,null,null,null,null,null,null,null,null,null,null,null,null,null,null,null,null,null,null,null,null,null,null,null,null,null,null,null,null,null,null,null,null,null,null,null,null,null,null,0]
["11.5.e","huur compressor 50 Nm³/u","- location compresseur 50 Nm³/heure","VH","wk",106,null,null,null,null,null,0,"","","",null,null,null,null,null,null,null,null,null,null,null,null,null,null,null,null,null,null,null,null,null,null,null,null,null,null,null,null,null,null,null,null,null,null,null,null,null,null,null,null,null,0]
["11.5.f","huur compressor 125 Nm³/u","- location compresseur 125 Nm³/heure","VH","wk",166,null,null,null,null,null,0,"","","",null,null,null,null,null,null,null,null,null,null,null,null,null,null,null,null,null,null,null,null,null,null,null,null,null,null,null,null,null,null,null,null,null,null,null,null,null,null,null,null,null,0]
["11.5.g","levering en plaatsing per filter","- livraison et placement par puits","VH","st",269,null,null,null,null,null,0,"","","",null,null,null,null,null,null,null,null,null,null,null,null,null,null,null,null,null,null,null,null,null,null,null,null,null,null,null,null,null,null,null,null,null,null,null,null,null,null,null,null,null,0]
["11.5.h","huur per filter","- location par puits","VH","wk",16.2,null,null,null,null,null,0,"","","",null,null,null,null,null,null,null,null,null,null,null,null,null,null,null,null,null,null,null,null,null,null,null,null,null,null,null,null,null,null,null,null,null,null,null,null,null,null,null,null,null,0]
["11.6","VLOEISTOFINFILTRATIE","INJECTION DE NUTRIMENTS",null,null,null,null,null,null,null,null,0,"","","",null,null,null,null,null,null,null,null,null,null,null,null,null,null,null,null,null,null,null,null,null,null,null,null,null,null,null,null,null,null,null,null,null,null,null,null,null,null,null,null,null,{"$f":"COUNTIF(BE438:BE445,1)","v":0}]
["11.6.1","Handmatige infiltratie van een maximaal volume van 1 m3","Injection manuelle d’un volume maximum de 1 m³",null,null,null,null,null,null,null,null,0,"","","",null,null,null,null,null,null,null,null,null,null,null,null,null,null,null,null,null,null,null,null,null,null,null,null,null,null,null,null,null,null,null,null,null,null,null,null,null,null,null,null,null,{"$f":"COUNTIF(BE439:BE439,1)","v":0}]
["11.6.1.a","   interventie","- intervention","VH","st",533,null,null,null,null,null,0,"","","",null,null,null,null,null,null,null,null,null,null,null,null,null,null,null,null,null,null,null,null,null,null,null,null,null,null,null,null,null,null,null,null,null,null,null,null,null,null,null,null,null,{"$f":"IF($L439<>0,1,0)","v":0}]
["11.6.2","Automatische infiltratie met gebruik van een voorraadtank (maximum 10 m3)","Infiltration automatique avec utilisation d’un réservoir de réserve (maximum 10 m3)",null,null,null,null,null,null,null,null,0,"","","",null,null,null,null,null,null,null,null,null,null,null,null,null,null,null,null,null,null,null,null,null,null,null,null,null,null,null,null,null,null,null,null,null,null,null,null,null,null,null,null,null,{"$f":"COUNTIF(BE441:BE442,1)","v":0}]
["11.6.2.a","   levering en plaatsing","- livraison et placement","TP",null,1960,null,null,null,null,null,0,"","","",null,null,null,null,null,null,null,null,null,null,null,null,null,null,null,null,null,null,null,null,null,null,null,null,null,null,null,null,null,null,null,null,null,null,null,null,null,null,null,null,null,{"$f":"IF($L441<>0,1,0)","v":0}]
["11.6.2.b","   huur","- location","VH","wk",137,null,null,null,null,null,0,"","","",null,null,null,null,null,null,null,null,null,null,null,null,null,null,null,null,null,null,null,null,null,null,null,null,null,null,null,null,null,null,null,null,null,null,null,null,null,null,null,null,null,{"$f":"IF($L442<>0,1,0)","v":0}]
["11.6.3","Verbruik van chemische stoffen","Consommation de substances et préparations chimiques",null,null,null,null,null,null,null,null,0,"","","",null,null,null,null,null,null,null,null,null,null,null,null,null,null,null,null,null,null,null,null,null,null,null,null,null,null,null,null,null,null,null,null,null,null,null,null,null,null,null,null,null,{"$f":"COUNTIF(BE444:BE445,1)","v":0}]
["11.6.3.a","   vloeibare NPK meststoffen (..%)","- engrais NPK liquide (..%)","VH","l",1.52,null,null,null,null,null,0,"","","",null,null,null,null,null,null,null,null,null,null,null,null,null,null,null,null,null,null,null,null,null,null,null,null,null,null,null,null,null,null,null,null,null,null,null,null,null,null,null,null,null,{"$f":"IF($L444<>0,1,0)","v":0}]
["11.6.3.b","   vloeibaar calciumnitraat Ca(NO3)2 (..%)","- Nitrate de Calcium liquide Ca(NO3)2  (... %)","VH","l",1.34,null,null,null,null,null,0,"","","",null,null,null,null,null,null,null,null,null,null,null,null,null,null,null,null,null,null,null,null,null,null,null,null,null,null,null,null,null,null,null,null,null,null,null,null,null,null,null,null,null,{"$f":"IF($L445<>0,1,0)","v":0}]
["11.7","HOOGVACUUMEXTRACTIEEENHEID (HVE)","UNITE D'EXTRACTION SOUS VIDE POUSSE",null,null,null,null,null,null,null,null,{"$f":"+J446+K446","v":0},"","","",null,null,null,null,null,null,null,null,null,null,null,null,null,null,null,null,null,null,null,null,null,null,null,null,null,null,null,null,null,null,null,null,null,null,null,null,null,null,null,null,null,{"$f":"COUNTIF(BE447:BE448,1)","v":0}]
["11.7.a","leveren en plaasting*","livraison et placement*","TP",null,"nvt",null,null,null,null,null,{"$f":"+J447+K447","v":0},"","","",null,null,null,null,null,null,null,null,null,null,null,null,null,null,null,null,null,null,null,null,null,null,null,null,null,null,null,null,null,null,null,null,null,null,null,null,null,null,null,null,null,{"$f":"IF($L447<>0,1,0)","v":0}]
["11.7.b","huur*","location*","VH","wk","nvt",null,null,null,null,null,{"$f":"+J448+K448","v":0},"","","",null,null,null,null,null,null,null,null,null,null,null,null,null,null,null,null,null,null,null,null,null,null,null,null,null,null,null,null,null,null,null,null,null,null,null,null,null,null,null,null,null,{"$f":"IF($L448<>0,1,0)","v":0}]
["11.8","LUCHTZUIVERING","TRAITEMENT DE L'AIR",null,null,null,null,null,null,null,null,0,"","","",null,null,null,null,null,null,null,null,null,null,null,null,null,null,null,null,null,null,null,null,null,null,null,null,null,null,null,null,null,null,null,null,null,null,null,null,null,null,null,null,null,{"$f":"COUNTIF(BE450:BE470,1)","v":0}]
["11.8.1","Actief koolfilters","Filtres à charbon actif air",null,null,null,null,null,null,null,null,0,"","","",null,null,null,null,null,null,null,null,null,null,null,null,null,null,null,null,null,null,null,null,null,null,null,null,null,null,null,null,null,null,null,null,null,null,null,null,null,null,null,null,null,{"$f":"COUNTIF(BE451:BE463,1)","v":0}]
["11.8.1.a","   levering en plaatsing 200 l","livraison et placement 200 l","VH","st",496,null,null,null,null,null,0,"","","",null,null,null,null,null,null,null,null,null,null,null,null,null,null,null,null,null,null,null,null,null,null,null,null,null,null,null,null,null,null,null,null,null,null,null,null,null,null,null,null,null,{"$f":"IF($L451<>0,1,0)","v":0}]
["11.8.1.b","   levering en plaatsing 375 l","livraison et placement  375 l","VH","st",601,null,null,null,null,null,0,"","","",null,null,null,null,null,null,null,null,null,null,null,null,null,null,null,null,null,null,null,null,null,null,null,null,null,null,null,null,null,null,null,null,null,null,null,null,null,null,null,null,null,0]
["11.8.1.c","   levering en plaatsing 625 l","livraison et placement  625 l","VH","st",656,null,null,null,null,null,0,"","","",null,null,null,null,null,null,null,null,null,null,null,null,null,null,null,null,null,null,null,null,null,null,null,null,null,null,null,null,null,null,null,null,null,null,null,null,null,null,null,null,null,0]
["11.8.1.d","   levering en plaatsing 1250 l","livraison et placement 1250 l","VH","st",873,null,null,null,null,null,0,"","","",null,null,null,null,null,null,null,null,null,null,null,null,null,null,null,null,null,null,null,null,null,null,null,null,null,null,null,null,null,null,null,null,null,null,null,null,null,null,null,null,null,0]
["11.8.1.e","   levering en plaatsing 2500 l","livraison et placement 2500 l","VH","st",1190,null,null,null,null,null,0,"","","",null,null,null,null,null,null,null,null,null,null,null,null,null,null,null,null,null,null,null,null,null,null,null,null,null,null,null,null,null,null,null,null,null,null,null,null,null,null,null,null,null,0]
["11.8.1.f","   levering en plaatsing 5000 l","livraison et placement  5000 l","VH","st",1530,null,null,null,null,null,0,"","","",null,null,null,null,null,null,null,null,null,null,null,null,null,null,null,null,null,null,null,null,null,null,null,null,null,null,null,null,null,null,null,null,null,null,null,null,null,null,null,null,null,0]
["11.8.1.g","   huur installatie 200 l","location installation 200 l","VH","wk",37.5,null,null,null,null,null,0,"","","",null,null,null,null,null,null,null,null,null,null,null,null,null,null,null,null,null,null,null,null,null,null,null,null,null,null,null,null,null,null,null,null,null,null,null,null,null,null,null,null,null,0]
["11.8.1.h","   huur installatie 375 l","location installation 375 l","VH","wk",41.2,null,null,null,null,null,0,"","","",null,null,null,null,null,null,null,null,null,null,null,null,null,null,null,null,null,null,null,null,null,null,null,null,null,null,null,null,null,null,null,null,null,null,null,null,null,null,null,null,null,0]
["11.8.1.i","   huur installatie 625 l","location installation 625 l","VH","wk",45.1,null,null,null,null,null,0,"","","",null,null,null,null,null,null,null,null,null,null,null,null,null,null,null,null,null,null,null,null,null,null,null,null,null,null,null,null,null,null,null,null,null,null,null,null,null,null,null,null,null,0]
["11.8.1.j","   huur installatie 1250 l","location installation 1250 l","VH","wk",50,null,null,null,null,null,0,"","","",null,null,null,null,null,null,null,null,null,null,null,null,null,null,null,null,null,null,null,null,null,null,null,null,null,null,null,null,null,null,null,null,null,null,null,null,null,null,null,null,null,0]
["11.8.1.k","   huur installatie 2500 l","location installation 2500 l","VH","wk",62.5,null,null,null,null,null,0,"","","",null,null,null,null,null,null,null,null,null,null,null,null,null,null,null,null,null,null,null,null,null,null,null,null,null,null,null,null,null,null,null,null,null,null,null,null,null,null,null,null,null,0]
["11.8.1.l","   huur installatie 5000 l","location installation 5000 l","VH","wk",75.2,null,null,null,null,null,0,{"$f":"IF(AND(ISTEXT($D462),ISNUMBER($G462)),ROUND(J462*$G462,2),\"\")","v":""},{"$f":"IF(AND(ISTEXT($D462),ISNUMBER($G462)),ROUND(K462*$G462,2),\"\")","v":""},{"$f":"IF(AND(ISTEXT($D462),ISNUMBER($G462)),N462+M462,\"\")","v":""},null,null,null,null,null,null,null,null,null,null,null,null,null,null,null,null,null,null,null,null,null,null,null,null,null,null,null,null,null,null,null,null,null,null,null,null,null,null,null,null,null,0]
["11.8.1.m","   actief kool","charbon actif","VH","kg",3.63,null,null,null,null,null,0,"","","",null,null,null,null,null,null,null,null,null,null,null,null,null,null,null,null,null,null,null,null,null,null,null,null,null,null,null,null,null,null,null,null,null,null,null,null,null,null,null,null,null,0]
["11.8.2","Katalytische verbrandingsinstallatie","Installation d’oxydation catalytique",null,null,null,null,null,null,null,null,0,"","","",null,null,null,null,null,null,null,null,null,null,null,null,null,null,null,null,null,null,null,null,null,null,null,null,null,null,null,null,null,null,null,null,null,null,null,null,null,null,null,null,null,{"$f":"COUNTIF(BE465:BE470,1)","v":0}]
["11.8.2.a","   levering en plaatsing 150 Nm³/uur","- livraison et placement  150 Nm³/heure","TP",null,6760,null,null,null,null,null,0,"","","",null,null,null,null,null,null,null,null,null,null,null,null,null,null,null,null,null,null,null,null,null,null,null,null,null,null,null,null,null,null,null,null,null,null,null,null,null,null,null,null,null,{"$f":"IF($L465<>0,1,0)","v":0}]
["11.8.2.b","   levering en plaatsing 300 Nm³/uur","- livraison et placement  300 Nm³/heure","TP",null,7780,null,null,null,null,null,0,"","","",null,null,null,null,null,null,null,null,null,null,null,null,null,null,null,null,null,null,null,null,null,null,null,null,null,null,null,null,null,null,null,null,null,null,null,null,null,null,null,null,null,0]
["11.8.2.c","   levering en plaatsing 500 Nm³/uur","- livraison et placement  500 Nm³/heure","TP",null,7890,null,null,null,null,null,0,"","","",null,null,null,null,null,null,null,null,null,null,null,null,null,null,null,null,null,null,null,null,null,null,null,null,null,null,null,null,null,null,null,null,null,null,null,null,null,null,null,null,null,0]
["11.8.2.d","   huur installatie 150 Nm³/uur","- location installation 150 Nm³/heure","VH","wk",914,null,null,null,null,null,0,"","","",null,null,null,null,null,null,null,null,null,null,null,null,null,null,null,null,null,null,null,null,null,null,null,null,null,null,null,null,null,null,null,null,null,null,null,null,null,null,null,null,null,0]
["11.8.2.e","   huur installatie 300 Nm³/uur","- location installation 300 Nm³/heure","VH","wk",1260,null,null,null,null,null,0,"","","",null,null,null,null,null,null,null,null,null,null,null,null,null,null,null,null,null,null,null,null,null,null,null,null,null,null,null,null,null,null,null,null,null,null,null,null,null,null,null,null,null,0]
["11.8.2.f","   huur installatie 500 Nm³/uur","- location installation 500 Nm³/heure","VH","wk",1350,null,null,null,null,null,0,"","","",null,null,null,null,null,null,null,null,null,null,null,null,null,null,null,null,null,null,null,null,null,null,null,null,null,null,null,null,null,null,null,null,null,null,null,null,null,null,null,null,null,0]
["11.9","GRONDWATERZUIVERING","TRAITEMENT DE L'EAU SOUTERRAINE",null,null,null,null,null,null,null,null,0,"","","",null,null,null,null,null,null,null,null,null,null,null,null,null,null,null,null,null,null,null,null,null,null,null,null,null,null,null,null,null,null,null,null,null,null,null,null,null,null,null,null,null,{"$f":"COUNTIF(BE472:BE567,1)","v":0}]
["11.9.1","Buffer","Bacs tampon",null,null,null,null,null,null,null,null,0,"","","",null,null,null,null,null,null,null,null,null,null,null,null,null,null,null,null,null,null,null,null,null,null,null,null,null,null,null,null,null,null,null,null,null,null,null,null,null,null,null,null,null,{"$f":"COUNTIF(BE473:BE482,1)","v":0}]
["11.9.1.a","   levering en plaatsing 1 m³","- livraison et placement  1 m³","TP",null,461,null,null,null,null,null,0,"","","",null,null,null,null,null,null,null,null,null,null,null,null,null,null,null,null,null,null,null,null,null,null,null,null,null,null,null,null,null,null,null,null,null,null,null,null,null,null,null,null,null,{"$f":"IF($L473<>0,1,0)","v":0}]
["11.9.1.b","   levering en plaatsing 2 m³","- livraison et placement  2 m³","TP",null,492,null,null,null,null,null,0,"","","",null,null,null,null,null,null,null,null,null,null,null,null,null,null,null,null,null,null,null,null,null,null,null,null,null,null,null,null,null,null,null,null,null,null,null,null,null,null,null,null,null,0]
["11.9.1.c","   levering en plaatsing 5 m³","- livraison et placement  5 m³","TP",null,596,null,null,null,null,null,0,"","","",null,null,null,null,null,null,null,null,null,null,null,null,null,null,null,null,null,null,null,null,null,null,null,null,null,null,null,null,null,null,null,null,null,null,null,null,null,null,null,null,null,0]
["11.9.1.d","   levering en plaatsing 10 m³","- livraison et placement  10 m³","TP",null,745,null,null,null,null,null,0,"","","",null,null,null,null,null,null,null,null,null,null,null,null,null,null,null,null,null,null,null,null,null,null,null,null,null,null,null,null,null,null,null,null,null,null,null,null,null,null,null,null,null,0]
["11.9.1.e","   levering en plaatsing 20 m³","- livraison et placement  20 m³","TP",null,1060,null,null,null,null,null,0,"","","",null,null,null,null,null,null,null,null,null,null,null,null,null,null,null,null,null,null,null,null,null,null,null,null,null,null,null,null,null,null,null,null,null,null,null,null,null,null,null,null,null,0]
["11.9.1.f","   huur installatie 1 m³","- location installation 1 m³","VH","wk",18.7,null,null,null,null,null,0,"","","",null,null,null,null,null,null,null,null,null,null,null,null,null,null,null,null,null,null,null,null,null,null,null,null,null,null,null,null,null,null,null,null,null,null,null,null,null,null,null,null,null,0]
["11.9.1.g","   huur installatie 2 m³","- location installation 2 m³","VH","wk",23.8,null,null,null,null,null,0,"","","",null,null,null,null,null,null,null,null,null,null,null,null,null,null,null,null,null,null,null,null,null,null,null,null,null,null,null,null,null,null,null,null,null,null,null,null,null,null,null,null,null,0]
["11.9.1.h","   huur installatie 5 m³","- location installation 5 m³","VH","wk",37.5,null,null,null,null,null,0,"","","",null,null,null,null,null,null,null,null,null,null,null,null,null,null,null,null,null,null,null,null,null,null,null,null,null,null,null,null,null,null,null,null,null,null,null,null,null,null,null,null,null,0]
["11.9.1.i","   huur installatie 10 m³","- location installation 10 m³","VH","wk",57.6,null,null,null,null,null,0,"","","",null,null,null,null,null,null,null,null,null,null,null,null,null,null,null,null,null,null,null,null,null,null,null,null,null,null,null,null,null,null,null,null,null,null,null,null,null,null,null,null,null,0]
["11.9.1.j","   huur installatie 20 m³","- location installation 20 m³","VH","wk",97.7,null,null,null,null,null,0,"","","",null,null,null,null,null,null,null,null,null,null,null,null,null,null,null,null,null,null,null,null,null,null,null,null,null,null,null,null,null,null,null,null,null,null,null,null,null,null,null,null,null,0]
["11.9.2","Koolwaterstofafscheider (olie-water-afscheider)","Séparateur d’hydrocarbures",null,null,null,null,null,null,null,null,0,"","","",null,null,null,null,null,null,null,null,null,null,null,null,null,null,null,null,null,null,null,null,null,null,null,null,null,null,null,null,null,null,null,null,null,null,null,null,null,null,null,null,null,{"$f":"COUNTIF(BE484:BE503,1)","v":0}]
["11.9.2.1","   Koolwaterstofafscheider met skimmergoot en aftapkraan","Séparateur d’hydrocarbure équipé d’une goulotte d’écrémage et d’un robinet de purge",null,null,null,null,null,null,null,null,0,"","","",null,null,null,null,null,null,null,null,null,null,null,null,null,null,null,null,null,null,null,null,null,null,null,null,null,null,null,null,null,null,null,null,null,null,null,null,null,null,null,null,null,{"$f":"COUNTIF(BE485:BE493,1)","v":0}]
["11.9.2.1.a","      levering en plaatsing 5 m³/uur","- livraison et placement 5 m³/heure","TP",null,901,null,null,null,null,null,0,"","","",null,null,null,null,null,null,null,null,null,null,null,null,null,null,null,null,null,null,null,null,null,null,null,null,null,null,null,null,null,null,null,null,null,null,null,null,null,null,null,null,null,{"$f":"IF($L485<>0,1,0)","v":0}]
["11.9.2.1.b","      levering en plaatsing 10 m³/uur","- livraison et placement 10 m³/heure","TP",null,1110,null,null,null,null,null,0,"","","",null,null,null,null,null,null,null,null,null,null,null,null,null,null,null,null,null,null,null,null,null,null,null,null,null,null,null,null,null,null,null,null,null,null,null,null,null,null,null,null,null,0]
["11.9.2.1.c","      levering en plaatsing 20 m³/uur","- livraison et placement 20 m³/heure","TP",null,1210,null,null,null,null,null,0,"","","",null,null,null,null,null,null,null,null,null,null,null,null,null,null,null,null,null,null,null,null,null,null,null,null,null,null,null,null,null,null,null,null,null,null,null,null,null,null,null,null,null,0]
["11.9.2.1.d","      levering en plaatsing 40 m³/uur","- livraison et placement 40 m³/heure","TP",null,1430,null,null,null,null,null,0,"","","",null,null,null,null,null,null,null,null,null,null,null,null,null,null,null,null,null,null,null,null,null,null,null,null,null,null,null,null,null,null,null,null,null,null,null,null,null,null,null,null,null,0]
["11.9.2.1.e","      huur installatie 5 m³/uur","- location installation 5 m³/heure","VH","wk",62.5,null,null,null,null,null,0,"","","",null,null,null,null,null,null,null,null,null,null,null,null,null,null,null,null,null,null,null,null,null,null,null,null,null,null,null,null,null,null,null,null,null,null,null,null,null,null,null,null,null,0]
["11.9.2.1.f","      huur installatie 10 m³/uur","- location installation 10 m³/heure","VH","wk",77.599999999999994,null,null,null,null,null,0,"","","",null,null,null,null,null,null,null,null,null,null,null,null,null,null,null,null,null,null,null,null,null,null,null,null,null,null,null,null,null,null,null,null,null,null,null,null,null,null,null,null,null,0]
["11.9.2.1.g","      huur installatie 20 m³/uur","- location installation 20 m³/heure","VH","wk",92.6,null,null,null,null,null,{"$f":"+J491+K491","v":0},"","","",null,null,null,null,null,null,null,null,null,null,null,null,null,null,null,null,null,null,null,null,null,null,null,null,null,null,null,null,null,null,null,null,null,null,null,null,null,null,null,null,null,0]
["11.9.2.1.h","      huur installatie 40 m³/uur","- location installation 40 m³/heure","VH","wk",154,null,null,null,null,null,0,"","","",null,null,null,null,null,null,null,null,null,null,null,null,null,null,null,null,null,null,null,null,null,null,null,null,null,null,null,null,null,null,null,null,null,null,null,null,null,null,null,null,null,0]
["11.9.2.1.i","      afvoer en verwerking residu's","- évacuation et traitement des résidus","VH","kg",0.54,null,null,null,null,null,0,"","","",null,null,null,null,null,null,null,null,null,null,null,null,null,null,null,null,null,null,null,null,null,null,null,null,null,null,null,null,null,null,null,null,null,null,null,null,null,null,null,null,null,0]
["11.9.2.2","   Koolwaterstofafscheider met automatische skimmer","Séparateur d’hydrocarbure avec écrémeur (skimmer) automatique",null,null,null,null,null,null,null,null,0,"","","",null,null,null,null,null,null,null,null,null,null,null,null,null,null,null,null,null,null,null,null,null,null,null,null,null,null,null,null,null,null,null,null,null,null,null,null,null,null,null,null,null,{"$f":"COUNTIF(BE495:BE503,1)","v":0}]
["11.9.2.2.a","      levering en plaatsing 5 m³/uur","- livraison et placement 5 m³/heure","TP",null,1130,null,null,null,null,null,0,"","","",null,null,null,null,null,null,null,null,null,null,null,null,null,null,null,null,null,null,null,null,null,null,null,null,null,null,null,null,null,null,null,null,null,null,null,null,null,null,null,null,null,{"$f":"IF($L495<>0,1,0)","v":0}]
["11.9.2.2.b","      levering en plaatsing 10 m³/uur","- livraison et placement 10 m³/heure","TP",null,1170,null,null,null,null,null,0,"","","",null,null,null,null,null,null,null,null,null,null,null,null,null,null,null,null,null,null,null,null,null,null,null,null,null,null,null,null,null,null,null,null,null,null,null,null,null,null,null,null,null,0]
["11.9.2.2.c","      levering en plaatsing 20 m³/uur","- livraison et placement 20 m³/heure","TP",null,1420,null,null,null,null,null,0,"","","",null,null,null,null,null,null,null,null,null,null,null,null,null,null,null,null,null,null,null,null,null,null,null,null,null,null,null,null,null,null,null,null,null,null,null,null,null,null,null,null,null,0]
["11.9.2.2.d","      levering en plaatsing 40 m³/uur","- livraison et placement 40 m³/heure","TP",null,1630,null,null,null,null,null,0,"","","",null,null,null,null,null,null,null,null,null,null,null,null,null,null,null,null,null,null,null,null,null,null,null,null,null,null,null,null,null,null,null,null,null,null,null,null,null,null,null,null,null,0]
["11.9.2.2.e","      huur installatie 5 m³/uur","- location installation 5 m³/heure","VH","wk",73.8,null,null,null,null,null,0,"","","",null,null,null,null,null,null,null,null,null,null,null,null,null,null,null,null,null,null,null,null,null,null,null,null,null,null,null,null,null,null,null,null,null,null,null,null,null,null,null,null,null,0]
["11.9.2.2.f","      huur installatie 10 m³/uur","- location installation 10 m³/heure","VH","wk",88.9,null,null,null,null,null,0,"","","",null,null,null,null,null,null,null,null,null,null,null,null,null,null,null,null,null,null,null,null,null,null,null,null,null,null,null,null,null,null,null,null,null,null,null,null,null,null,null,null,null,0]
["11.9.2.2.g","      huur installatie 20 m³/uur","- location installation 20 m³/heure","VH","wk",105,null,null,null,null,null,0,"","","",null,null,null,null,null,null,null,null,null,null,null,null,null,null,null,null,null,null,null,null,null,null,null,null,null,null,null,null,null,null,null,null,null,null,null,null,null,null,null,null,null,0]
["11.9.2.2.h","      huur installatie 40 m³/uur","- location installation 40 m³/heure","VH","wk",176,null,null,null,null,null,0,"","","",null,null,null,null,null,null,null,null,null,null,null,null,null,null,null,null,null,null,null,null,null,null,null,null,null,null,null,null,null,null,null,null,null,null,null,null,null,null,null,null,null,0]
["11.9.2.2.i","      afvoer en verwerking residu's","- évacuation et traitement des résidus","VH","kg",0.54,null,null,null,null,null,0,"","","",null,null,null,null,null,null,null,null,null,null,null,null,null,null,null,null,null,null,null,null,null,null,null,null,null,null,null,null,null,null,null,null,null,null,null,null,null,null,null,null,null,0]
["11.9.3","Zandfilters","Filtres à sable",null,null,null,null,"in overleg met BOFAS","en concertation avec BOFAS",null,null,0,"","","",null,null,null,null,null,null,null,null,null,null,null,null,null,null,null,null,null,null,null,null,null,null,null,null,null,null,null,null,null,null,null,null,null,null,null,null,null,null,null,null,null,{"$f":"COUNTIF(BE505:BE524,1)","v":0}]
["11.9.3.1","   Gewone zandfilter","Filtre à sable ordinaire",null,null,null,null,null,null,null,null,0,"","","",null,null,null,null,null,null,null,null,null,null,null,null,null,null,null,null,null,null,null,null,null,null,null,null,null,null,null,null,null,null,null,null,null,null,null,null,null,null,null,null,null,{"$f":"COUNTIF(BE506:BE514,1)","v":0}]
["11.9.3.1.a","      levering en plaatsing 5 m³/uur","- livraison et placement 5 m³/heure","TP",null,2490,null,null,null,null,null,0,"","","",null,null,null,null,null,null,null,null,null,null,null,null,null,null,null,null,null,null,null,null,null,null,null,null,null,null,null,null,null,null,null,null,null,null,null,null,null,null,null,null,null,{"$f":"IF($L506<>0,1,0)","v":0}]
["11.9.3.1.b","      levering en plaatsing 10 m³/uur","- livraison et placement 10 m³/heure","TP",null,3030,null,null,null,null,null,0,"","","",null,null,null,null,null,null,null,null,null,null,null,null,null,null,null,null,null,null,null,null,null,null,null,null,null,null,null,null,null,null,null,null,null,null,null,null,null,null,null,null,null,0]
["11.9.3.1.c","      levering en plaatsing 20 m³/uur","- livraison et placement 20 m³/heure","TP",null,4560,null,null,null,null,null,0,"","","",null,null,null,null,null,null,null,null,null,null,null,null,null,null,null,null,null,null,null,null,null,null,null,null,null,null,null,null,null,null,null,null,null,null,null,null,null,null,null,null,null,0]
["11.9.3.1.d","      levering en plaatsing 40 m³/uur","- livraison et placement 40 m³/heure","TP",null,6330,null,null,null,null,null,0,"","","",null,null,null,null,null,null,null,null,null,null,null,null,null,null,null,null,null,null,null,null,null,null,null,null,null,null,null,null,null,null,null,null,null,null,null,null,null,null,null,null,null,0]
["11.9.3.1.e","      huur filter 5 m³/uur","- location filtre 5 m³/heure","VH","wk",251,null,null,null,null,null,0,"","","",null,null,null,null,null,null,null,null,null,null,null,null,null,null,null,null,null,null,null,null,null,null,null,null,null,null,null,null,null,null,null,null,null,null,null,null,null,null,null,null,null,0]
["11.9.3.1.f","      huur filter 10 m³/uur","- location filtre 10 m³/heure","VH","wk",319,null,null,null,null,null,0,"","","",null,null,null,null,null,null,null,null,null,null,null,null,null,null,null,null,null,null,null,null,null,null,null,null,null,null,null,null,null,null,null,null,null,null,null,null,null,null,null,null,null,0]
["11.9.3.1.g","      huur filter 20 m³/uur","- location filtre 20 m³/heure","VH","wk",471,null,null,null,null,null,0,"","","",null,null,null,null,null,null,null,null,null,null,null,null,null,null,null,null,null,null,null,null,null,null,null,null,null,null,null,null,null,null,null,null,null,null,null,null,null,null,null,null,null,0]
["11.9.3.1.h","      huur filter 40 m³/uur","- location filtre 40 m³/heure","VH","wk",665,null,null,null,null,null,0,"","","",null,null,null,null,null,null,null,null,null,null,null,null,null,null,null,null,null,null,null,null,null,null,null,null,null,null,null,null,null,null,null,null,null,null,null,null,null,null,null,null,null,0]
["11.9.3.1.i","      afvoer en verwerking residu's","- évacuation et traitement des résidus","VH","kg",0.54,null,null,null,null,null,0,"","","",null,null,null,null,null,null,null,null,null,null,null,null,null,null,null,null,null,null,null,null,null,null,null,null,null,null,null,null,null,null,null,null,null,null,null,null,null,null,null,null,null,0]
["11.9.3.2","   Ontijzeringsfilter","Filtre de déferrisation",null,null,null,null,null,null,null,null,0,"","","",null,null,null,null,null,null,null,null,null,null,null,null,null,null,null,null,null,null,null,null,null,null,null,null,null,null,null,null,null,null,null,null,null,null,null,null,null,null,null,null,null,{"$f":"COUNTIF(BE516:BE524,1)","v":0}]
["11.9.3.2.a","      levering en plaatsing 5 m³/uur","- livraison et placement 5 m³/heure","TP",null,3110,null,null,null,null,null,0,"","","",null,null,null,null,null,null,null,null,null,null,null,null,null,null,null,null,null,null,null,null,null,null,null,null,null,null,null,null,null,null,null,null,null,null,null,null,null,null,null,null,null,{"$f":"IF($L516<>0,1,0)","v":0}]
["11.9.3.2.b","      levering en plaatsing 10 m³/uur","- livraison et placement 10 m³/heure","TP",null,3800,null,null,null,null,null,0,"","","",null,null,null,null,null,null,null,null,null,null,null,null,null,null,null,null,null,null,null,null,null,null,null,null,null,null,null,null,null,null,null,null,null,null,null,null,null,null,null,null,null,0]
["11.9.3.2.c","      levering en plaatsing 20 m³/uur","- livraison et placement 20 m³/heure","TP",null,5740,null,null,null,null,null,0,"","","",null,null,null,null,null,null,null,null,null,null,null,null,null,null,null,null,null,null,null,null,null,null,null,null,null,null,null,null,null,null,null,null,null,null,null,null,null,null,null,null,null,0]
["11.9.3.2.d","      levering en plaatsing 40 m³/uur","- livraison et placement 40 m³/heure","TP",null,7670,null,null,null,null,null,0,"","","",null,null,null,null,null,null,null,null,null,null,null,null,null,null,null,null,null,null,null,null,null,null,null,null,null,null,null,null,null,null,null,null,null,null,null,null,null,null,null,null,null,0]
["11.9.3.2.e","      huur filter 5 m³/uur","- location filtre 5 m³/heure","VH","wk",319,null,null,null,null,null,0,"","","",null,null,null,null,null,null,null,null,null,null,null,null,null,null,null,null,null,null,null,null,null,null,null,null,null,null,null,null,null,null,null,null,null,null,null,null,null,null,null,null,null,0]
["11.9.3.2.f","      huur filter 10 m³/uur","- location filtre 10 m³/heure","VH","wk",405,null,null,null,null,null,0,"","","",null,null,null,null,null,null,null,null,null,null,null,null,null,null,null,null,null,null,null,null,null,null,null,null,null,null,null,null,null,null,null,null,null,null,null,null,null,null,null,null,null,0]
["11.9.3.2.g","      huur filter 20 m³/uur","- location filtre 20 m³/heure","VH","wk",560,null,null,null,null,null,0,"","","",null,null,null,null,null,null,null,null,null,null,null,null,null,null,null,null,null,null,null,null,null,null,null,null,null,null,null,null,null,null,null,null,null,null,null,null,null,null,null,null,null,0]
["11.9.3.2.h","      huur filter 40 m³/uur","- location filtre 40 m³/heure","VH","wk",756,null,null,null,null,null,0,"","","",null,null,null,null,null,null,null,null,null,null,null,null,null,null,null,null,null,null,null,null,null,null,null,null,null,null,null,null,null,null,null,null,null,null,null,null,null,null,null,null,null,0]
["11.9.3.2.i","      afvoer en verwerking residu's","- évacuation et traitement des résidus","VH","kg",0.54,null,null,null,null,null,0,"","","",null,null,null,null,null,null,null,null,null,null,null,null,null,null,null,null,null,null,null,null,null,null,null,null,null,null,null,null,null,null,null,null,null,null,null,null,null,null,null,null,null,0]
["11.9.4","Waterzijdig aktief koolfilter","Filtre à charbon actif eau",null,null,null,null,null,null,null,null,0,"","","",null,null,null,null,null,null,null,null,null,null,null,null,null,null,null,null,null,null,null,null,null,null,null,null,null,null,null,null,null,null,null,null,null,null,null,null,null,null,null,null,null,{"$f":"COUNTIF(BE526:BE537,1)","v":0}]
["11.9.4.a","   levering en plaatsing 0,2 m³ (0,8 m³/uur)","- Livraison et placement d'une installation 0,2m³ (0,8m³/h)","TP",null,593,null,null,null,null,null,0,{"$f":"IF(AND(ISTEXT($D526),ISNUMBER($G526)),ROUND(J526*$G526,2),\"\")","v":""},{"$f":"IF(AND(ISTEXT($D526),ISNUMBER($G526)),ROUND(K526*$G526,2),\"\")","v":""},{"$f":"IF(AND(ISTEXT($D526),ISNUMBER($G526)),N526+M526,\"\")","v":""},null,null,null,null,null,null,null,null,null,null,null,null,null,null,null,null,null,null,null,null,null,null,null,null,null,null,null,null,null,null,null,null,null,null,null,null,null,null,null,null,null,{"$f":"IF($L526<>0,1,0)","v":0}]
["11.9.4.b","   levering en plaatsing 1,25 m³ (5 m³/uur)","- Livraison et placement d'une installation 1,25m³ (5m³/h)","TP",null,1040,null,null,null,null,null,{"$f":"+J527+K527","v":0},"","","",null,null,null,null,null,null,null,null,null,null,null,null,null,null,null,null,null,null,null,null,null,null,null,null,null,null,null,null,null,null,null,null,null,null,null,null,null,null,null,null,null,0]
["11.9.4.c","   levering en plaatsing 2,5 m³ (10 m³/uur)","- Livraison et placement d'une installation 2,5 m³ (10m³/h)","TP",null,1330,null,null,null,null,null,0,"","","",null,null,null,null,null,null,null,null,null,null,null,null,null,null,null,null,null,null,null,null,null,null,null,null,null,null,null,null,null,null,null,null,null,null,null,null,null,null,null,null,null,0]
["11.9.4.d","   levering en plaatsing 5 m³ (20 m³/uur)","- Livraison et placement d'une installation 5 m³ (20m³/h)","TP",null,1530,null,null,null,null,null,0,"","","",null,null,null,null,null,null,null,null,null,null,null,null,null,null,null,null,null,null,null,null,null,null,null,null,null,null,null,null,null,null,null,null,null,null,null,null,null,null,null,null,null,0]
["11.9.4.e","   levering en plaatsing 10 m³ (40 m³/uur)","- Livraison et placement d'une installation 10 m³ (40m³/h)","TP",null,1810,null,null,null,null,null,0,"","","",null,null,null,null,null,null,null,null,null,null,null,null,null,null,null,null,null,null,null,null,null,null,null,null,null,null,null,null,null,null,null,null,null,null,null,null,null,null,null,null,null,0]
["11.9.4.f","   huur installatie 0,2 m³ (0,8 m³/uur)","- Location de l'installation 0,2 m³ (0,8 m³/h)","VH","wk",50.9,null,null,null,null,null,{"$f":"+J531+K531","v":0},"","","",null,null,null,null,null,null,null,null,null,null,null,null,null,null,null,null,null,null,null,null,null,null,null,null,null,null,null,null,null,null,null,null,null,null,null,null,null,null,null,null,null,0]
["11.9.4.g","   huur installatie 1,25 m³ (5 m³/uur)","- Location de l'installation 1,25 m³ (5 m³/h)","VH","wk",85.1,null,null,null,null,null,0,"","","",null,null,null,null,null,null,null,null,null,null,null,null,null,null,null,null,null,null,null,null,null,null,null,null,null,null,null,null,null,null,null,null,null,null,null,null,null,null,null,null,null,0]
["11.9.4.h","   huur installatie 2,5 m³ (10 m³/uur)","- Location de l'installation 2,5 m³ (10 m³/h)","VH","wk",119,null,null,null,null,null,0,"","","",null,null,null,null,null,null,null,null,null,null,null,null,null,null,null,null,null,null,null,null,null,null,null,null,null,null,null,null,null,null,null,null,null,null,null,null,null,null,null,null,null,0]
["11.9.4.i","   huur installatie 5 m³ (20 m³/uur)","- Location de l'installation 5 m³ (20 m³/h)","VH","wk",143,null,null,null,null,null,0,"","","",null,null,null,null,null,null,null,null,null,null,null,null,null,null,null,null,null,null,null,null,null,null,null,null,null,null,null,null,null,null,null,null,null,null,null,null,null,null,null,null,null,0]
["11.9.4.j","   huur installatie 10 m³ (40 m³/uur)","- Location de l'installation 10 m³ (40 m³/h)","VH","wk",201,null,null,null,null,null,0,"","","",null,null,null,null,null,null,null,null,null,null,null,null,null,null,null,null,null,null,null,null,null,null,null,null,null,null,null,null,null,null,null,null,null,null,null,null,null,null,null,null,null,0]
["11.9.4.k","   actief kool (steenkool)","- Charbon actif (à base de houille)","VH","kg",3.63,null,null,null,null,null,0,"","","",null,null,null,null,null,null,null,null,null,null,null,null,null,null,null,null,null,null,null,null,null,null,null,null,null,null,null,null,null,null,null,null,null,null,null,null,null,null,null,null,null,0]
["11.9.4.l","   actief kool (cocos)","- Charbon actif (à base de noix de coco)","VH","kg",3.63,null,"voor MTBE","pour MTBE",null,null,0,"","","",null,null,null,null,null,null,null,null,null,null,null,null,null,null,null,null,null,null,null,null,null,null,null,null,null,null,null,null,null,null,null,null,null,null,null,null,null,null,null,null,null,0]
["11.9.5","Stripinstallaties","Installation de Stripping",null,null,null,null,null,null,null,null,0,"","","",null,null,null,null,null,null,null,null,null,null,null,null,null,null,null,null,null,null,null,null,null,null,null,null,null,null,null,null,null,null,null,null,null,null,null,null,null,null,null,null,null,{"$f":"COUNTIF(BE539:BE567,1)","v":0}]
["11.9.5.1","   Stripinstallatie met aktief kool ","Installation de stripping avec filtre à charbon actif air",null,null,null,null,null,null,null,null,0,"","","",null,null,null,null,null,null,null,null,null,null,null,null,null,null,null,null,null,null,null,null,null,null,null,null,null,null,null,null,null,null,null,null,null,null,null,null,null,null,null,null,null,{"$f":"COUNTIF(BE540:BE556,1)","v":0}]
["11.9.5.1.a","      levering en plaatsing 1°stripinstallatie 5 m³/uur","- livraison et placement 1° installation de stripping 5 m³/heure","TP",null,2420,null,null,null,null,null,0,"","","",null,null,null,null,null,null,null,null,null,null,null,null,null,null,null,null,null,null,null,null,null,null,null,null,null,null,null,null,null,null,null,null,null,null,null,null,null,null,null,null,null,{"$f":"IF($L540<>0,1,0)","v":0}]
["11.9.5.1.b","      levering en plaatsing 1°stripinstallatie 10 m³/uur","- livraison et placement 1° installation de stripping 10 m³/heure","TP",null,2480,null,null,null,null,null,0,"","","",null,null,null,null,null,null,null,null,null,null,null,null,null,null,null,null,null,null,null,null,null,null,null,null,null,null,null,null,null,null,null,null,null,null,null,null,null,null,null,null,null,0]
["11.9.5.1.c","      levering en plaatsing 1°stripinstallatie 20 m³/uur","- livraison et placement 1° installation de stripping 20 m³/heure","TP",null,2960,null,null,null,null,null,0,"","","",null,null,null,null,null,null,null,null,null,null,null,null,null,null,null,null,null,null,null,null,null,null,null,null,null,null,null,null,null,null,null,null,null,null,null,null,null,null,null,null,null,0]
["11.9.5.1.d","      levering en plaatsing 1°stripinstallatie 40 m³/uur","- livraison et placement 1° installation de stripping 40 m³/heure","TP",null,3850,null,null,null,null,null,0,"","","",null,null,null,null,null,null,null,null,null,null,null,null,null,null,null,null,null,null,null,null,null,null,null,null,null,null,null,null,null,null,null,null,null,null,null,null,null,null,null,null,null,0]
["11.9.5.1.e","      huur 1°stripinstallatie 5 m³/uur","- location 1° installation de stripping 5 m³/heure","VH","wk",221,null,null,null,null,null,0,"","","",null,null,null,null,null,null,null,null,null,null,null,null,null,null,null,null,null,null,null,null,null,null,null,null,null,null,null,null,null,null,null,null,null,null,null,null,null,null,null,null,null,0]
["11.9.5.1.f","      huur 1°stripinstallatie 10 m³/uur","- location 1° installation de stripping 10 m³/heure","VH","wk",250,null,null,null,null,null,0,"","","",null,null,null,null,null,null,null,null,null,null,null,null,null,null,null,null,null,null,null,null,null,null,null,null,null,null,null,null,null,null,null,null,null,null,null,null,null,null,null,null,null,0]
["11.9.5.1.g","      huur 1°stripinstallatie 20 m³/uur","- location 1° installation de stripping 20 m³/heure","VH","wk",370,null,null,null,null,null,0,"","","",null,null,null,null,null,null,null,null,null,null,null,null,null,null,null,null,null,null,null,null,null,null,null,null,null,null,null,null,null,null,null,null,null,null,null,null,null,null,null,null,null,0]
["11.9.5.1.h","      huur 1°stripinstallatie 40 m³/uur","- location 1° installation de stripping 40 m³/heure","VH","wk",491,null,null,null,null,null,0,"","","",null,null,null,null,null,null,null,null,null,null,null,null,null,null,null,null,null,null,null,null,null,null,null,null,null,null,null,null,null,null,null,null,null,null,null,null,null,null,null,null,null,0]
["11.9.5.1.i","      levering en plaatsing 2°stripinstallatie 5 m³/uur","- livraison et placement 2° installation de stripping 5 m³/heure","TP",null,2420,null,null,null,null,null,0,"","","",null,null,null,null,null,null,null,null,null,null,null,null,null,null,null,null,null,null,null,null,null,null,null,null,null,null,null,null,null,null,null,null,null,null,null,null,null,null,null,null,null,0]
["11.9.5.1.j","      levering en plaatsing 2°stripinstallatie 10 m³/uur","- livraison et placement 2° installation de stripping 10 m³/heure","TP",null,2480,null,null,null,null,null,0,"","","",null,null,null,null,null,null,null,null,null,null,null,null,null,null,null,null,null,null,null,null,null,null,null,null,null,null,null,null,null,null,null,null,null,null,null,null,null,null,null,null,null,0]
["11.9.5.1.k","      levering en plaatsing 2°stripinstallatie 20 m³/uur","- livraison et placement 2° installation de stripping 20 m³/heure","TP",null,2960,null,null,null,null,null,0,"","","",null,null,null,null,null,null,null,null,null,null,null,null,null,null,null,null,null,null,null,null,null,null,null,null,null,null,null,null,null,null,null,null,null,null,null,null,null,null,null,null,null,0]
["11.9.5.1.l","      levering en plaatsing 2°stripinstallatie 40 m³/uur","- livraison et placement 2° installation de stripping 40 m³/heure","TP",null,3850,null,null,null,null,null,0,"","","",null,null,null,null,null,null,null,null,null,null,null,null,null,null,null,null,null,null,null,null,null,null,null,null,null,null,null,null,null,null,null,null,null,null,null,null,null,null,null,null,null,0]
["11.9.5.1.m","      huur 2°stripinstallatie 5 m³/uur","- location 2° installation de stripping 5 m³/heure","VH","wk",221,null,null,null,null,null,0,"","","",null,null,null,null,null,null,null,null,null,null,null,null,null,null,null,null,null,null,null,null,null,null,null,null,null,null,null,null,null,null,null,null,null,null,null,null,null,null,null,null,null,0]
["11.9.5.1.n","      huur 2°stripinstallatie 10 m³/uur","- location 2° installation de stripping 10 m³/heure","VH","wk",250,null,null,null,null,null,0,"","","",null,null,null,null,null,null,null,null,null,null,null,null,null,null,null,null,null,null,null,null,null,null,null,null,null,null,null,null,null,null,null,null,null,null,null,null,null,null,null,null,null,0]
["11.9.5.1.o","      huur 2°stripinstallatie 20 m³/uur","- location 2° installation de stripping 20 m³/heure","VH","wk",370,null,null,null,null,null,0,"","","",null,null,null,null,null,null,null,null,null,null,null,null,null,null,null,null,null,null,null,null,null,null,null,null,null,null,null,null,null,null,null,null,null,null,null,null,null,null,null,null,null,0]
["11.9.5.1.p","      huur 2°stripinstallatie 40 m³/uur","- location 2° installation de stripping 40 m³/heure","VH","wk",491,null,null,null,null,null,0,"","","",null,null,null,null,null,null,null,null,null,null,null,null,null,null,null,null,null,null,null,null,null,null,null,null,null,null,null,null,null,null,null,null,null,null,null,null,null,null,null,null,null,0]
["11.9.5.1.q","      actief kool","- charbon actif","VH","kg",3.63,null,null,null,null,null,0,"","","",null,null,null,null,null,null,null,null,null,null,null,null,null,null,null,null,null,null,null,null,null,null,null,null,null,null,null,null,null,null,null,null,null,null,null,null,null,null,null,null,null,0]
["11.9.5.2","   Extra onderhoud stripinstallatie tgv ijzer,kalk e.d.","Maintenance supplémentaire à cause du fer, du calcaire et autres",null,null,null,null,null,null,null,null,{"$f":"+J557+K557","v":0},"","","",null,null,null,null,null,null,null,null,null,null,null,null,null,null,null,null,null,null,null,null,null,null,null,null,null,null,null,null,null,null,null,null,null,null,null,null,null,null,null,null,null,{"$f":"COUNTIF(BE558:BE567,1)","v":0}]
["11.9.5.2.a","      levering en plaatsing 5 m³/uur","- livraison et placement 5 m³/heure","TP",null,3110,null,null,null,null,null,0,"","","",null,null,null,null,null,null,null,null,null,null,null,null,null,null,null,null,null,null,null,null,null,null,null,null,null,null,null,null,null,null,null,null,null,null,null,null,null,null,null,null,null,{"$f":"IF($L558<>0,1,0)","v":0}]
["11.9.5.2.b","      levering en plaatsing 10 m³/uur","- livraison et placement 10 m³/heure","TP",null,3800,null,null,null,null,null,0,"","","",null,null,null,null,null,null,null,null,null,null,null,null,null,null,null,null,null,null,null,null,null,null,null,null,null,null,null,null,null,null,null,null,null,null,null,null,null,null,null,null,null,0]
["11.9.5.2.c","      levering en plaatsing 20 m³/uur","- livraison et placement 20 m³/heure","TP",null,5740,null,null,null,null,null,0,"","","",null,null,null,null,null,null,null,null,null,null,null,null,null,null,null,null,null,null,null,null,null,null,null,null,null,null,null,null,null,null,null,null,null,null,null,null,null,null,null,null,null,0]
["11.9.5.2.d","      levering en plaatsing 40 m³/uur","- livraison et placement 40 m³/heure","TP",null,7670,null,null,null,null,null,0,"","","",null,null,null,null,null,null,null,null,null,null,null,null,null,null,null,null,null,null,null,null,null,null,null,null,null,null,null,null,null,null,null,null,null,null,null,null,null,null,null,null,null,0]
["11.9.5.2.e","      huur installatie 5 m³/uur","- location installation 5 m³/heure","VH","wk",319,null,null,null,null,null,0,"","","",null,null,null,null,null,null,null,null,null,null,null,null,null,null,null,null,null,null,null,null,null,null,null,null,null,null,null,null,null,null,null,null,null,null,null,null,null,null,null,null,null,0]
["11.9.5.2.f","      huur installatie 10 m³/uur","- location installation 10 m³/heure","VH","wk",405,null,null,null,null,null,0,"","","",null,null,null,null,null,null,null,null,null,null,null,null,null,null,null,null,null,null,null,null,null,null,null,null,null,null,null,null,null,null,null,null,null,null,null,null,null,null,null,null,null,0]
["11.9.5.2.g","      huur installatie 20 m³/uur","- location installation 20 m³/heure","VH","wk",560,null,null,null,null,null,0,"","","",null,null,null,null,null,null,null,null,null,null,null,null,null,null,null,null,null,null,null,null,null,null,null,null,null,null,null,null,null,null,null,null,null,null,null,null,null,null,null,null,null,0]
["11.9.5.2.h","      huur installatie 40 m³/uur","- location installation 40 m³/heure","VH","wk",756,null,null,null,null,null,0,"","","",null,null,null,null,null,null,null,null,null,null,null,null,null,null,null,null,null,null,null,null,null,null,null,null,null,null,null,null,null,null,null,null,null,null,null,null,null,null,null,null,null,0]
["11.9.5.2.i","      ijzer, mangaan","Fer, manganèse","VH","kg",18.7,null,"Q(m³) x (CFe(mg/l)+CMn(mg/l)-5mg/l)/1000 ","Q(m³) x (CFe(mg/l)+CMn(mg/l)-5mg/l)/1000 ",null,null,0,"","","",null,null,null,null,null,null,null,null,null,null,null,null,null,null,null,null,null,null,null,null,null,null,null,null,null,null,null,null,null,null,null,null,null,null,null,null,null,null,null,null,null,{"$f":"IF($L566<>0,1,0)","v":0}]
["11.9.5.2.j","      calcium, magnesium","calcium, magnésium","VH","kg",2.5,null,"Q(m³) x (CCa(mg/l)+CMg(mg/l)-50mg/l)/1000 ","Q(m³) x (CCa(mg/l)+CMg(mg/l)-50mg/l)/1000 ",null,null,0,"","","",null,null,null,null,null,null,null,null,null,null,null,null,null,null,null,null,null,null,null,null,null,null,null,null,null,null,null,null,null,null,null,null,null,null,null,null,null,null,null,null,null,{"$f":"IF($L567<>0,1,0)","v":0}]
["11.10","AUTOMATISCHE ALARMERING","ALARME AUTOMATIQUE",null,null,null,null,null,null,null,null,0,"","","",null,null,null,null,null,null,null,null,null,null,null,null,null,null,null,null,null,null,null,null,null,null,null,null,null,null,null,null,null,null,null,null,null,null,null,null,null,null,null,null,null,{"$f":"COUNTIF(BE569:BE570,1)","v":0}]
["11.10.a","levering en plaatsing","- livraison et placement","TP",null,670,null,"1 indien onttrekking water of lucht","en cas d'extraction del'air ou de l'eau, 1",null,null,0,"","","",null,null,null,null,null,null,null,null,null,null,null,null,null,null,null,null,null,null,null,null,null,null,null,null,null,null,null,null,null,null,null,null,null,null,null,null,null,null,null,null,null,{"$f":"IF($L569<>0,1,0)","v":0}]
["11.10.b","huur","- location","VH","wk",37.5,null,"vanaf opstart bemaling tot einde in-situ","du démarrage de rabattement jusque fin in-situ",null,null,0,"","","",null,null,null,null,null,null,null,null,null,null,null,null,null,null,null,null,null,null,null,null,null,null,null,null,null,null,null,null,null,null,null,null,null,null,null,null,null,null,null,null,null,{"$f":"IF($L570<>0,1,0)","v":0}]
["11.11","VERPLAATSINGEN VOOR INTERVENTIE (INCL VERVANGEN AK)","DEPLACEMENTS POUR INTERVENTION (INCLUS REMPLACEMENT CA)",null,null,null,null,null,null,null,null,0,"","","",null,null,null,null,null,null,null,null,null,null,null,null,null,null,null,null,null,null,null,null,null,null,null,null,null,null,null,null,null,null,null,null,null,null,null,null,null,null,null,null,null,{"$f":"COUNTIF(BE572:BE573,1)","v":0}]
["11.11.1","kleine interventies*","petites interventions*","VH","st",250,null,null,null,null,null,0,"","","",null,null,null,null,null,null,null,null,null,null,null,null,null,null,null,null,null,null,null,null,null,null,null,null,null,null,null,null,null,null,null,null,null,null,null,null,null,null,null,null,null,{"$f":"IF($L572<>0,1,0)","v":0}]
["11.11.2","grote interventies*","grandes interventions*","VH","st",375,null,null,null,null,null,0,"","","",null,null,null,null,null,null,null,null,null,null,null,null,null,null,null,null,null,null,null,null,null,null,null,null,null,null,null,null,null,null,null,null,null,null,null,null,null,null,null,null,null,{"$f":"IF($L573<>0,1,0)","v":0}]
["11.12","TIJDELIJK VOORZIEN VAN EEN STABIELE ONDERGROND*","MISE EN PLACE TEMPORAIRE D'UN SUPPORT STABLE*","TP",null,"nvt",null,"indien bovengrondse in-situ installaties op onverhard terrein","pour installations aériennes in-situ sur terrain sans revêtement",null,null,{"$f":"+J574+K574","v":0},"","","",null,null,null,null,null,null,null,null,null,null,null,null,null,null,null,null,null,null,null,null,null,null,null,null,null,null,null,null,null,null,null,null,null,null,null,null,null,null,null,null,null,{"$f":"IF($L574<>0,1,0)","v":0}]
["11.13","VERPLAATSEN VAN DE WATERZUIVERING*","DEPLACEMENT DE L'INSALLATION DE TRAITEMENT DE L'EAU*","TP",null,"nvt",null,"indien noodzaak GWZI te verplaatsen gedurende werken","s'il faut déplacer la STEP durant les travaux",null,null,{"$f":"+J575+K575","v":0},"","","",null,null,null,null,null,null,null,null,null,null,null,null,null,null,null,null,null,null,null,null,null,null,null,null,null,null,null,null,null,null,null,null,null,null,null,null,null,null,null,null,null,{"$f":"IF($L575<>0,1,0)","v":0}]
[null,null,null,null,null,null,null,null,null,null,null,0,"","","",null,null,null,null,null,null,null,null,null,null,null,null,null,null,null,null,null,null,null,null,null,null,null,null,null,null,null,null,null,null,null,null,null,null,null,null,null,null,null,null,null,{"$f":"+BE577","v":0}]
[12,"ALLERLEI","AUTRES",null,null,null,null,null,null,null,null,0,"","","",null,null,null,null,null,null,null,null,null,null,null,null,null,null,null,null,null,null,null,null,null,null,null,null,null,null,null,null,null,null,null,null,null,null,null,null,null,null,null,null,null,{"$f":"COUNTIF(BE578:BE589,1)","v":0}]
["12.1","ONTZANDEN VAN FILTERS, DRAINS EN LEIDINGEN","DESENSABLEMENT DE PUITS, DE DRAINS ET CONDUITES",null,null,null,null,null,null,null,null,0,"","","",null,null,null,null,null,null,null,null,null,null,null,null,null,null,null,null,null,null,null,null,null,null,null,null,null,null,null,null,null,null,null,null,null,null,null,null,null,null,null,null,null,{"$f":"COUNTIF(BE579:BE582,1)","v":0}]
["12.1.a","mob/demob van de installatie","- mob/démob de l'installation","VH",null,409,null,null,null,null,null,0,"","","",null,null,null,null,null,null,null,null,null,null,null,null,null,null,null,null,null,null,null,null,null,null,null,null,null,null,null,null,null,null,null,null,null,null,null,null,null,null,null,null,null,{"$f":"IF($L579<>0,1,0)","v":0}]
["12.1.b","huur","- location","VH","dag",1160,null,null,null,null,null,0,"","","",null,null,null,null,null,null,null,null,null,null,null,null,null,null,null,null,null,null,null,null,null,null,null,null,null,null,null,null,null,null,null,null,null,null,null,null,null,null,null,null,null,{"$f":"IF($L580<>0,1,0)","v":0}]
["12.1.c","technische begeleiding","- surveillance technique","VH","u",60.1,null,null,null,null,null,{"$f":"+J581+K581","v":0},"","","",null,null,null,null,null,null,null,null,null,null,null,null,null,null,null,null,null,null,null,null,null,null,null,null,null,null,null,null,null,null,null,null,null,null,null,null,null,null,null,null,null,{"$f":"IF($L581<>0,1,0)","v":0}]
["12.2.d","afvoer en verwerking van residu's","- évacuation et traitement des résidus","VH","kg",0.54,null,null,null,null,null,0,"","","",null,null,null,null,null,null,null,null,null,null,null,null,null,null,null,null,null,null,null,null,null,null,null,null,null,null,null,null,null,null,null,null,null,null,null,null,null,null,null,null,null,{"$f":"IF($L582<>0,1,0)","v":0}]
["12.2","REGENERATIE","REGENERATION",null,null,null,null,null,null,null,null,0,"","","",null,null,null,null,null,null,null,null,null,null,null,null,null,null,null,null,null,null,null,null,null,null,null,null,null,null,null,null,null,null,null,null,null,null,null,null,null,null,null,null,null,{"$f":"COUNTIF(BE584:BE588,1)","v":0}]
["12.2.a","mob/demob van de installatie","- mob/démob de l'installation","VH",null,924,null,null,null,null,null,0,"","","",null,null,null,null,null,null,null,null,null,null,null,null,null,null,null,null,null,null,null,null,null,null,null,null,null,null,null,null,null,null,null,null,null,null,null,null,null,null,null,null,null,{"$f":"IF($L584<>0,1,0)","v":0}]
["12.2.b","technische begeleiding","- surveillance technique","VH","u",60.1,null,null,null,null,null,0,"","","",null,null,null,null,null,null,null,null,null,null,null,null,null,null,null,null,null,null,null,null,null,null,null,null,null,null,null,null,null,null,null,null,null,null,null,null,null,null,null,null,null,0]
["12.2.c","verbruik zoutzuuroplossing","- consommation de solution d’acide chlorhydrique","VH","l",1.32,null,null,null,null,null,0,"","","",null,null,null,null,null,null,null,null,null,null,null,null,null,null,null,null,null,null,null,null,null,null,null,null,null,null,null,null,null,null,null,null,null,null,null,null,null,null,null,null,null,0]
["12.2.d","verbruik natriumhexametafosfaat","- consommation d’hexamétaphosphate de sodium","VH","kg",2.38,null,null,null,null,null,0,"","","",null,null,null,null,null,null,null,null,null,null,null,null,null,null,null,null,null,null,null,null,null,null,null,null,null,null,null,null,null,null,null,null,null,null,null,null,null,null,null,null,null,0]
["12.2.e","afvoer en verwerking van residu's","- évacuation et traitement des résidus","VH","kg",0.54,null,null,null,null,null,0,"","","",null,null,null,null,null,null,null,null,null,null,null,null,null,null,null,null,null,null,null,null,null,null,null,null,null,null,null,null,null,null,null,null,null,null,null,null,null,null,null,null,null,0]
["12.3","AUTOMATISCHE INREGELING GRONDWATERNIVEAU*","Réglage automatique du niveau de l'eau souterraine*","TP",null,"nvt",null,"In zeer zettingsgevoelige gronden","Pour des sols très sensibles aux tassements",null,null,{"$f":"+J589+K589","v":0},"","","",null,null,null,null,null,null,null,null,null,null,null,null,null,null,null,null,null,null,null,null,null,null,null,null,null,null,null,null,null,null,null,null,null,null,null,null,null,null,null,null,null,0]
[null,null,null,null,null,null,null,null,null,null,null,0,{"$f":"IF(AND(ISTEXT($D590),ISNUMBER($G590)),ROUND(J590*$G590,2),\"\")","v":""},{"$f":"IF(AND(ISTEXT($D590),ISNUMBER($G590)),ROUND(K590*$G590,2),\"\")","v":""},{"$f":"IF(AND(ISTEXT($D590),ISNUMBER($G590)),N590+M590,\"\")","v":""},null,null,null,null,null,null,null,null,null,null,null,null,null,null,null,null,null,null,null,null,null,null,null,null,null,null,null,null,null,null,null,null,null,null,null,null,null,null,null,null,null,{"$f":"+BE591","v":0}]
[13,"REGIETARIEVEN","TARIFS EN REGIE",null,null,null,null,"enkel bij regiewerken","seulement pour travaux en régie",null,null,0,"","","",null,null,null,null,null,null,null,null,null,null,null,null,null,null,null,null,null,null,null,null,null,null,null,null,null,null,null,null,null,null,null,null,null,null,null,null,null,null,null,null,null,{"$f":"COUNTIF(BE592:BE607,1)","v":0}]
["13.1","ARBEIDSPRESTATIES","PRESTATIONS DU PERSONNEL",null,null,null,null,null,null,null,null,{"$f":"+J592+K592","v":0},"","","",null,null,null,null,null,null,null,null,null,null,null,null,null,null,null,null,null,null,null,null,null,null,null,null,null,null,null,null,null,null,null,null,null,null,null,null,null,null,null,null,null,{"$f":"COUNTIF(BE593:BE595,1)","v":0}]
["13.1.a","geoefenden","Expérimenté","VH","u",53.9,null,null,null,null,null,{"$f":"+J593+K593","v":0},"","","",null,null,null,null,null,null,null,null,null,null,null,null,null,null,null,null,null,null,null,null,null,null,null,null,null,null,null,null,null,null,null,null,null,null,null,null,null,null,null,null,null,{"$f":"IF($L593<>0,1,0)","v":0}]
["13.1.b","geschoolden 2°graad","Diplôme d'études secondaires","VH","u",60.1,null,null,null,null,null,0,"","","",null,null,null,null,null,null,null,null,null,null,null,null,null,null,null,null,null,null,null,null,null,null,null,null,null,null,null,null,null,null,null,null,null,null,null,null,null,null,null,null,null,0]
["13.1.c","werfleider","Chef de chantier","VH","u",77.599999999999994,null,null,null,null,null,0,"","","",null,null,null,null,null,null,null,null,null,null,null,null,null,null,null,null,null,null,null,null,null,null,null,null,null,null,null,null,null,null,null,null,null,null,null,null,null,null,null,null,null,0]
["13.2","MATERIEEL (GEBRUIK INCLUSIEF BEDIENER)","MATERIEL (y compris le machiniste)",null,null,null,null,null,null,null,null,0,"","","",null,null,null,null,null,null,null,null,null,null,null,null,null,null,null,null,null,null,null,null,null,null,null,null,null,null,null,null,null,null,null,null,null,null,null,null,null,null,null,null,null,{"$f":"COUNTIF(BE597:BE606,1)","v":0}]
["13.2.a","vrachtwagen - laadvermogen <= 10 t","Camion avec capacité de chargement <= 10 tonnes ","VH","u",78.900000000000006,null,null,null,null,null,0,"","","",null,null,null,null,null,null,null,null,null,null,null,null,null,null,null,null,null,null,null,null,null,null,null,null,null,null,null,null,null,null,null,null,null,null,null,null,null,null,null,null,null,0]
["13.2.b","vrachtwagen - laadvermogen > 10 t","Camion avec capacité de chargement > 10 tonnes ","VH","u",90.1,null,null,null,null,null,0,"","","",null,null,null,null,null,null,null,null,null,null,null,null,null,null,null,null,null,null,null,null,null,null,null,null,null,null,null,null,null,null,null,null,null,null,null,null,null,null,null,null,null,0]
["13.2.c","minigraver (2 ton)","Minipelle (2 ton)","VH","u",74.400000000000006,null,null,null,null,null,{"$f":"+J599+K599","v":0},"","","",null,null,null,null,null,null,null,null,null,null,null,null,null,null,null,null,null,null,null,null,null,null,null,null,null,null,null,null,null,null,null,null,null,null,null,null,null,null,null,null,null,0]
["13.2.d","klein graafmachine  vermogen (7 ton)","Pelleteuse (7 ton)","VH","u",84.5,null,null,null,null,null,0,"","","",null,null,null,null,null,null,null,null,null,null,null,null,null,null,null,null,null,null,null,null,null,null,null,null,null,null,null,null,null,null,null,null,null,null,null,null,null,null,null,null,null,0]
["13.2.e","groot graafmachine  vermogen (25 ton)","Pelleteuse (25 ton)","VH","u",104,null,null,null,null,null,0,"","","",null,null,null,null,null,null,null,null,null,null,null,null,null,null,null,null,null,null,null,null,null,null,null,null,null,null,null,null,null,null,null,null,null,null,null,null,null,null,null,null,null,0]
["13.2.f","vacuumwagen","Camion vacuum ","VH","u",162,null,null,null,null,null,0,"","","",null,null,null,null,null,null,null,null,null,null,null,null,null,null,null,null,null,null,null,null,null,null,null,null,null,null,null,null,null,null,null,null,null,null,null,null,null,null,null,null,null,0]
["13.2.g","trilwals","Rouleau compresseur vibrant ","VH","u",78.900000000000006,null,null,null,null,null,0,"","","",null,null,null,null,null,null,null,null,null,null,null,null,null,null,null,null,null,null,null,null,null,null,null,null,null,null,null,null,null,null,null,null,null,null,null,null,null,null,null,null,null,0]
["13.2.h","trilplaat","Compacteur vibrant ","VH","u",71,null,null,null,null,null,0,"","","",null,null,null,null,null,null,null,null,null,null,null,null,null,null,null,null,null,null,null,null,null,null,null,null,null,null,null,null,null,null,null,null,null,null,null,null,null,null,null,null,null,0]
["13.2.i","compressor","Compresseur ","VH","u",63.1,null,null,null,null,null,0,"","","",null,null,null,null,null,null,null,null,null,null,null,null,null,null,null,null,null,null,null,null,null,null,null,null,null,null,null,null,null,null,null,null,null,null,null,null,null,null,null,null,null,0]
["13.2.j","luchtdrukhamer","Marteau pneumatique","VH","u",63.1,null,null,null,null,null,0,"","","",null,null,null,null,null,null,null,null,null,null,null,null,null,null,null,null,null,null,null,null,null,null,null,null,null,null,null,null,null,null,null,null,null,null,null,null,null,null,null,null,null,0]
["13.3","Stilstand kleine werven","ARRET PETITS CHANTIERS","VH","u",126,null,null,null,null,null,0,"","","",null,null,null,null,null,null,null,null,null,null,null,null,null,null,null,null,null,null,null,null,null,null,null,null,null,null,null,null,null,null,null,null,null,null,null,null,null,null,null,null,null,0]
[null,null,null,null,null,null,null,null,null,null,null,0,"","","",null,null,null,null,null,null,null,null,null,null,null,null,null,null,null,null,null,null,null,null,null,null,null,null,null,null,null,null,null,null,null,null,null,null,null,null,null,null,null,null,null,{"$f":"+BE609","v":0}]
[14,"DIVERSEN","DIVERS",null,null,null,null,null,null,null,null,0,"","","",null,null,null,null,null,null,null,null,null,null,null,null,null,null,null,null,null,null,null,null,null,null,null,null,null,null,null,null,null,null,null,null,null,null,null,null,null,null,null,null,null,{"$f":"COUNTIF(BE610:BE618,1)","v":0}]
["14.1","Toeslag voor standaardopdrachten van 10/15/20 % op de totaalprijs, met uitzondering van de posten voor het laden en transport van de te verwijderen gronden naar het CGR en voor de posten \"diversen\" in de meetstaat, in functie van de afstand tussen de werf en de dichtstbijzijnde maatschappelijke zetel of exploutatiezetel van de aannemer","Supplément pour des missions standards de 10 / 15 / 20% au prix total, à l’exception des postes pour le chargement et le transport des terres à évacuer vers le CTS et des postes « Divers » du métré, en relation avec la distance entre le site d'exécution et le siège social ou d’exploitation le plus proche de l’entrepreneur","VH","€","10 - 15 - 20%",null,"alleen van toepassing voor standaardopdrachten\nafstand in vogelvlucht > 50 km: toeslag 10 %\nafstand in vogelvlucht > 100 km: toeslag 15 %\nafstand in vogelvlucht > 150 km: toeslag 20 %","applicable pour les missions standards uniquement\n> 50 km à vol d’oiseau: soit 10% \n> 100 km à vol d’oiseau, soit 15% \n> 150 km à vol d’oiseau, soit 20%",{"$f":"SUM(M13:M609,-IF(ISNUMBER(M184),M184),-IF(ISNUMBER(M185),M185),-IF(ISNUMBER(M186),M186))","v":0},{"$f":"SUM(N13:N609,-IF(ISNUMBER(N184),N184),-IF(ISNUMBER(N185),N185),-IF(ISNUMBER(N186),N186))","v":0},0,"","","",null,null,null,null,null,null,null,null,null,null,null,null,null,null,null,null,null,null,null,null,null,null,null,null,null,null,null,null,null,null,null,null,null,null,null,null,null,null,null,null,null,{"$f":"IF($L610<>0,1,0)","v":0}]
["14.2","Toeslag voor opdrachten in steden met een hoog congestiegehalte, met een maximum van 10 % op de totaalprijs, met uitzondering van de posten \"diversen\" in de meetstaat","Supplément pour les missions dans les villes à haut taux de congestion, au maximum de 10 % au prix total, à l’exception des postes « Divers » du métré","VH","€",0.1,null,"voor standaardopdrachten: toeslag 10%\nvoor niet-standaardopdrachten: toeslag maximaal 10 %","pour les missions standards: supplément de 10%\npour les missions non standards: supplément au maximum de 10%",{"$f":"SUM(M13:M609)","v":0},{"$f":"SUM(N13:N609)","v":0},{"$f":"+J611+K611","v":0},"","","",null,null,null,null,null,null,null,null,null,null,null,null,null,null,null,null,null,null,null,null,null,null,null,null,null,null,null,null,null,null,null,null,null,null,null,null,null,null,null,null,null,{"$f":"IF($L611<>0,1,0)","v":0}]
["14.3",null,null,null,null,null,null,null,null,null,null,{"$f":"+J612+K612","v":0},"","","",null,null,null,null,null,null,null,null,null,null,null,null,null,null,null,null,null,null,null,null,null,null,null,null,null,null,null,null,null,null,null,null,null,null,null,null,null,null,null,null,null,0]
["14.4",null,null,null,null,null,null,null,null,null,null,0,"","","",null,null,null,null,null,null,null,null,null,null,null,null,null,null,null,null,null,null,null,null,null,null,null,null,null,null,null,null,null,null,null,null,null,null,null,null,null,null,null,null,null,0]
["14.5",null,null,null,null,null,null,null,null,null,null,0,"","","",null,null,null,null,null,null,null,null,null,null,null,null,null,null,null,null,null,null,null,null,null,null,null,null,null,null,null,null,null,null,null,null,null,null,null,null,null,null,null,null,null,0]
["14.6",null,null,null,null,null,null,null,null,null,null,0,"","","",null,null,null,null,null,null,null,null,null,null,null,null,null,null,null,null,null,null,null,null,null,null,null,null,null,null,null,null,null,null,null,null,null,null,null,null,null,null,null,null,null,0]
["14.7",null,null,null,null,null,null,null,null,null,null,0,"","","",null,null,null,null,null,null,null,null,null,null,null,null,null,null,null,null,null,null,null,null,null,null,null,null,null,null,null,null,null,null,null,null,null,null,null,null,null,null,null,null,null,0]
["14.8",null,null,null,null,null,null,null,null,null,null,0,"","","",null,null,null,null,null,null,null,null,null,null,null,null,null,null,null,null,null,null,null,null,null,null,null,null,null,null,null,null,null,null,null,null,null,null,null,null,null,null,null,null,null,0]
["14.9",null,null,null,null,null,null,null,null,null,null,{"$f":"+J618+K618","v":0},"","","",null,null,null,null,null,null,null,null,null,null,null,null,null,null,null,null,null,null,null,null,null,null,null,null,null,null,null,null,null,null,null,null,null,null,null,null,null,null,null,null,null,0]
[null,null,null,null,null,null,null,null,null,null,null,{"$f":"+J619+K619","v":0},"","","",null,null,null,null,null,null,null,null,null,null,null,null,null,null,null,null,null,null,null,null,null,null,null,null,null,null,null,null,null,null,null,null,null,null,null,null,null,null,null,null,null,{"$f":"+BE620","v":0}]
[15,"DOOR TE REKENEN KOSTEN ZONDER TOESLAG","COUTS RECUPERABLES SANS MAJORATION",null,null,null,null,"geen hoeveelheden invullen bij opmaak meetstaat","pas introduire de quantités dans le métré",null,null,{"$f":"+J620+K620","v":0},"","","",null,null,null,null,null,null,null,null,null,null,null,null,null,null,null,null,null,null,null,null,null,null,null,null,null,null,null,null,null,null,null,null,null,null,null,null,null,null,null,null,null,{"$f":"COUNTIF(BE621:BE626,1)","v":0}]
["15.1","Retributie voor inname openbaar terrein","Redevance pour l’occupation du terrain public","VH","€",1,null,null,null,null,null,0,"","","",null,null,null,null,null,null,null,null,null,null,null,null,null,null,null,null,null,null,null,null,null,null,null,null,null,null,null,null,null,null,null,null,null,null,null,null,null,null,null,null,null,{"$f":"IF($L621<>0,1,0)","v":0}]
["15.2","Leveren van brandstof voor stroomaggregaat","Livraison de carburant pour le groupe électrogène","VH","€",1,null,null,null,null,null,0,"","","",null,null,null,null,null,null,null,null,null,null,null,null,null,null,null,null,null,null,null,null,null,null,null,null,null,null,null,null,null,null,null,null,null,null,null,null,null,null,null,null,null,0]
["15.3","Afrekening elektriciteitsverbruik","Consommation électrique","VH","€",1,null,null,null,null,null,0,"","","",null,null,null,null,null,null,null,null,null,null,null,null,null,null,null,null,null,null,null,null,null,null,null,null,null,null,null,null,null,null,null,null,null,null,null,null,null,null,null,null,null,0]
["15.4","Afrekening interventies nutsmaatschappij","Interventions des gestionnaires de conduites","VH","€",1,null,null,null,null,null,0,"","","",null,null,null,null,null,null,null,null,null,null,null,null,null,null,null,null,null,null,null,null,null,null,null,null,null,null,null,null,null,null,null,null,null,null,null,null,null,null,null,null,null,0]
["15.5",null,null,null,null,null,null,null,null,null,null,0,"","","",null,null,null,null,null,null,null,null,null,null,null,null,null,null,null,null,null,null,null,null,null,null,null,null,null,null,null,null,null,null,null,null,null,null,null,null,null,null,null,null,null,0]
["15.6",null,null,null,null,null,null,null,null,null,null,0,"","","",null,null,null,null,null,null,null,null,null,null,null,null,null,null,null,null,null,null,null,null,null,null,null,null,null,null,null,null,null,null,null,null,null,null,null,null,null,null,null,null,null,0]
[null,null,null,null,null,null,null,null,null,null,null,{"$f":"+J627+K627","v":0},null,null,null,null,null,null,null,null,null,null,null,null,null,null,null,null,null,null,null,null,null,null,null,null,null,null,null,null,null,null,null,null,null,null,null,null,null,null,null,null,null,null,null,null,1]
[null,"GLOBAAL TOTAAL (excl BTW)","TOTAL GENERAL (excl. TVA)",null,null,null,null,null,null,null,null,null,{"$f":"SUM(M13:M627)","v":0},{"$f":"SUM(N13:N627)","v":0},{"$f":"SUM(O13:O627)","v":0},null,null,null,null,null,null,null,null,null,null,null,null,null,null,null,null,null,null,null,null,null,null,null,null,null,null,null,null,null,null,null,null,null,null,null,null,null,null,null,null,null,1]
[null,"Opm.        De eenheden  zijn : l=liter;m=meter;m²=vierkante meter;m³=kubieke meter;u=uur;wk=week;t=ton;kg=kilogram;st=stuk","Rem.        Les unités sont : l=litre; m=mètre; m²= mètre carré; m³= mètre cube; h=heure; sem= semaine; t=tonne; kg= kilogramme; pc=pièces",null,null,null,null,null,null,null,null,null,null,null,null,null,null,null,null,null,null,null,null,null,null,null,null,null,null,null,null,null,null,null,null,null,null,null,null,null,null,null,null,null,null,null,null,null,null,null,null,null,null,null,null,null,1]
[null,"RC : Raamcontract","CC : Contrat cadre",null,null,null,null,null,null,null,null,null,null,null,null,null,null,null,null,null,null,null,null,null,null,null,null,null,null,null,null,null,null,null,null,null,null,null,null,null,null,null,null,null,null,null,null,null,null,null,null,null,null,null,null,null,1]
[null,"EP : Eenheidsprijs","PU : Prix Unitaire",null,null,null,null,null,null,null,null,null,null,null,null,null,null,null,null,null,null,null,null,null,null,null,null,null,null,null,null,null,null,null,null,null,null,null,null,null,null,null,null,null,null,null,null,null,null,null,null,null,null,null,null,null,1]
[null,"Posten met * : RC-prijs kan overschreden worden mits motivatie van afwijking of post zonder RC- eenheidsprijs","Poste avec * : Le prix CC peut être dépassé moyennant une justification d'écart ou un poste sans prix CC fixé",null,null,null,null,null,null,null,null,null,null,null,null,null,null,null,null,null,null,null,null,null,null,null,null,null,null,null,null,null,null,null,null,null,null,null,null,null,null,null,null,null,null,null,null,null,null,null,null,null,null,null,null,null,1]
[null,"eenheidsprijs op te geven","Prix unitaire à donner","TP = Totaal prijs = PT = Prix Total",null,null,null,null,null,null,null,null,null,null,null,null,null,null,null,null,null,null,null,null,null,null,null,null,null,null,null,null,null,null,null,null,null,null,null,null,null,null,null,null,null,null,null,null,null,null,null,null,null,null,null,null,1]
[null,"motivatie voor overschrijding raamcontractprijs toe te voegen","Justification du dépassement du prix CC à renseigner","FH = Forfaitaire hoeveelheid = QF = Quantité Forfaitaire"]
[null,"eenheidsprijs dient <= te zijn dan raamcontractprijs","le prix unitaire doit être <= au prix CC","VH = Vermoedelijke hoeveelheid = QP = Quantités Présumées",null,null,null,null,null,null,null,null,null,null,null,null,null,null,null,null,null,null,null,null,null,null,null,null,null,null,null,null,null,null,null,null,null,null,null,null,null,null,null,null,null,null,null,null,null,null,null,null,null,null,null,null,1]

{"sheet":"Grondverzet_Balance des sols","index":1,"n_rows":68,"n_cols":37,"rows_kept":68,"cut":false,"hidden":false,"merged":[[6,4,6,11],[6,12,6,19],[31,0,31,3],[0,3,0,36],[0,1,0,2],[1,1,1,2],[4,1,4,2],[6,28,6,35],[2,2,2,3],[2,4,2,11],[6,20,6,27],[2,28,2,34],[4,3,4,36],[2,20,2,27],[5,1,5,2],[2,12,2,19],[6,2,6,3]]}
["Dossier nr :",{"$f":"+BSW_TA!B5","v":0},null,"PLAN PROVISOIRE DE MANIPULATION DES TERRES (en m³) (voir aussi figures)"]
["Station :",{"$f":"+BSW_TA!B6","v":0}]
[null,null,"Coûts",null,"Propres à BOFAS",null,null,null,null,null,null,null,"Etrangers à BOFAS",null,null,null,null,null,null,null,"Mixte",null,null,null,null,null,null,null,"Total"]
["Zone d'excavation","Couche","Type de sol","<63µm + MO","G1","GK","G2","B1","B2","FC","T","ST","G1","GK","G2","B1","B2","FC","T","ST","G1","GK","G2","B1","B2","FC","T","ST","G1","GK","G2","B1","B2","FC","T","ST","Tot"]
["Dossier nr :",{"$f":"+BSW_TA!B5","v":0},null,"GRONDVERZETPLAN (in m³) (zie ook figuren)"]
["Station :",{"$f":"+BSW_TA!B6","v":0}]
[null,null,"Kostenplaats",null,"BOFAS Eigen",null,null,null,null,null,null,null,"BOFAS Vreemd",null,null,null,null,null,null,null,"Gemengd",null,null,null,null,null,null,null,"Totaal / Total"]
["Ontgraving-\nzone","Laag","Grondsoort","<63µm + OS","G1","GK","G2","B1","B2","FC","T","ST","G1","GK","G2","B1","B2","FC","T","ST","G1","GK","G2","B1","B2","FC","T","ST","G1","GK","G2","B1","B2","FC","T","ST","Tot"]
[1,"0,35-...",null,null,null,null,null,null,null,null,null,null,null,null,null,null,null,null,null,null,null,null,null,null,null,null,null,null,{"$f":"+E9+M9+U9","v":0},0,0,0,0,0,0,0,{"$f":"SUM(AC9:AJ9)","v":0}]
[1,null,null,null,null,null,null,null,null,null,null,null,null,null,null,null,null,null,null,null,null,null,null,null,null,null,null,null,0,0,0,0,0,0,0,0,0]
[1,null,null,null,null,null,null,null,null,null,null,null,null,null,null,null,null,null,null,null,null,null,null,null,null,null,null,null,0,0,0,0,0,0,0,0,0]
[1,null,null,null,null,null,null,null,null,null,null,null,null,null,null,null,null,null,null,null,null,null,null,null,null,null,null,null,0,0,0,0,0,0,0,0,0]
[1,null,null,null,null,null,null,null,null,null,null,null,null,null,null,null,null,null,null,null,null,null,null,null,null,null,null,null,0,0,0,0,0,0,0,0,0]
["Subtotaal 1",null,null,null,{"$f":"SUM(E9:E13)","v":0},0,0,0,0,0,0,0,{"$f":"SUM(M9:M13)","v":0},0,0,0,0,0,0,0,{"$f":"SUM(U9:U13)","v":0},0,0,0,0,0,0,0,{"$f":"SUM(AC9:AC13)","v":0},0,0,0,0,0,0,0,0]
[2,null,null,null,null,null,null,null,null,null,null,null,null,null,null,null,null,null,null,null,null,null,null,null,null,null,null,null,{"$f":"+E15+M15+U15","v":0},0,0,0,0,0,0,0,0]
[2,null,null,null,null,null,null,null,null,null,null,null,null,null,null,null,null,null,null,null,null,null,null,null,null,null,null,null,0,0,0,0,0,0,0,0,0]
[2,null,null,null,null,null,null,null,null,null,null,null,null,null,null,null,null,null,null,null,null,null,null,null,null,null,null,null,0,0,0,0,0,0,0,0,0]
["Subtotaal 2",null,null,null,{"$f":"SUM(E15:E17)","v":0},0,0,0,0,0,0,0,{"$f":"SUM(M15:M17)","v":0},0,0,0,0,0,0,0,{"$f":"SUM(U15:U17)","v":0},0,0,0,0,0,0,0,{"$f":"SUM(AC15:AC17)","v":0},0,0,0,0,0,0,0,0]
["Ingeval tanks worden verwijderd buiten de te saneren zone in opdracht van aanvrager, dient de hoeveelheid grondwerk om de tanks vrij te graven opgenomen worden onder BOFAS vreemd. De hoeveelheid is functie van de grootte van de tank, zoals vermeld in de tabel."]
["Si on procède, à charge du demandeur, à l'évacuation des citernes qui ne sont pas localisées dans une zone contaminée, les travaux de terrassement sont repris dans la partie \"étranger à BOFAS\". Les quantités dépendent du contenu des citernes comme repris dans le tableau."]
["2m³",null,null,null,null,null,null,null,null,null,null,null,null,null,null,null,null,null,null,null,null,null,null,null,null,null,null,null,{"$f":"+E21+M21+U21","v":0},{"$f":"+F21+N21+V21","v":0},{"$f":"+G21+O21+W21","v":0},null,null,null,null,null,{"$f":"SUM(AC21:AJ21)","v":0}]
["3m³",null,null,null,null,null,null,null,null,null,null,null,null,null,null,null,null,null,null,null,null,null,null,null,null,null,null,null,0,0,0,null,null,null,null,null,0]
["5m³",null,null,null,null,null,null,null,null,null,null,null,null,null,null,null,null,null,null,null,null,null,null,null,null,null,null,null,0,0,0,null,null,null,null,null,0]
["7m³",null,null,null,null,null,null,null,null,null,null,null,null,null,null,null,null,null,null,null,null,null,null,null,null,null,null,null,0,0,0,null,null,null,null,null,0]
["9m³",null,null,null,null,null,null,null,null,null,null,null,null,null,null,null,null,null,null,null,null,null,null,null,null,null,null,null,0,0,0,null,null,null,null,null,0]
["10m³",null,null,null,null,null,null,null,null,null,null,null,null,null,null,null,null,null,null,null,null,null,null,null,null,null,null,null,0,0,0,null,null,null,null,null,0]
["13m³",null,null,null,null,null,null,null,null,null,null,null,null,null,null,null,null,null,null,null,null,null,null,null,null,null,null,null,0,0,0,null,null,null,null,null,0]
["15m³",null,null,null,null,null,null,null,null,null,null,null,null,null,null,null,null,null,null,null,null,null,null,null,null,null,null,null,0,0,0,null,null,null,null,null,0]
["20m³",null,null,null,null,null,null,null,null,null,null,null,null,null,null,null,null,null,null,null,null,null,null,null,null,null,null,null,0,0,0,null,null,null,null,null,0]
["30m³",null,null,null,null,null,null,null,null,null,null,null,null,null,null,null,null,null,null,null,null,null,null,null,null,null,null,null,0,0,0,null,null,null,null,null,0]
["Subtotal ",null,null,null,null,null,null,null,null,null,null,null,{"$f":"SUM(M19:M30)","v":0},{"$f":"SUM(N19:N30)","v":0},{"$f":"SUM(O19:O30)","v":0},null,null,null,null,null,{"$f":"SUM(U19:U30)","v":0},{"$f":"SUM(V19:V30)","v":0},{"$f":"SUM(W19:W30)","v":0},null,null,null,null,null,0,0,0,null,null,null,null,null,0]
["Algemeen totaal",null,null,null,{"$f":"+ROUND(E14+E18+E31,0)","v":0},0,0,0,0,0,0,0,0,0,0,0,0,0,0,0,0,0,0,0,0,0,0,0,0,0,0,0,0,0,0,0,0]
[]
["De aanvullingen van de holle ruimten ingenomen door de tanks zijn inbegrepen in de afbraakwerken. "]
["Type grond geeft de geschiktheid voor verwerking of gebruik van de grond weer:"]
["• “G1” : grond geschikt voor Vrij Gebruik  (CAT1)"]
["• “GK” : grond geschikt voor Gebruik binnen de Kadastrale werkzone "]
["• “G2” : grond geschikt voor Bouwkundig BodemGebruik (CAT2)"]
["• “B1” :  verontreinigde grond geschikt voor Biologische reiniging met min.olie <= 2.000 mg/kg ds met fijne fractie (<63 µm) + org. stof <=35% (CAT3)"]
["• “B2” :  verontreinigde grond geschikt voor Biologische reiniging met min.olie <= 7.000 mg/kg ds (CAT4)"]
["• “FC” : verontreinigde grond geschikt voor Fysico Chemische reiniging (CAT5)"]
["• “T” : verontreinigde grond geschikt voor Thermische reiniging (CAT11)"]
["• “ST” : verontreinigde grond niet geschikt voor reiniging - Storten (CAT12)"]
["De grond wordt hierbij geklasseerd in het eerstgenoemde type waarvoor hij geschikt is. "]
[]
["Kostenplaats :"]
["• \"eigen\" indien kosten door BOFAS gedragen"]
["• “vreemd” : kosten niet door BOFAS gedragen (dit betreft sanering van een verontreiniging niet gerelateerd aan de exploitatie van het tankstation waarvoor een saneringsplicht is)"]
["• “gemengd” : deels 'vreemd' en deels 'eigen' (bvb diesel + smeerolie)"]
[]
[]
["Les remblais des cavités qui apparaissent lors des travaux de démolition sont compris dans les travaux de démolition."]
["Le type de sol indique ce qui convient pour le traitement ou l'utilisation du sol:"]
["• “G1” : terres appropriées à une utilisation sur un site récepteur de type d’usage I = naturel (CAT 6)"]
["• “GK” : terres appropriées à une réutilisation à l'intérieur de la parcelle cadastrale"]
["• “G2” : terres appropriées à une utilisation sur un site récepteur de type d’usage V = industriel (CAT7)"]
["• “B1” : terres contaminées appropriées à un traitement biologique avec une concentration en huiles min. <= 2.000 mg/kg ms (CAT8)"]
["• “B2” : terres contaminées appropriées à un traitement biologique avec une concentration en huiles min. <= 7.000 mg/kg ms  (CAT9)"]
["• “FC” : terres contaminées appropriées à un traitement physico-chimique (CAT10)"]
["• “T” : terres contaminées appropriées à un traitement thermique (CAT11)"]
["• “ST” : terres contaminées impropres à un traitement - Mise en CET (CAT 12)"]
["Le sol est repris sous la première catégorie pour laquelle il convient."]
["Des lots de terre sont regroupés si les frais administratifs ou si les coûts d'une séparation en lots individualisés sont plus chers que l'économie du traitement."]
[]
["Coûts :"]
["• \"eigen\" si les coûts sont supportés par BOFAS"]
["• “vreemd”  : les coûts ne sont pas supportés par BOFAS (cela concerne l'assainissement d'une pollution qui n'est pas liée à l'exploitation de la station-service et pour laquelle il existe une obligation d'assainissement)"]
["• “gemengd” : en partie 'eigen' et en partie 'vreemd' (par ex. diesel + huile de vidange)"]

{"sheet":"Ber.mtst-Calc.métré","index":2,"n_rows":42,"n_cols":15,"rows_kept":42,"cut":false,"hidden":false,"merged":[[0,0,0,8]]}
["Pour autant qu'il n'y ait pas de stockage temporaire sur demande explicite et que la balance des sols soit en équilibre, ceci peut donner :"]
["Postnr.","Omschrijving","Description","PT/QF/QP","Unité","Propre","Etranger","Mixte","Total","Propre + Mixte"]
["Uitgaande dat geen tussentijdse stockage op expliciet verzoek gebeurt en dat de grondbalans in evenwicht is, geeft dit :"]
["Postnr.","Omschrijving","Description","TP/FH/VH","Eenheid","Eigen","Vreemd","Gemengd","Totaal","Eigen + Gemengd"]
[7,"GRONDWERKEN","TRAVAUX DE TERRASSEMENT"]
["7.1","UITGRAVINGEN IN VERONTREINIGDE ZONES","EXCAVATION EN ZONES POLLUEES"]
["7.1.a","Selectief ontgraven  ","Excavation sélective","VH","m³",{"$f":"SUM('Grondverzet_Balance des sols'!E32:L32)","v":0},{"$f":"SUM('Grondverzet_Balance des sols'!M32:T32)","v":0},{"$f":"SUM('Grondverzet_Balance des sols'!U32:AB32)","v":0},{"$f":"SUM(F7:H7)","v":0},{"$f":"+F7+H7","v":0}]
["7.1.b","Tussenstockage van verdachte grond op expliciet verzoek","Stockage intermédiaire de terres suspectes sur demande explicite","VH","m³",null,null,null,{"$f":"SUM(F8:H8)","v":0},0]
["7.1.c","Tussenstockage van herbruikbare grond","Stockage intermédiaires de terres réutilisables","VH","m³",{"$f":"F7-F12/1.8","v":0},{"$f":"G7-G12/1.8","v":0},{"$f":"H7-H12/1.8","v":0},0,0]
["7.2","LADEN EN TRANSPORT","CHARGEMENT ET TRANSPORT",null,null,null,null,null,0,0]
["7.2.1","Laden en transport van verontreinigde grond ","Chargement et transport de terres contaminées",null,null,null,null,null,0,0]
["7.2.1.a","Laden van de verontreinigde grond ","Chargement de terres contaminées","VH","t",{"$f":"SUM('Grondverzet_Balance des sols'!H32:L32)*1.8","v":0},{"$f":"SUM('Grondverzet_Balance des sols'!P32:T32)*1.8","v":0},{"$f":"+SUM('Grondverzet_Balance des sols'!X32:AB32)*1.8","v":0},0,0]
["7.2.1.b","Transport van de verontreinigde grond naar CGR","Transport de terres contaminées vers le CTS","VH","t",{"$f":"+F12-IF(F14>1,(F14-1)*18,0)","v":0},{"$f":"+G12-IF(G14>1,(G14-1)*18,0)","v":0},{"$f":"+H12-IF(H14>1,(H14-1)*18,0)","v":0},0,0]
["7.2.1.c","Transport van de verontreinigde grond per container (10m³)","Transport au moyen de conteneur (10 m³)","VH","st",null,null,null,0,0]
["7.2.2","Laden en transport van niet-verontreinigde grond ","Chargement et transport de terres non-contaminées",null,null,null,null,null,0,0]
["7.2.2.a","Opladen, transport en externe tussenstockage","Chargement, transport et stockage intermédiaire offs ite","VH","m³",null,null,null,0,0]
["7.2.2.b","Aan- en afvoer kraan naar externe stockageplaats","Mob/démob de la grue vers le site de stockage off site pour le chargement","TP",null,null,null,null,0,{"$f":"+F17+H17","v":0}]
["7.2.2.c","Opladen en transport terug naar de werf","Chargement et transport des terres vers le chantier (retour)","VH","m³",null,null,null,0,0]
["7.3","PE FOLIE","MEMBRANE PE ",null,null,null,null,null,0,0]
["7.3.a","dikte 0,4 mm","Epaisseur (0,4 mm)","VH","m²",null,null,null,{"$f":"SUM(F20:H20)","v":0},0]
["7.3.b","dikte 1,5 mm","Epaisseur (1,5 mm)","VH","m²",null,null,null,0,0]
["7.4","Geotextile \"avertisseur\"","Geotextile \"avertisseur\"","VH","m²",null,null,null,{"$f":"SUM(F22:H22)","v":0},{"$f":"+F22+H22","v":0}]
["7.5","AANVULLINGEN","REMBLAI",null,null,null,null,null,0,0]
["7.5.1","Leveren en plaatsen van aanvulgrond","Livraison et placement des terres de remblai","VH","m³",{"$f":"+F7-F25-F26-F27","v":0},{"$f":"+G7-G25-G26-G27","v":0},{"$f":"+H7-H25-H26-H27","v":0},{"$f":"SUM(F24:H24)","v":0},0]
["7.5.2","Aanvullen met gestockeerde grond","Remblai avec des terres réutilisables stockées sur place","VH","m³",{"$f":"+F9","v":0},{"$f":"+G9","v":0},{"$f":"+H9","v":0},0,0]
["7.5.3","Leveren en plaatsen van teelaarde","Fourniture et placement de terre arable","VH","m³",null,null,null,0,0]
["7.5.4","Leveren en plaatsen van zandcement","Fourniture et placement de sable-ciment","VH","m³",null,null,null,0,0]
[]
[]
[]
["Post","RO 2021 CGR - GRONDREINIGING","AC 2021 CTS - TRAITEMENT DES TERRES",null,null,null,null,null,0]
["3 - 4","PRIJSCATEGORIEN GEBASEERD OP VLAREBO (CATEGORIE 1 TOT 5)","CATÉGORIES DE PRIX BASÉES SUR L'AGW TERRES (CATÉGORIES 6 À 10)",null,null,null,null,null,0,null,null,"eigen","vreemd","gemengd","som"]
["3.3 - 4.3","Cat. 3 - Biologische reiniging van grond met min.olie <=2000 mg/kg ds met silt + org. stof <=35% (post 3.3)","Cat. 8 - Traitement biologique de la terre présentant une concentration en huile min. <=2000 mg/kg ms (post 4.3)","VH","ton",{"$f":"+L33*1.8","v":0},{"$f":"+M33*1.8","v":0},0,0,null,null,{"$f":"+'Grondverzet_Balance des sols'!H32","v":0},{"$f":"+'Grondverzet_Balance des sols'!P32","v":0},{"$f":"+'Grondverzet_Balance des sols'!X32","v":0},{"$f":"SUM(L33:N33)","v":0}]
["3.4 - 4.4","Cat. 4 - Biologische reiniging van grond met min.olie <=7000 mg/kg ds   (post 3.4)","Cat. 9 - Traitement biologique de la terre présentant une concentration en huile min. <=7000 mg/kg ms (post 4.4)","VH","ton",{"$f":"+L34*1.8","v":0},0,0,0,null,null,{"$f":"+'Grondverzet_Balance des sols'!I32","v":0},{"$f":"+'Grondverzet_Balance des sols'!Q32","v":0},{"$f":"+'Grondverzet_Balance des sols'!Y32","v":0},{"$f":"SUM(L34:N34)","v":0}]
["3.5 - 4.5","Cat. 5 - Fysico-chemische reiniging","Cat. 10 - Traitement physico-chimique",null,null,0,0,0,0]
["3.5.1 - 4.5.1","Fysico-chemische reiniging","Traitement physico-chimique","VH","ton",{"$f":"+L36*1.8","v":0},0,{"$f":"+N36*1.8","v":0},0,null,null,{"$f":"+'Grondverzet_Balance des sols'!J32","v":0},{"$f":"+'Grondverzet_Balance des sols'!R32","v":0},{"$f":"'Grondverzet_Balance des sols'!Z32","v":0},{"$f":"SUM(L36:N36)","v":0}]
["3.5.2 - 4.5.2","Toeslag voor verhoogde fijne fractie en organisch stofgehalte","Supplément pour fractions fines et teneur en matières organiques plus importantes","VH","ton%",{"$f":"+L37*1.8","v":0},0,0,{"$f":"SUM(F37:H37)","v":0},null,null,{"$f":"SUMIF('Grondverzet_Balance des sols'!$D8:$D32,\">0,20\",'Grondverzet_Balance des sols'!J8:J32)-L42","v":0},{"$f":"SUMIF('Grondverzet_Balance des sols'!$D8:$D32,\">0,20\",'Grondverzet_Balance des sols'!R8:R32)-M42","v":0},{"$f":"SUMIF('Grondverzet_Balance des sols'!$D8:$D32,\">0,20\",'Grondverzet_Balance des sols'!Z8:Z32)-N42","v":0},{"$f":"SUM(L37:N37)","v":0}]
["5","ANDERE PRIJSCATEGORIEËN","AUTRES CATÉGORIES DE PRIX"]
["5.1","Cat. 11 - Thermische reiniging","Cat. 11 - Traitement thermique","VH","ton",0,0,0,0,null,null,{"$f":"+'Grondverzet_Balance des sols'!K32","v":0},{"$f":"+'Grondverzet_Balance des sols'!S32","v":0},{"$f":"+'Grondverzet_Balance des sols'!AA32","v":0},{"$f":"SUM(L39:N39)","v":0}]
["5.2","Cat. 12 - Storten","Cat. 12 - Mise en CET","VH","ton",{"$f":"+L40*1.8","v":0},0,0,0,null,null,{"$f":"+'Grondverzet_Balance des sols'!L32","v":0},{"$f":"+'Grondverzet_Balance des sols'!T32","v":0},{"$f":"+'Grondverzet_Balance des sols'!AB32","v":0},{"$f":"SUM(L40:N40)","v":0}]
[null,"Opmerking :","Remarque :",null,null,null,null,null,0]
[null,"FC met fractie <63µm + O.S. hoger dan 40% - NIET REINIGBAAR","SI la teneur en fraction fines (<63 µm) + M.O.  > 40 %, pas de traitement physico-chimique possible ","VH","ton",{"$f":"+L42*1.8","v":0},{"$f":"+M42*1.8","v":0},{"$f":"+N42*1.8","v":0},0,null,null,{"$f":"SUMIF('Grondverzet_Balance des sols'!$D8:$D32,\">0,40\",'Grondverzet_Balance des sols'!J8:J32)","v":0},{"$f":"SUMIF('Grondverzet_Balance des sols'!$D8:$D32,\">0,40\",'Grondverzet_Balance des sols'!R8:R32)","v":0},{"$f":"SUMIF('Grondverzet_Balance des sols'!$D8:$D32,\">0,40\",'Grondverzet_Balance des sols'!Z8:Z32)","v":0},{"$f":"SUM(L42:N42)","v":0}]

{"sheet":"histlog","index":3,"n_rows":9,"n_cols":5,"rows_kept":9,"cut":false,"hidden":true,"merged":[]}
["versie","naam","goedgekeurd","datum ","opmerking"]
["3.0.0","EG","EG","2022-02-17","aanpassing EP door stijging indexen I-2021 (Hervorming Mercuriale) en S"]
["2.0.3","LV","EG","2021-07-19","aanpassing macro (view all sneller laten lopen)"]
["2.0.2","EG",null,"2021-07-07","aanpassing formules "]
["2.0.1","LV",null,"2021-04-29"]
["2.00","LV","EG","2021-01-25","nazicht layout BOFAS 3"]
["2.00","EG","EG","2021-01-25","aanpassing EP door stijging indexen I en S"]
["1.00","YVM","EG","2020-11-25","BOFAS3 Versie, bescherming zoek-functie"]
["1.00","YVM","EG","2020-10-27","Mailing, View, External links weg,"]